PublisherLabel,PublisherURI,"Body name","Body","Service area","Service division","Responsible unit","Expenses type","Date","Transaction","Amount","Supplier name"
"Bracknell Forest Council","http://opendatacommunities.org/id/unitary-authority/bracknell-forest","Bracknell Forest Council","00MA","Adults (18-64)","Long Term Support - Community:Supported Living","LD Adults 18-64 Long Term Support - Community:Supported Living","Other Support to Clients",07/12/2017 00:00:00,"6651327",544.07,"WEST BERKSHIRE COUNCIL"
"Bracknell Forest Council","http://opendatacommunities.org/id/unitary-authority/bracknell-forest","Bracknell Forest Council","00MA","Culture and Heritage","Heritage Museums & Galleries","The Look Out Catering","Cost of Goods Sold",11/08/2017 00:00:00,"6651328",622.7,"CONSORT FROZEN FOODS LTD"
"Bracknell Forest Council","http://opendatacommunities.org/id/unitary-authority/bracknell-forest","Bracknell Forest Council","00MA","Miscellaneous Public Health Services","Public Health Teams","Public Health - Berkshire Shared Team","Contracted Services",28/11/2017 00:00:00,"6651352",97540,"SOLUTIONS 4 HEALTH LTD"
"Bracknell Forest Council","http://opendatacommunities.org/id/unitary-authority/bracknell-forest","Bracknell Forest Council","00MA","Recreation, Sports and Leisure","Community Centres","Community Centres Support","R&M - Reactive",12/12/2017 00:00:00,"6651425",722,"BERKSHIRE MECHANICAL SERVICES"
"Bracknell Forest Council","http://opendatacommunities.org/id/unitary-authority/bracknell-forest","Bracknell Forest Council","00MA","Culture and Heritage","Heritage Museums & Galleries","The Look Out Car Parking","Contracted Services",31/10/2017 00:00:00,"6651450",2703.71,"INDIGO - INDIGO PARK SERVICES UK LIMITED"
"Bracknell Forest Council","http://opendatacommunities.org/id/unitary-authority/bracknell-forest","Bracknell Forest Council","00MA","Assistive Equipment & Technology","Assistive Equipment & Technology","Assistive Equipment & Technology","Equipment - Purchase",15/12/2017 00:00:00,"6651462",659,"R & A HAINES BUILDING CONTRACTORS LTD"
"Bracknell Forest Council","http://opendatacommunities.org/id/unitary-authority/bracknell-forest","Bracknell Forest Council","00MA","Open Spaces","Community Parks & Open Spaces","Play Areas","Materials",08/12/2017 00:00:00,"6651463",892.8,"KOMPAN LTD"
"Bracknell Forest Council","http://opendatacommunities.org/id/unitary-authority/bracknell-forest","Bracknell Forest Council","00MA","Open Spaces","Community Parks & Open Spaces","Urban Parks  - Maintenance","R&M - Planned",15/10/2017 00:00:00,"6651496",1777.23,"CAMPS HIGHWAYS LIMITED"
"Bracknell Forest Council","http://opendatacommunities.org/id/unitary-authority/bracknell-forest","Bracknell Forest Council","00MA","Open Spaces","Community Parks & Open Spaces","Jennetts Park Maintenance","R&M - Planned",15/10/2017 00:00:00,"6651496",4414.37,"CAMPS HIGHWAYS LIMITED"
"Bracknell Forest Council","http://opendatacommunities.org/id/unitary-authority/bracknell-forest","Bracknell Forest Council","00MA","Open Spaces","Countryside Recreation & Management","Countryside Sites - Maintenance","R&M - Planned",15/10/2017 00:00:00,"6651496",2243.7,"CAMPS HIGHWAYS LIMITED"
"Bracknell Forest Council","http://opendatacommunities.org/id/unitary-authority/bracknell-forest","Bracknell Forest Council","00MA","Adults (18-64)","Long Term Support - Community:Supported Living","MH Adults 18-64 Long Term Support - Community:Supported Living","Other Support to Clients",14/11/2017 00:00:00,"6651500",2269.2,"MOVING ON CARE MANAGEMENT LTD"
"Bracknell Forest Council","http://opendatacommunities.org/id/unitary-authority/bracknell-forest","Bracknell Forest Council","00MA","Adults (18-64)","Long Term Support - Community:Supported Living","MH Adults 18-64 Long Term Support - Community:Supported Living","Other Support to Clients",23/10/2017 00:00:00,"6651501",-1224.16,"MOVING ON CARE MANAGEMENT LTD"
"Bracknell Forest Council","http://opendatacommunities.org/id/unitary-authority/bracknell-forest","Bracknell Forest Council","00MA","Adults (18-64)","Long Term Support - Community:Supported Living","MH Adults 18-64 Long Term Support - Community:Supported Living","Other Support to Clients",14/11/2017 00:00:00,"6651502",2448,"MOVING ON CARE MANAGEMENT LTD"
"Bracknell Forest Council","http://opendatacommunities.org/id/unitary-authority/bracknell-forest","Bracknell Forest Council","00MA","Adults (18-64)","Long Term Support - Community:Supported Living","MH Adults 18-64 Long Term Support - Community:Supported Living","Other Support to Clients",23/10/2017 00:00:00,"6651503",-1224.16,"MOVING ON CARE MANAGEMENT LTD"
"Bracknell Forest Council","http://opendatacommunities.org/id/unitary-authority/bracknell-forest","Bracknell Forest Council","00MA","Adults (18-64)","Long Term Support - Community:Supported Living","MH Adults 18-64 Long Term Support - Community:Supported Living","Other Support to Clients",14/11/2017 00:00:00,"6651504",2448,"MOVING ON CARE MANAGEMENT LTD"
"Bracknell Forest Council","http://opendatacommunities.org/id/unitary-authority/bracknell-forest","Bracknell Forest Council","00MA","Culture and Heritage","Heritage Museums & Galleries","The Look Out Catering","Refuse Collection",30/11/2017 00:00:00,"6651508",576.55,"SUEZ RECYCLING AND RECOVERY UK LTD"
"Bracknell Forest Council","http://opendatacommunities.org/id/unitary-authority/bracknell-forest","Bracknell Forest Council","00MA","Sexual Health Services","Contraception","GP LARC Payments","Contracted Services",13/10/2017 00:00:00,"6651514",6862,"UNIVERSITY OF READING MEDICAL PRACTICE"
"Bracknell Forest Council","http://opendatacommunities.org/id/unitary-authority/bracknell-forest","Bracknell Forest Council","00MA","NHS Health Check Programme","NHS Health Check Programme","GP Health Checks","Contracted Services",13/10/2017 00:00:00,"6651514",760,"UNIVERSITY OF READING MEDICAL PRACTICE"
"Bracknell Forest Council","http://opendatacommunities.org/id/unitary-authority/bracknell-forest","Bracknell Forest Council","00MA","Services for Young People","Targeted services for young people","The Wayz","Contracted Services",31/12/2017 00:00:00,"6651533",13845,"BACYP - BERKSHIRE ASSOCIATION OF CLUBS FOR YOUNG PEOPLE"
"Bracknell Forest Council","http://opendatacommunities.org/id/unitary-authority/bracknell-forest","Bracknell Forest Council","00MA","Parking Services","Off Street Parking","Off Street Parking","Contracted Services",30/11/2017 00:00:00,"6651539",49405.52,"INDIGO - INDIGO PARK SERVICES UK LIMITED"
"Bracknell Forest Council","http://opendatacommunities.org/id/unitary-authority/bracknell-forest","Bracknell Forest Council","00MA","Parking Services","Off Street Parking","Off Street Parking","Contracted Services",30/11/2017 00:00:00,"6651541",2703.71,"INDIGO - INDIGO PARK SERVICES UK LIMITED"
"Bracknell Forest Council","http://opendatacommunities.org/id/unitary-authority/bracknell-forest","Bracknell Forest Council","00MA","Parking Services","Off Street Parking","Off Street Parking","Contracted Services",30/11/2017 00:00:00,"6651542",2248.85,"INDIGO - INDIGO PARK SERVICES UK LIMITED"
"Bracknell Forest Council","http://opendatacommunities.org/id/unitary-authority/bracknell-forest","Bracknell Forest Council","00MA","Parking Services","Off Street Parking","Off Street Parking","Contracted Services",30/11/2017 00:00:00,"6651543",925.63,"INDIGO - INDIGO PARK SERVICES UK LIMITED"
"Bracknell Forest Council","http://opendatacommunities.org/id/unitary-authority/bracknell-forest","Bracknell Forest Council","00MA","Parking Services","Off Street Parking","Off Street Parking","Contracted Services",30/11/2017 00:00:00,"6651544",612.15,"INDIGO - INDIGO PARK SERVICES UK LIMITED"
"Bracknell Forest Council","http://opendatacommunities.org/id/unitary-authority/bracknell-forest","Bracknell Forest Council","00MA","Parking Services","Off Street Parking","Off Street Parking","Contracted Services",30/11/2017 00:00:00,"6651546",2916.92,"INDIGO - INDIGO PARK SERVICES UK LIMITED"
"Bracknell Forest Council","http://opendatacommunities.org/id/unitary-authority/bracknell-forest","Bracknell Forest Council","00MA","Family Support Services","Targeted Family Support","Sec 28A - Day Centre Purchases","Contracted Services",01/12/2017 00:00:00,"6651560",19995.83,"THE LODDON SCHOOL"
"Bracknell Forest Council","http://opendatacommunities.org/id/unitary-authority/bracknell-forest","Bracknell Forest Council","00MA","Children Looked After","Residential care","C&F Learning Disability Placements","Contracted Services",01/12/2017 00:00:00,"6651560",19995.83,"THE LODDON SCHOOL"
"Bracknell Forest Council","http://opendatacommunities.org/id/unitary-authority/bracknell-forest","Bracknell Forest Council","00MA","Management and Support Services - CYPL","Unallocated High Needs Related Expenditure","SEN Non LEA Provision Pre 16","Contracted Services",01/12/2017 00:00:00,"6651560",19995.84,"THE LODDON SCHOOL"
"Bracknell Forest Council","http://opendatacommunities.org/id/unitary-authority/bracknell-forest","Bracknell Forest Council","00MA","Children Looked After","Residential care","C&F Learning Disability Placements","Contracted Services",12/12/2017 00:00:00,"6651561",6766.75,"PRIORS COURT FOUNDATION"
"Bracknell Forest Council","http://opendatacommunities.org/id/unitary-authority/bracknell-forest","Bracknell Forest Council","00MA","Family Support Services","Targeted Family Support","Sec 28A - Day Centre Purchases","Contracted Services",12/12/2017 00:00:00,"6651561",5288,"PRIORS COURT FOUNDATION"
"Bracknell Forest Council","http://opendatacommunities.org/id/unitary-authority/bracknell-forest","Bracknell Forest Council","00MA","Management and Support Services - CYPL","Unallocated High Needs Related Expenditure","SEN Non LEA Provision Pre 16","Contracted Services",12/12/2017 00:00:00,"6651561",14550.31,"PRIORS COURT FOUNDATION"
"Bracknell Forest Council","http://opendatacommunities.org/id/unitary-authority/bracknell-forest","Bracknell Forest Council","00MA","Social Care Activities","Social Care Activities","MH Management & Administration","Recruitment Expenses",03/12/2017 00:00:00,"6651568",4608,"CHARLES HUNTER ASSOCIATES"
"Bracknell Forest Council","http://opendatacommunities.org/id/unitary-authority/bracknell-forest","Bracknell Forest Council","00MA","Recreation, Sports and Leisure","Golf Courses","Golf Course Management & Administration","R&M - Service Contracts",04/12/2017 00:00:00,"6651570",980,"BENVILLE AND MARSH LTD"
"Bracknell Forest Council","http://opendatacommunities.org/id/unitary-authority/bracknell-forest","Bracknell Forest Council","00MA","Holding Accounts not in Budget Book - COF","General Holding Accounts","Repairs and Maintenance","R&M - Planned",05/12/2017 00:00:00,"6651571",1000,"BERKSHIRE MECHANICAL SERVICES"
"Bracknell Forest Council","http://opendatacommunities.org/id/unitary-authority/bracknell-forest","Bracknell Forest Council","00MA","Holding Accounts not in Budget Book - COF","General Holding Accounts","Repairs and Maintenance","R&M - Planned",05/12/2017 00:00:00,"6651571",5600,"BERKSHIRE MECHANICAL SERVICES"
"Bracknell Forest Council","http://opendatacommunities.org/id/unitary-authority/bracknell-forest","Bracknell Forest Council","00MA","Improvements & Capitalised Repairs (Council Wide)","","","Construction - Contract Payments",11/12/2017 00:00:00,"6651572",25637.75,"S AND S CARPENTRY AND BUILDING LIMITED"
"Bracknell Forest Council","http://opendatacommunities.org/id/unitary-authority/bracknell-forest","Bracknell Forest Council","00MA","Civic Accomodation","","","Consultant Fees",30/11/2017 00:00:00,"6651573",9120,"ATKINS LTD"
"Bracknell Forest Council","http://opendatacommunities.org/id/unitary-authority/bracknell-forest","Bracknell Forest Council","00MA","Recreation, Sports and Leisure","Indoor Sports & Recreation Facilities","Leisure DSO - Coral Reef","Swimming Pool Chemicals",17/10/2017 00:00:00,"6651574",530,"BRENNTAG LUTTERWORTH"
"Bracknell Forest Council","http://opendatacommunities.org/id/unitary-authority/bracknell-forest","Bracknell Forest Council","00MA","Development Control","Applications - Development Control","Development Control","Consultants Fees",30/11/2017 00:00:00,"6651575",5962.5,"Redact Personal Info"
"Bracknell Forest Council","http://opendatacommunities.org/id/unitary-authority/bracknell-forest","Bracknell Forest Council","00MA","Recreation, Sports and Leisure","Indoor Sports & Recreation Facilities","Leisure DSO - Coral Reef","Swimming Pool Chemicals",17/11/2017 00:00:00,"6651576",530,"BRENNTAG LUTTERWORTH"
"Bracknell Forest Council","http://opendatacommunities.org/id/unitary-authority/bracknell-forest","Bracknell Forest Council","00MA","Commissioning & Service Delivery","Commissioning & Service Delivery","Grants & Donations","Grants and Donations",04/01/2018 00:00:00,"6651581",1000,"PARKINSON'S DISEASE SOCIETY OF THE UK"
"Bracknell Forest Council","http://opendatacommunities.org/id/unitary-authority/bracknell-forest","Bracknell Forest Council","00MA","Children Looked After","Adoption Services","Additional Adoption Support","Client Training & Support",01/06/2017 00:00:00,"6651582",945,"THE CHERRYCROFT PRACTICE"
"Bracknell Forest Council","http://opendatacommunities.org/id/unitary-authority/bracknell-forest","Bracknell Forest Council","00MA","Children Looked After","Adoption Services","Additional Adoption Support","Client Training & Support",26/05/2017 00:00:00,"6651583",4462.5,"THE CHERRYCROFT PRACTICE"
"Bracknell Forest Council","http://opendatacommunities.org/id/unitary-authority/bracknell-forest","Bracknell Forest Council","00MA","Children Looked After","Adoption Services","Additional Adoption Support","Client Training & Support",26/05/2017 00:00:00,"6651586",525,"THE CHERRYCROFT PRACTICE"
"Bracknell Forest Council","http://opendatacommunities.org/id/unitary-authority/bracknell-forest","Bracknell Forest Council","00MA","Recreation, Sports and Leisure","Indoor Sports & Recreation Facilities","Leisure DSO - Coral Reef","Cleaning materials",17/11/2017 00:00:00,"6651587",1228.24,"BOWAK LTD"
"Bracknell Forest Council","http://opendatacommunities.org/id/unitary-authority/bracknell-forest","Bracknell Forest Council","00MA","Children Looked After","Adoption Services","Additional Adoption Support","Client Training & Support",26/05/2017 00:00:00,"6651588",1102.5,"THE CHERRYCROFT PRACTICE"
"Bracknell Forest Council","http://opendatacommunities.org/id/unitary-authority/bracknell-forest","Bracknell Forest Council","00MA","Children Looked After","Adoption Services","Additional Adoption Support","Client Training & Support",26/05/2017 00:00:00,"6651590",1050,"THE CHERRYCROFT PRACTICE"
"Bracknell Forest Council","http://opendatacommunities.org/id/unitary-authority/bracknell-forest","Bracknell Forest Council","00MA","Children Looked After","Adoption Services","Additional Adoption Support","Client Training & Support",22/12/2017 00:00:00,"6651592",2880,"THE CHERRYCROFT PRACTICE"
"Bracknell Forest Council","http://opendatacommunities.org/id/unitary-authority/bracknell-forest","Bracknell Forest Council","00MA","Adults (18-64)","Long Term Support - Community:Supported Living","LD Adults 18-64 Long Term Support - Community:Supported Living","Other Support to Clients",12/12/2017 00:00:00,"6651596",4112,"ROMANS LETTINGS"
"Bracknell Forest Council","http://opendatacommunities.org/id/unitary-authority/bracknell-forest","Bracknell Forest Council","00MA","Business Support","Premises Development","Easthampstead Park Conference Centre","Computer Software",04/01/2018 00:00:00,"6651598",708,"JIGSAW24  SYSTEMS LIMITED"
"Bracknell Forest Council","http://opendatacommunities.org/id/unitary-authority/bracknell-forest","Bracknell Forest Council","00MA","Recycling","Collection","Waste Collection Recycling","Contracted Services",14/12/2017 00:00:00,"6651611",39693.1,"SUEZ RECYCLING AND RECOVERY UK LTD"
"Bracknell Forest Council","http://opendatacommunities.org/id/unitary-authority/bracknell-forest","Bracknell Forest Council","00MA","Recycling","Collection","Waste Collection Recycling","Contracted Services",14/12/2017 00:00:00,"6651611",1450,"SUEZ RECYCLING AND RECOVERY UK LTD"
"Bracknell Forest Council","http://opendatacommunities.org/id/unitary-authority/bracknell-forest","Bracknell Forest Council","00MA","Recycling","Collection","Brown Bin Collection Service","Contracted Services",14/12/2017 00:00:00,"6651611",1450,"SUEZ RECYCLING AND RECOVERY UK LTD"
"Bracknell Forest Council","http://opendatacommunities.org/id/unitary-authority/bracknell-forest","Bracknell Forest Council","00MA","Recycling","Collection","Brown Bin Collection Service","Contracted Services",14/12/2017 00:00:00,"6651611",39693.11,"SUEZ RECYCLING AND RECOVERY UK LTD"
"Bracknell Forest Council","http://opendatacommunities.org/id/unitary-authority/bracknell-forest","Bracknell Forest Council","00MA","Recreation, Sports and Leisure","Indoor Sports & Recreation Facilities","Leisure DSO - Leisure Centre Maintenance","R&M - Reactive",30/09/2016 00:00:00,"6629770",1760,"HMC COMPLIANCE LTD"
"Bracknell Forest Council","http://opendatacommunities.org/id/unitary-authority/bracknell-forest","Bracknell Forest Council","00MA","Coral Reef Refurbishment - outside contract","","","Construction - Other Direct Expenses",24/08/2017 00:00:00,"6643566",3240,"GREAT SENSE LIMITED"
"Bracknell Forest Council","http://opendatacommunities.org/id/unitary-authority/bracknell-forest","Bracknell Forest Council","00MA","Recreation, Sports and Leisure","Indoor Sports & Recreation Facilities","Leisure DSO - Leisure Centre","Equipment - Purchase",24/08/2017 00:00:00,"6643568",1110,"GREAT SENSE LIMITED"
"Bracknell Forest Council","http://opendatacommunities.org/id/unitary-authority/bracknell-forest","Bracknell Forest Council","00MA","Recreation, Sports and Leisure","Indoor Sports & Recreation Facilities","Leisure DSO - Leisure Centre","Equipment - Purchase",24/08/2017 00:00:00,"6643570",774,"GREAT SENSE LIMITED"
"Bracknell Forest Council","http://opendatacommunities.org/id/unitary-authority/bracknell-forest","Bracknell Forest Council","00MA","Recreation, Sports and Leisure","Indoor Sports & Recreation Facilities","Leisure DSO - Coral Reef","Publicity & Marketing",29/09/2017 00:00:00,"6645363",4276,"COMPLETE SIGN SOLUTIONS LTD"
"Bracknell Forest Council","http://opendatacommunities.org/id/unitary-authority/bracknell-forest","Bracknell Forest Council","00MA","Recreation, Sports and Leisure","Indoor Sports & Recreation Facilities","Leisure DSO - Coral Reef Maintenance","Materials",15/09/2017 00:00:00,"6645386",1055,"LEISURETEQ"
"Bracknell Forest Council","http://opendatacommunities.org/id/unitary-authority/bracknell-forest","Bracknell Forest Council","00MA","Recreation, Sports and Leisure","Indoor Sports & Recreation Facilities","Leisure DSO - Coral Reef","Publicity & Marketing",25/09/2017 00:00:00,"6646180",1212,"COMPLETE SIGN SOLUTIONS LTD"
"Bracknell Forest Council","http://opendatacommunities.org/id/unitary-authority/bracknell-forest","Bracknell Forest Council","00MA","Transport Planning, Policy & Strategy","Transport Policy, Planning & Strategy","Monitoring Street Works","Equipment - Purchase",27/10/2017 00:00:00,"6647345",5595.56,"TYCO FIRE & INTEGRATED SOLUTIONS (UK) LTD"
"Bracknell Forest Council","http://opendatacommunities.org/id/unitary-authority/bracknell-forest","Bracknell Forest Council","00MA","Community Capacity Grant","","","Construction - Contract Payments",06/11/2017 00:00:00,"6648201",3390,"SUMO SERVICES LTD"
"Bracknell Forest Council","http://opendatacommunities.org/id/unitary-authority/bracknell-forest","Bracknell Forest Council","00MA","Civic Accomodation","","","Other Direct Expenses",04/11/2017 00:00:00,"6648793",975,"SHORTS ELECTRICAL LTD"
"Bracknell Forest Council","http://opendatacommunities.org/id/unitary-authority/bracknell-forest","Bracknell Forest Council","00MA","Civic Accomodation","","","Construction - Contract Payments",10/11/2017 00:00:00,"6649247",3390,"SUMO SERVICES LTD"
"Bracknell Forest Council","http://opendatacommunities.org/id/unitary-authority/bracknell-forest","Bracknell Forest Council","00MA","NHS Health Check Programme","NHS Health Check Programme","NHS Health Check Programme (Bracknell)","Materials",30/09/2017 00:00:00,"6649252",1080,"FITECH UK LTD"
"Bracknell Forest Council","http://opendatacommunities.org/id/unitary-authority/bracknell-forest","Bracknell Forest Council","00MA","Recreation, Sports and Leisure","Indoor Sports & Recreation Facilities","Leisure DSO - Coral Reef","Cleaning materials",25/10/2017 00:00:00,"6649275",1176.17,"BOWAK LTD"
"Bracknell Forest Council","http://opendatacommunities.org/id/unitary-authority/bracknell-forest","Bracknell Forest Council","00MA","Safeguarding Children and Young People's Services","Social Work","Children Aged Over 11","Agency",15/11/2017 00:00:00,"6649591",1387.5,"BWR RECRUITMENT T/A TOTAL SOCIAL"
"Bracknell Forest Council","http://opendatacommunities.org/id/unitary-authority/bracknell-forest","Bracknell Forest Council","00MA","Waste Collection","Household Waste Collection","Household Waste Collection","Contracted Services",14/12/2017 00:00:00,"6651611",79386.21,"SUEZ RECYCLING AND RECOVERY UK LTD"
"Bracknell Forest Council","http://opendatacommunities.org/id/unitary-authority/bracknell-forest","Bracknell Forest Council","00MA","Waste Collection","Household Waste Collection","Household Waste Collection","Contracted Services",14/12/2017 00:00:00,"6651611",1934.4,"SUEZ RECYCLING AND RECOVERY UK LTD"
"Bracknell Forest Council","http://opendatacommunities.org/id/unitary-authority/bracknell-forest","Bracknell Forest Council","00MA","Children Looked After","Other services for LAC","LAC - Under 11s Expenditure","Other Support to Clients",10/10/2017 00:00:00,"6651614",1935.29,"BIDDENHAM INTERNATIONAL SCHOOL & SPORTS COLLEGE"
"Bracknell Forest Council","http://opendatacommunities.org/id/unitary-authority/bracknell-forest","Bracknell Forest Council","00MA","Public Transport","Concessionary Fares","Concessionary Fares","Contracted Services",08/01/2018 00:00:00,"6651615",5500,"FIRST BEELINE BUSES LIMITED"
"Bracknell Forest Council","http://opendatacommunities.org/id/unitary-authority/bracknell-forest","Bracknell Forest Council","00MA","Children Looked After","Residential care","C&F Learning Disability Placements","Contracted Services",09/11/2017 00:00:00,"6651620",24729.14,"CALCOT SERVICES FOR CHILDREN"
"Bracknell Forest Council","http://opendatacommunities.org/id/unitary-authority/bracknell-forest","Bracknell Forest Council","00MA","Children Looked After","Residential care","C&F Learning Disability Placements","Contracted Services",31/08/2017 00:00:00,"6651621",15835,"QUALITY CARE HOMES (UK) LTD"
"Bracknell Forest Council","http://opendatacommunities.org/id/unitary-authority/bracknell-forest","Bracknell Forest Council","00MA","Family Support Services","Targeted Family Support","Sec 28A - Day Centre Purchases","Contracted Services",15/11/2017 00:00:00,"6651623",7304.22,"CAMBIAN AUTISM SERVICES LTD"
"Bracknell Forest Council","http://opendatacommunities.org/id/unitary-authority/bracknell-forest","Bracknell Forest Council","00MA","Children Looked After","Residential care","C&F Learning Disability Placements","Contracted Services",15/11/2017 00:00:00,"6651623",12665.67,"CAMBIAN AUTISM SERVICES LTD"
"Bracknell Forest Council","http://opendatacommunities.org/id/unitary-authority/bracknell-forest","Bracknell Forest Council","00MA","Management and Support Services - CYPL","Unallocated High Needs Related Expenditure","SEN Non LEA Provision Pre 16","Contracted Services",15/11/2017 00:00:00,"6651623",2164.42,"CAMBIAN AUTISM SERVICES LTD"
"Bracknell Forest Council","http://opendatacommunities.org/id/unitary-authority/bracknell-forest","Bracknell Forest Council","00MA","Family Support Services","Targeted Family Support","Sec 28A - Day Centre Purchases","Contracted Services",24/10/2017 00:00:00,"6651624",6741,"BARNARDO SERVICES LTD"
"Bracknell Forest Council","http://opendatacommunities.org/id/unitary-authority/bracknell-forest","Bracknell Forest Council","00MA","Children Looked After","Residential care","C&F Learning Disability Placements","Contracted Services",24/10/2017 00:00:00,"6651624",6741,"BARNARDO SERVICES LTD"
"Bracknell Forest Council","http://opendatacommunities.org/id/unitary-authority/bracknell-forest","Bracknell Forest Council","00MA","Management and Support Services - CYPL","Unallocated High Needs Related Expenditure","SEN Non LEA Provision Pre 16","Voluntary Sector Service Providers",24/10/2017 00:00:00,"6651624",19038,"BARNARDO SERVICES LTD"
"Bracknell Forest Council","http://opendatacommunities.org/id/unitary-authority/bracknell-forest","Bracknell Forest Council","00MA","Public Transport","Concessionary Fares","Concessionary Fares","Contracted Services",08/01/2018 00:00:00,"6651635",9500,"READING TRANSPORT LTD"
"Bracknell Forest Council","http://opendatacommunities.org/id/unitary-authority/bracknell-forest","Bracknell Forest Council","00MA","Public Transport","Concessionary Fares","Concessionary Fares","Contracted Services",08/01/2018 00:00:00,"6651638",5708.33,"STAGECOACH HANTS AND SURREY"
"Bracknell Forest Council","http://opendatacommunities.org/id/unitary-authority/bracknell-forest","Bracknell Forest Council","00MA","Central Support Services - COF","Construction and Property","Construction & Maintenance","Agency",29/11/2017 00:00:00,"6651656",860,"OYSTER PARTNERSHIP LTD - use 523166"
"Bracknell Forest Council","http://opendatacommunities.org/id/unitary-authority/bracknell-forest","Bracknell Forest Council","00MA","Safeguarding Children and Young People's Services","Social Work","Family Group Conferences","Consultants Fees",28/11/2017 00:00:00,"6651660",512.7,"Redact Personal Info"
"Bracknell Forest Council","http://opendatacommunities.org/id/unitary-authority/bracknell-forest","Bracknell Forest Council","00MA","Development Control","Applications - Development Control","Development Control","Consultants Fees",22/11/2017 00:00:00,"6651664",4457.39,"JACOBS"
"Bracknell Forest Council","http://opendatacommunities.org/id/unitary-authority/bracknell-forest","Bracknell Forest Council","00MA","Business Support","Premises Development","Commercial Properties","R&M - Planned",14/12/2017 00:00:00,"6651687",940,"G2A ENERGY LIMITED"
"Bracknell Forest Council","http://opendatacommunities.org/id/unitary-authority/bracknell-forest","Bracknell Forest Council","00MA","ICT Capital Schemes","","","Other Direct Expenses",13/12/2017 00:00:00,"6651692",3547.17,"INSIGHT DIRECT (UK) LIMITED"
"Bracknell Forest Council","http://opendatacommunities.org/id/unitary-authority/bracknell-forest","Bracknell Forest Council","00MA","ICT Capital Schemes","","","Other Direct Expenses",07/12/2017 00:00:00,"6651693",2436.45,"DELL COMPUTER CORPORATION"
"Bracknell Forest Council","http://opendatacommunities.org/id/unitary-authority/bracknell-forest","Bracknell Forest Council","00MA","Children Looked After","Short breaks for LAC","Larchwood","Agency",06/12/2017 00:00:00,"6651713",533.32,"CARELINE"
"Bracknell Forest Council","http://opendatacommunities.org/id/unitary-authority/bracknell-forest","Bracknell Forest Council","00MA","Central Support Services - COF","Construction and Property","Time Square Office","Materials",08/11/2017 00:00:00,"6651715",1193.92,"SFL MOBILE RADIO LIMITED"
"Bracknell Forest Council","http://opendatacommunities.org/id/unitary-authority/bracknell-forest","Bracknell Forest Council","00MA","Central Support Services - COF","Finance","Payroll","Agency",13/11/2017 00:00:00,"6651716",6375,"JAMES GRAY ASSOCIATES LTD"
"Bracknell Forest Council","http://opendatacommunities.org/id/unitary-authority/bracknell-forest","Bracknell Forest Council","00MA","Central Support Services - COF","Finance","Payroll","Agency",18/12/2017 00:00:00,"6651717",4960.65,"JAMES GRAY ASSOCIATES LTD"
"Bracknell Forest Council","http://opendatacommunities.org/id/unitary-authority/bracknell-forest","Bracknell Forest Council","00MA","Cemeteries, Crematoria & Mortuary Services","Cemeteries & Crematorium","Easthampstead Park Cemetery & Crematorium","R&M - Reactive",15/11/2017 00:00:00,"6651719",575,"S AND S CARPENTRY AND BUILDING LIMITED"
"Bracknell Forest Council","http://opendatacommunities.org/id/unitary-authority/bracknell-forest","Bracknell Forest Council","00MA","Open Spaces","Community Parks & Open Spaces","Urban Parks  - Maintenance","R&M - Planned",03/01/2018 00:00:00,"6651724",1635,"BERKSHIRE TREE CARE"
"Bracknell Forest Council","http://opendatacommunities.org/id/unitary-authority/bracknell-forest","Bracknell Forest Council","00MA","Holding Accounts not in Budget Book - COF","General Holding Accounts","Certificated Contract Payments","R&M - Service Contracts",11/12/2017 00:00:00,"6651727",1671.08,"HSL/HERTEL SOLUTIONS LTD"
"Bracknell Forest Council","http://opendatacommunities.org/id/unitary-authority/bracknell-forest","Bracknell Forest Council","00MA","Cemeteries, Crematoria & Mortuary Services","Cemeteries & Crematorium","Easthampstead Park Cemetery & Crematorium","Cost of Goods Sold",07/11/2017 00:00:00,"6651731",674,"TELESHORE UK LTD"
"Bracknell Forest Council","http://opendatacommunities.org/id/unitary-authority/bracknell-forest","Bracknell Forest Council","00MA","Children Looked After","Other services for LAC","LAC - Semi Independent Living","Contracted Services",04/12/2017 00:00:00,"6651741",2001,"BRIGHTER STEPS LTD"
"Bracknell Forest Council","http://opendatacommunities.org/id/unitary-authority/bracknell-forest","Bracknell Forest Council","00MA","Children Looked After","Other services for LAC","LAC - Semi Independent Living","Contracted Services",05/12/2017 00:00:00,"6651742",5429.06,"FAIRWAYS CARE (UK) LTD"
"Bracknell Forest Council","http://opendatacommunities.org/id/unitary-authority/bracknell-forest","Bracknell Forest Council","00MA","Children Looked After","Other services for LAC","LAC - Semi Independent Living","Contracted Services",12/12/2017 00:00:00,"6651744",819.25,"LOOK AHEAD CARE AND SUPPORT"
"Bracknell Forest Council","http://opendatacommunities.org/id/unitary-authority/bracknell-forest","Bracknell Forest Council","00MA","Children Looked After","Residential care","Children's Home Placements","Contracted Services",04/12/2017 00:00:00,"6651745",13285.67,"CAUSEWAY CARE HOMES LIMITED"
"Bracknell Forest Council","http://opendatacommunities.org/id/unitary-authority/bracknell-forest","Bracknell Forest Council","00MA","Children Looked After","Residential care","Children's Home Placements","Contracted Services",01/12/2017 00:00:00,"6651746",13285.57,"KENNET CARE"
"Bracknell Forest Council","http://opendatacommunities.org/id/unitary-authority/bracknell-forest","Bracknell Forest Council","00MA","Commissioning & Service Delivery","Commissioning & Service Delivery","Grants & Donations","Contracted Services",07/12/2017 00:00:00,"6651747",3203.1,"ACTION FOR PEOPLE"
"Bracknell Forest Council","http://opendatacommunities.org/id/unitary-authority/bracknell-forest","Bracknell Forest Council","00MA","Asylum Seekers","Asylum Seekers LAC","Asylum Seekers (UASC)","Contracted Services",30/11/2017 00:00:00,"6651749",3107.14,"SUNBEAM FOSTERING AGENCY LIMITED"
"Bracknell Forest Council","http://opendatacommunities.org/id/unitary-authority/bracknell-forest","Bracknell Forest Council","00MA","Children Looked After","Fostering services","Independent Fostering (Non BFBC)","Contracted Services",01/12/2017 00:00:00,"6651750",8208.36,"BY THE BRIDGE"
"Bracknell Forest Council","http://opendatacommunities.org/id/unitary-authority/bracknell-forest","Bracknell Forest Council","00MA","Asylum Seekers","Asylum Seekers LAC","Asylum Seekers (UASC)","Contracted Services",30/11/2017 00:00:00,"6651751",3150,"SUNBEAM FOSTERING AGENCY LIMITED"
"Bracknell Forest Council","http://opendatacommunities.org/id/unitary-authority/bracknell-forest","Bracknell Forest Council","00MA","Children Looked After","Fostering services","Independent Fostering (Non BFBC)","Contracted Services",01/12/2017 00:00:00,"6651752",5615.65,"ISP CHILDCARE/ central office"
"Bracknell Forest Council","http://opendatacommunities.org/id/unitary-authority/bracknell-forest","Bracknell Forest Council","00MA","Children Looked After","Fostering services","Independent Fostering (Non BFBC)","Contracted Services",01/12/2017 00:00:00,"6651753",5615.65,"ISP CHILDCARE/ central office"
"Bracknell Forest Council","http://opendatacommunities.org/id/unitary-authority/bracknell-forest","Bracknell Forest Council","00MA","Children Looked After","Fostering services","Independent Fostering (Non BFBC)","Contracted Services",01/12/2017 00:00:00,"6651754",3887.62,"FUSION FOSTERING"
"Bracknell Forest Council","http://opendatacommunities.org/id/unitary-authority/bracknell-forest","Bracknell Forest Council","00MA","Children Looked After","Fostering services","Independent Fostering (Non BFBC)","Contracted Services",01/12/2017 00:00:00,"6651755",3887.62,"FUSION FOSTERING"
"Bracknell Forest Council","http://opendatacommunities.org/id/unitary-authority/bracknell-forest","Bracknell Forest Council","00MA","Children Looked After","Fostering services","Independent Fostering (Non BFBC)","Contracted Services",01/12/2017 00:00:00,"6651756",4118.57,"FUSION FOSTERING"
"Bracknell Forest Council","http://opendatacommunities.org/id/unitary-authority/bracknell-forest","Bracknell Forest Council","00MA","Children Looked After","Fostering services","Independent Fostering (Non BFBC)","Contracted Services",30/11/2017 00:00:00,"6651759",3835.8,"FOSTERPLUS LTD"
"Bracknell Forest Council","http://opendatacommunities.org/id/unitary-authority/bracknell-forest","Bracknell Forest Council","00MA","Children Looked After","Fostering services","Independent Fostering (Non BFBC)","Contracted Services",01/12/2017 00:00:00,"6651760",3365.71,"BRIGHTER FUTURES FOSTER CARE LTD"
"Bracknell Forest Council","http://opendatacommunities.org/id/unitary-authority/bracknell-forest","Bracknell Forest Council","00MA","Central Support Services - COF","Construction and Property","Energy Section","Consultants Fees",11/12/2017 00:00:00,"6651764",1596.82,"ESL- ENERGY SAVING LIGHTING (UK) LTD"
"Bracknell Forest Council","http://opendatacommunities.org/id/unitary-authority/bracknell-forest","Bracknell Forest Council","00MA","Central Support Services - COF","Construction and Property","Energy Section","Consultants Fees",11/12/2017 00:00:00,"6651765",1584.01,"ESL- ENERGY SAVING LIGHTING (UK) LTD"
"Bracknell Forest Council","http://opendatacommunities.org/id/unitary-authority/bracknell-forest","Bracknell Forest Council","00MA","Children Looked After","Fostering services","Independent Fostering (Non BFBC)","Contracted Services",04/12/2017 00:00:00,"6651766",7723.34,"FCA / FOSTER CARE ASSOCIATES LTD"
"Bracknell Forest Council","http://opendatacommunities.org/id/unitary-authority/bracknell-forest","Bracknell Forest Council","00MA","Recreation, Sports and Leisure","Golf Courses","Leisure DSO - Downshire Catering","Cost of Goods - Bar",13/12/2017 00:00:00,"6651772",573.57,"MATTHEW CLARK WHOLESALE"
"Bracknell Forest Council","http://opendatacommunities.org/id/unitary-authority/bracknell-forest","Bracknell Forest Council","00MA","Open Spaces","Community Parks & Open Spaces","Tree Service","Contracted Services",06/12/2017 00:00:00,"6651773",720,"ARTEMIS TREE SERVICES"
"Bracknell Forest Council","http://opendatacommunities.org/id/unitary-authority/bracknell-forest","Bracknell Forest Council","00MA","Carbon Reduction Measures","","","Construction - Other Direct Expenses",01/12/2017 00:00:00,"6651774",2857,"ESL- ENERGY SAVING LIGHTING (UK) LTD"
"Bracknell Forest Council","http://opendatacommunities.org/id/unitary-authority/bracknell-forest","Bracknell Forest Council","00MA","Safeguarding Children and Young People's Services","Social Work","Children Aged Over 11","Agency",10/01/2018 00:00:00,"6651775",1387.5,"BWR RECRUITMENT T/A TOTAL SOCIAL"
"Bracknell Forest Council","http://opendatacommunities.org/id/unitary-authority/bracknell-forest","Bracknell Forest Council","00MA","Safeguarding Children and Young People's Services","Social Work","Children Aged Over 11","Agency",10/01/2018 00:00:00,"6651776",1387.5,"BWR RECRUITMENT T/A TOTAL SOCIAL"
"Bracknell Forest Council","http://opendatacommunities.org/id/unitary-authority/bracknell-forest","Bracknell Forest Council","00MA","Safeguarding Children and Young People's Services","Social Work","Children Aged Over 11","Agency",10/01/2018 00:00:00,"6651777",1387.5,"BWR RECRUITMENT T/A TOTAL SOCIAL"
"Bracknell Forest Council","http://opendatacommunities.org/id/unitary-authority/bracknell-forest","Bracknell Forest Council","00MA","Safeguarding Children and Young People's Services","Social Work","Children Aged Over 11","Agency",10/01/2018 00:00:00,"6651778",1387.5,"BWR RECRUITMENT T/A TOTAL SOCIAL"
"Bracknell Forest Council","http://opendatacommunities.org/id/unitary-authority/bracknell-forest","Bracknell Forest Council","00MA","Safeguarding Children and Young People's Services","Social Work","Children Aged Over 11","Agency",10/01/2018 00:00:00,"6651779",1617.45,"BWR RECRUITMENT T/A TOTAL SOCIAL"
"Bracknell Forest Council","http://opendatacommunities.org/id/unitary-authority/bracknell-forest","Bracknell Forest Council","00MA","Safeguarding Children and Young People's Services","Social Work","Children Aged Over 11","Agency",10/01/2018 00:00:00,"6651780",825,"BWR RECRUITMENT T/A TOTAL SOCIAL"
"Bracknell Forest Council","http://opendatacommunities.org/id/unitary-authority/bracknell-forest","Bracknell Forest Council","00MA","Management and Support Services - CYPL","De-Delegated Expenditure","HTS Interim","Taxi Fares - Home/School Transport",20/12/2017 00:00:00,"6651781",7319,"CROWN WHEELCHAIR TRAVEL"
"Bracknell Forest Council","http://opendatacommunities.org/id/unitary-authority/bracknell-forest","Bracknell Forest Council","00MA","Management and Support Services - CYPL","De-Delegated Expenditure","HTS Interim","Taxi Fares - Home/School Transport",20/12/2017 00:00:00,"6651783",13719,"CROWN WHEELCHAIR TRAVEL"
"Bracknell Forest Council","http://opendatacommunities.org/id/unitary-authority/bracknell-forest","Bracknell Forest Council","00MA","Parking Services","Off Street Parking","Off Street Parking","Other Fees for Bought-in Services",12/12/2017 00:00:00,"6651784",1551.67,"EXPONENTIAL-E LIMITED"
"Bracknell Forest Council","http://opendatacommunities.org/id/unitary-authority/bracknell-forest","Bracknell Forest Council","00MA","Management and Support Services - CYPL","De-Delegated Expenditure","HTS Interim","Taxi Fares - Home/School Transport",31/12/2017 00:00:00,"6651790",2808,"JJM TAXIS & ZULU CARS LTD"
"Bracknell Forest Council","http://opendatacommunities.org/id/unitary-authority/bracknell-forest","Bracknell Forest Council","00MA","Management and Support Services - CYPL","De-Delegated Expenditure","HTS Interim","Taxi Fares - Home/School Transport",31/12/2017 00:00:00,"6651790",4782.6,"JJM TAXIS & ZULU CARS LTD"
"Bracknell Forest Council","http://opendatacommunities.org/id/unitary-authority/bracknell-forest","Bracknell Forest Council","00MA","Management and Support Services - CYPL","De-Delegated Expenditure","HTS Interim","Taxi Fares - Home/School Transport",31/12/2017 00:00:00,"6651790",1950,"JJM TAXIS & ZULU CARS LTD"
"Bracknell Forest Council","http://opendatacommunities.org/id/unitary-authority/bracknell-forest","Bracknell Forest Council","00MA","Management and Support Services - CYPL","De-Delegated Expenditure","HTS Interim","Taxi Fares - Home/School Transport",31/12/2017 00:00:00,"6651790",3337.75,"JJM TAXIS & ZULU CARS LTD"
"Bracknell Forest Council","http://opendatacommunities.org/id/unitary-authority/bracknell-forest","Bracknell Forest Council","00MA","Management and Support Services - CYPL","De-Delegated Expenditure","HTS Interim","Taxi Fares - Home/School Transport",31/12/2017 00:00:00,"6651790",7280,"JJM TAXIS & ZULU CARS LTD"
"Bracknell Forest Council","http://opendatacommunities.org/id/unitary-authority/bracknell-forest","Bracknell Forest Council","00MA","Management and Support Services - CYPL","De-Delegated Expenditure","HTS Interim","Taxi Fares - Home/School Transport",31/12/2017 00:00:00,"6651790",5405.23,"JJM TAXIS & ZULU CARS LTD"
"Bracknell Forest Council","http://opendatacommunities.org/id/unitary-authority/bracknell-forest","Bracknell Forest Council","00MA","Children Looked After","Adoption Services","C & F-Adoption Advisory Service","RB of Windsor & Maidenhead",17/10/2017 00:00:00,"6651792",61549,"ROYAL BOROUGH OF WINDSOR &  MAIDENHEAD"
"Bracknell Forest Council","http://opendatacommunities.org/id/unitary-authority/bracknell-forest","Bracknell Forest Council","00MA","Adults (18-64)","Long Term Support - Community:Supported Living","LD Adults 18-64 Long Term Support - Community:Supported Living","Other Support to Clients",19/12/2017 00:00:00,"6651796",1312.87,"RADIAN"
"Bracknell Forest Council","http://opendatacommunities.org/id/unitary-authority/bracknell-forest","Bracknell Forest Council","00MA","Management and Support Services - CYPL","De-Delegated Expenditure","HTS Interim","Taxi Fares - Home/School Transport",28/12/2017 00:00:00,"6651799",5480,"BERKSHIRE EDUCATION TRAVEL"
"Bracknell Forest Council","http://opendatacommunities.org/id/unitary-authority/bracknell-forest","Bracknell Forest Council","00MA","Management and Support Services - CYPL","De-Delegated Expenditure","HTS Interim","Taxi Fares - Home/School Transport",28/12/2017 00:00:00,"6651799",690,"BERKSHIRE EDUCATION TRAVEL"
"Bracknell Forest Council","http://opendatacommunities.org/id/unitary-authority/bracknell-forest","Bracknell Forest Council","00MA","Management and Support Services - CYPL","De-Delegated Expenditure","HTS Interim","Taxi Fares - Home/School Transport",28/12/2017 00:00:00,"6651802",7560,"BERKSHIRE EDUCATION TRAVEL"
"Bracknell Forest Council","http://opendatacommunities.org/id/unitary-authority/bracknell-forest","Bracknell Forest Council","00MA","Management and Support Services - CYPL","De-Delegated Expenditure","HTS Interim","Taxi Fares - Home/School Transport",28/12/2017 00:00:00,"6651802",1860,"BERKSHIRE EDUCATION TRAVEL"
"Bracknell Forest Council","http://opendatacommunities.org/id/unitary-authority/bracknell-forest","Bracknell Forest Council","00MA","Civic Accomodation","","","Construction - Contract Payments",30/11/2017 00:00:00,"6651803",3235,"FOREST ENVIRONMENTAL LIMITED"
"Bracknell Forest Council","http://opendatacommunities.org/id/unitary-authority/bracknell-forest","Bracknell Forest Council","00MA","Management and Support Services - CYPL","De-Delegated Expenditure","HTS Interim","Taxi Fares - Home/School Transport",28/12/2017 00:00:00,"6651805",6285,"BERKSHIRE EDUCATION TRAVEL"
"Bracknell Forest Council","http://opendatacommunities.org/id/unitary-authority/bracknell-forest","Bracknell Forest Council","00MA","Management and Support Services - CYPL","De-Delegated Expenditure","HTS Interim","Taxi Fares - Home/School Transport",28/12/2017 00:00:00,"6651805",1670,"BERKSHIRE EDUCATION TRAVEL"
"Bracknell Forest Council","http://opendatacommunities.org/id/unitary-authority/bracknell-forest","Bracknell Forest Council","00MA","Management and Support Services - CYPL","De-Delegated Expenditure","HTS Interim","Taxi Fares - Home/School Transport",28/12/2017 00:00:00,"6651807",6255,"BERKSHIRE EDUCATION TRAVEL"
"Bracknell Forest Council","http://opendatacommunities.org/id/unitary-authority/bracknell-forest","Bracknell Forest Council","00MA","Safeguarding Children and Young People's Services","Social Work","Family Group Conferences","Consultants Fees",22/12/2017 00:00:00,"6651809",548.24,"Redact Personal Info"
"Bracknell Forest Council","http://opendatacommunities.org/id/unitary-authority/bracknell-forest","Bracknell Forest Council","00MA","Management and Support Services - CYPL","De-Delegated Expenditure","HTS Interim","Taxi Fares - Home/School Transport",28/12/2017 00:00:00,"6651811",5182.5,"BERKSHIRE EDUCATION TRAVEL"
"Bracknell Forest Council","http://opendatacommunities.org/id/unitary-authority/bracknell-forest","Bracknell Forest Council","00MA","Management and Support Services - CYPL","De-Delegated Expenditure","HTS Interim","Taxi Fares - Home/School Transport",28/12/2017 00:00:00,"6651811",2975,"BERKSHIRE EDUCATION TRAVEL"
"Bracknell Forest Council","http://opendatacommunities.org/id/unitary-authority/bracknell-forest","Bracknell Forest Council","00MA","Management and Support Services - CYPL","De-Delegated Expenditure","HTS Interim","Taxi Fares - Home/School Transport",28/12/2017 00:00:00,"6651812",9235,"BERKSHIRE EDUCATION TRAVEL"
"Bracknell Forest Council","http://opendatacommunities.org/id/unitary-authority/bracknell-forest","Bracknell Forest Council","00MA","Management and Support Services - CYPL","De-Delegated Expenditure","HTS Interim","Taxi Fares - Home/School Transport",28/12/2017 00:00:00,"6651812",1440,"BERKSHIRE EDUCATION TRAVEL"
"Bracknell Forest Council","http://opendatacommunities.org/id/unitary-authority/bracknell-forest","Bracknell Forest Council","00MA","Management and Support Services - CYPL","De-Delegated Expenditure","HTS Interim","Taxi Fares - Home/School Transport",28/12/2017 00:00:00,"6651814",4740,"BERKSHIRE EDUCATION TRAVEL"
"Bracknell Forest Council","http://opendatacommunities.org/id/unitary-authority/bracknell-forest","Bracknell Forest Council","00MA","Management and Support Services - CYPL","De-Delegated Expenditure","HTS Interim","Taxi Fares - Home/School Transport",28/12/2017 00:00:00,"6651815",7090,"BERKSHIRE EDUCATION TRAVEL"
"Bracknell Forest Council","http://opendatacommunities.org/id/unitary-authority/bracknell-forest","Bracknell Forest Council","00MA","Management and Support Services - CYPL","De-Delegated Expenditure","HTS Interim","Taxi Fares - Home/School Transport",28/12/2017 00:00:00,"6651815",3480,"BERKSHIRE EDUCATION TRAVEL"
"Bracknell Forest Council","http://opendatacommunities.org/id/unitary-authority/bracknell-forest","Bracknell Forest Council","00MA","Children Looked After","Leaving care support services","Care Leavers Team & Client Costs","Other Support to Clients",27/12/2017 00:00:00,"6651820",1027.2,"LOOK AHEAD CARE AND SUPPORT"
"Bracknell Forest Council","http://opendatacommunities.org/id/unitary-authority/bracknell-forest","Bracknell Forest Council","00MA","Civic Accomodation","","","Building Construction Consultant",22/12/2017 00:00:00,"6651826",9420,"SOILS LTD"
"Bracknell Forest Council","http://opendatacommunities.org/id/unitary-authority/bracknell-forest","Bracknell Forest Council","00MA","Central Support Services - COF","Fleet","Transport Services","Taxi Charges",02/01/2018 00:00:00,"6651827",1310,"BERKSHIRE EDUCATION TRAVEL"
"Bracknell Forest Council","http://opendatacommunities.org/id/unitary-authority/bracknell-forest","Bracknell Forest Council","00MA","NHS Health Check Programme","NHS Health Check Programme","NHS Health Check Programme (Bracknell)","Materials",13/11/2017 00:00:00,"6651829",587,"FITECH UK LTD"
"Bracknell Forest Council","http://opendatacommunities.org/id/unitary-authority/bracknell-forest","Bracknell Forest Council","00MA","Recreation, Sports and Leisure","Indoor Sports & Recreation Facilities","Leisure DSO - Leisure Centre Maintenance","R&M - Reactive",05/12/2017 00:00:00,"6651835",665.69,"YESSS ELECTRICAL"
"Bracknell Forest Council","http://opendatacommunities.org/id/unitary-authority/bracknell-forest","Bracknell Forest Council","00MA","Recreation, Sports and Leisure","Indoor Sports & Recreation Facilities","Leisure DSO - Coral Reef","Swimming Pool Chemicals",06/12/2017 00:00:00,"6651843",1010.06,"UNIVAR B V"
"Bracknell Forest Council","http://opendatacommunities.org/id/unitary-authority/bracknell-forest","Bracknell Forest Council","00MA","Other Welfare Services","Other Welfare Services","Forestcare - Lifeline","Equipment - Purchase",30/11/2017 00:00:00,"6651844",1500,"TUNSTALL TELECOM LTD"
"Bracknell Forest Council","http://opendatacommunities.org/id/unitary-authority/bracknell-forest","Bracknell Forest Council","00MA","Recreation, Sports and Leisure","Indoor Sports & Recreation Facilities","Leisure DSO - Leisure Centre","Water & Sewerage",15/12/2017 00:00:00,"6651850",763.98,"CASTLE WATER LIMITED"
"Bracknell Forest Council","http://opendatacommunities.org/id/unitary-authority/bracknell-forest","Bracknell Forest Council","00MA","Central Support Services - COF","Policy Unit","Town & Country","Contracted Services",07/12/2017 00:00:00,"6651851",3400,"D2D DISTRIBUTION LTD"
"Bracknell Forest Council","http://opendatacommunities.org/id/unitary-authority/bracknell-forest","Bracknell Forest Council","00MA","Recreation, Sports and Leisure","Indoor Sports & Recreation Facilities","Leisure DSO - Leisure Centre","Water & Sewerage",15/12/2017 00:00:00,"6651852",634.46,"CASTLE WATER LIMITED"
"Bracknell Forest Council","http://opendatacommunities.org/id/unitary-authority/bracknell-forest","Bracknell Forest Council","00MA","Central Support Services - COF","Information Technology","Web Team","Licences",01/11/2017 00:00:00,"6651854",1000,"CIPFA BUSINESS LTD"
"Bracknell Forest Council","http://opendatacommunities.org/id/unitary-authority/bracknell-forest","Bracknell Forest Council","00MA","Recreation, Sports and Leisure","Indoor Sports & Recreation Facilities","Leisure DSO - Leisure Centre","Water & Sewerage",15/12/2017 00:00:00,"6651856",625.96,"CASTLE WATER LIMITED"
"Bracknell Forest Council","http://opendatacommunities.org/id/unitary-authority/bracknell-forest","Bracknell Forest Council","00MA","Commissioning & Service Delivery","Commissioning & Service Delivery","Property Maintenance","Consultants Fees",30/11/2017 00:00:00,"6651857",882,"THE QUOIN CONSULTANCY"
"Bracknell Forest Council","http://opendatacommunities.org/id/unitary-authority/bracknell-forest","Bracknell Forest Council","00MA","Post 16 Provision","High needs budget fpr post-16 provision","SEN Non LEA Provision Post16","Voluntary Sector Service Providers",21/12/2017 00:00:00,"6651867",17557.33,"ORCHARD HILL COLLEGE"
"Bracknell Forest Council","http://opendatacommunities.org/id/unitary-authority/bracknell-forest","Bracknell Forest Council","00MA","Post 16 Provision","High needs budget fpr post-16 provision","SEN Non LEA Provision Post16","Voluntary Sector Service Providers",12/12/2017 00:00:00,"6651869",26170.31,"BERKS COLLEGE OF AGRICULTURE"
"Bracknell Forest Council","http://opendatacommunities.org/id/unitary-authority/bracknell-forest","Bracknell Forest Council","00MA","Recreation, Sports and Leisure","Golf Courses","Leisure DSO - Downshire Catering","Catering Consumables",15/11/2017 00:00:00,"6651873",692.5,"ASCOT WHOLESALE"
"Bracknell Forest Council","http://opendatacommunities.org/id/unitary-authority/bracknell-forest","Bracknell Forest Council","00MA","Children Looked After","Fostering services","Independent Fostering (Non BFBC)","Contracted Services",30/11/2017 00:00:00,"6651876",4279.24,"FCA / FOSTER CARE ASSOCIATES LTD"
"Bracknell Forest Council","http://opendatacommunities.org/id/unitary-authority/bracknell-forest","Bracknell Forest Council","00MA","Children Looked After","Fostering services","Independent Fostering (Non BFBC)","Contracted Services",30/11/2017 00:00:00,"6651877",3501.32,"FCA / FOSTER CARE ASSOCIATES LTD"
"Bracknell Forest Council","http://opendatacommunities.org/id/unitary-authority/bracknell-forest","Bracknell Forest Council","00MA","Children Looked After","Fostering services","Independent Fostering (Non BFBC)","Contracted Services",01/12/2017 00:00:00,"6651880",3861.67,"FCA / FOSTER CARE ASSOCIATES LTD"
"Bracknell Forest Council","http://opendatacommunities.org/id/unitary-authority/bracknell-forest","Bracknell Forest Council","00MA","Children Looked After","Fostering services","Independent Fostering (Non BFBC)","Contracted Services",01/12/2017 00:00:00,"6651884",3901.66,"FCA / FOSTER CARE ASSOCIATES LTD"
"Bracknell Forest Council","http://opendatacommunities.org/id/unitary-authority/bracknell-forest","Bracknell Forest Council","00MA","Children Looked After","Fostering services","Independent Fostering (Non BFBC)","Contracted Services",01/12/2017 00:00:00,"6651887",3192.38,"FCA / FOSTER CARE ASSOCIATES LTD"
"Bracknell Forest Council","http://opendatacommunities.org/id/unitary-authority/bracknell-forest","Bracknell Forest Council","00MA","Transport Planning, Policy & Strategy","Transport Policy, Planning & Strategy","Monitoring Street Works","Equipment - Purchase",15/12/2017 00:00:00,"6651889",1500,"TYCO FIRE & INTEGRATED SOLUTIONS (UK) LTD"
"Bracknell Forest Council","http://opendatacommunities.org/id/unitary-authority/bracknell-forest","Bracknell Forest Council","00MA","Children Looked After","Fostering services","Independent Fostering (Non BFBC)","Contracted Services",01/12/2017 00:00:00,"6651891",5513.66,"COMPASS FOSTERING SOUTH LIMITED"
"Bracknell Forest Council","http://opendatacommunities.org/id/unitary-authority/bracknell-forest","Bracknell Forest Council","00MA","Children Looked After","Fostering services","Independent Fostering (Non BFBC)","Contracted Services",08/12/2017 00:00:00,"6651893",3875,"NEXT STEP FOSTERING SERVICES LTD"
"Bracknell Forest Council","http://opendatacommunities.org/id/unitary-authority/bracknell-forest","Bracknell Forest Council","00MA","Children Looked After","Fostering services","Independent Fostering (Non BFBC)","Contracted Services",30/11/2017 00:00:00,"6651897",6428.7,"INTEGRATED FOSTERING SERVICES LTD"
"Bracknell Forest Council","http://opendatacommunities.org/id/unitary-authority/bracknell-forest","Bracknell Forest Council","00MA","Improvements & Capitalised Repairs (Council Wide)","","","Construction - Contract Payments",13/12/2017 00:00:00,"6651899",15626.87,"H20 SERVICING LTD"
"Bracknell Forest Council","http://opendatacommunities.org/id/unitary-authority/bracknell-forest","Bracknell Forest Council","00MA","Improvements & Capitalised Repairs (Council Wide)","","","Construction - Contract Payments",13/12/2017 00:00:00,"6651899",650,"H20 SERVICING LTD"
"Bracknell Forest Council","http://opendatacommunities.org/id/unitary-authority/bracknell-forest","Bracknell Forest Council","00MA","Recreation, Sports and Leisure","Indoor Sports & Recreation Facilities","Leisure DSO - Coral Reef","Equipment - Purchase",04/12/2017 00:00:00,"6651900",522.53,"SETON LTD"
"Bracknell Forest Council","http://opendatacommunities.org/id/unitary-authority/bracknell-forest","Bracknell Forest Council","00MA","Children Looked After","Fostering services","Independent Fostering (Non BFBC)","Contracted Services",01/01/2018 00:00:00,"6651901",3510.75,"FUTURES FOR CHILDREN LTD"
"Bracknell Forest Council","http://opendatacommunities.org/id/unitary-authority/bracknell-forest","Bracknell Forest Council","00MA","Children Looked After","Fostering services","Independent Fostering (Non BFBC)","Contracted Services",01/01/2018 00:00:00,"6651902",3229.89,"FUTURES FOR CHILDREN LTD"
"Bracknell Forest Council","http://opendatacommunities.org/id/unitary-authority/bracknell-forest","Bracknell Forest Council","00MA","Children Looked After","Fostering services","Independent Fostering (Non BFBC)","Contracted Services",13/12/2017 00:00:00,"6651903",7933.52,"NEXT STEP FOSTERING SERVICES LTD"
"Bracknell Forest Council","http://opendatacommunities.org/id/unitary-authority/bracknell-forest","Bracknell Forest Council","00MA","Children Looked After","Fostering services","Independent Fostering (Non BFBC)","Contracted Services",15/12/2017 00:00:00,"6651904",3556.01,"FOSTERING SOLUTIONS LTD"
"Bracknell Forest Council","http://opendatacommunities.org/id/unitary-authority/bracknell-forest","Bracknell Forest Council","00MA","Planning Policy","Structure & Local Planning","Local Development framework","Professional Subscriptions & Legal Practising Cert",29/11/2017 00:00:00,"6651914",500,"OXFORD CITY COUNCIL"
"Bracknell Forest Council","http://opendatacommunities.org/id/unitary-authority/bracknell-forest","Bracknell Forest Council","00MA","Commissioning & Service Delivery","Commissioning & Service Delivery","Social Services Finance","Staff Public Transport Fares",05/01/2018 00:00:00,"6651916",3026,"RSP LTD"
"Bracknell Forest Council","http://opendatacommunities.org/id/unitary-authority/bracknell-forest","Bracknell Forest Council","00MA","Holding Accounts not in Budget Book - COF","General Holding Accounts","KGB Cleaning","Contract Cleaning",31/12/2017 00:00:00,"6651917",120146.17,"KGB CLEANING SOUTH WEST LIMITED"
"Bracknell Forest Council","http://opendatacommunities.org/id/unitary-authority/bracknell-forest","Bracknell Forest Council","00MA","Children Looked After","Leaving care support services","Care Leavers Team & Client Costs","Other Support to Clients",12/12/2017 00:00:00,"6651918",951.8,"LOOK AHEAD CARE AND SUPPORT"
"Bracknell Forest Council","http://opendatacommunities.org/id/unitary-authority/bracknell-forest","Bracknell Forest Council","00MA","Holding Accounts in Budget Book COF","Corporate Services - Office Services","Postal Services","Postage",22/12/2017 00:00:00,"6651919",1500,"FP TELESET"
"Bracknell Forest Council","http://opendatacommunities.org/id/unitary-authority/bracknell-forest","Bracknell Forest Council","00MA","Commissioning & Service Delivery","Commissioning & Service Delivery","Social Services Finance","Staff Public Transport Fares",29/12/2017 00:00:00,"6651923",3217.1,"RSP LTD"
"Bracknell Forest Council","http://opendatacommunities.org/id/unitary-authority/bracknell-forest","Bracknell Forest Council","00MA","Other Education and Community Budget","Service strategy and other education functions","Education Psychology Service","Translating & Interpreting",01/12/2017 00:00:00,"6651928",925,"KIMTERPRETING/ KIM HELMAN"
"Bracknell Forest Council","http://opendatacommunities.org/id/unitary-authority/bracknell-forest","Bracknell Forest Council","00MA","Public Transport","Support To Operators","Public Transport Subsidy","Contracted Services",31/10/2017 00:00:00,"6651932",7083.33,"KEEP MOBILE"
"Bracknell Forest Council","http://opendatacommunities.org/id/unitary-authority/bracknell-forest","Bracknell Forest Council","00MA","Management and Support Services - CYPL","Unallocated High Needs Related Expenditure","Supporting SEN Pre 16","Voluntary Sector Service Providers",12/09/2017 00:00:00,"6651936",647.5,"MONARCH EDUCATION"
"Bracknell Forest Council","http://opendatacommunities.org/id/unitary-authority/bracknell-forest","Bracknell Forest Council","00MA","Central Support Services - COF","Finance","Technical Accountancy","Computer Software Maintenance",01/11/2017 00:00:00,"6651949",520,"LE&AS  LEGAL ESCROW & ARBITRATION SERVICES LTD"
"Bracknell Forest Council","http://opendatacommunities.org/id/unitary-authority/bracknell-forest","Bracknell Forest Council","00MA","Central Support Services - COF","Valuers","Property Services","Agency",30/11/2017 00:00:00,"6651962",1000,"WILKS HEAD & EVE"
"Bracknell Forest Council","http://opendatacommunities.org/id/unitary-authority/bracknell-forest","Bracknell Forest Council","00MA","Children Looked After","Residential care","Children's Home Placements","Contracted Services",03/01/2018 00:00:00,"6651964",13285.57,"KENNET CARE"
"Bracknell Forest Council","http://opendatacommunities.org/id/unitary-authority/bracknell-forest","Bracknell Forest Council","00MA","Management and Support Services - CYPL","Unallocated High Needs Related Expenditure","SEN Non LEA Provision Pre 16","Voluntary Sector Service Providers",09/01/2018 00:00:00,"6651968",7104.6,"I CAN SERVICES LTD"
"Bracknell Forest Council","http://opendatacommunities.org/id/unitary-authority/bracknell-forest","Bracknell Forest Council","00MA","Holding Accounts in Budget Book COF","Corporate Services - Office Services","Central Photocopying","Photocopying",12/10/2017 00:00:00,"6651969",8652.15,"RICOH UK LTD"
"Bracknell Forest Council","http://opendatacommunities.org/id/unitary-authority/bracknell-forest","Bracknell Forest Council","00MA","Recreation, Sports and Leisure","Indoor Sports & Recreation Facilities","Leisure Centre - Catering General","Equipment - R&M",27/11/2017 00:00:00,"6651970",900,"HUGHES GROUP LTD"
"Bracknell Forest Council","http://opendatacommunities.org/id/unitary-authority/bracknell-forest","Bracknell Forest Council","00MA","Management and Support Services - CYPL","Unallocated High Needs Related Expenditure","SEN Non LEA Provision Pre 16","Voluntary Sector Service Providers",09/11/2017 00:00:00,"6651971",7639.36,"I CAN SERVICES LTD"
"Bracknell Forest Council","http://opendatacommunities.org/id/unitary-authority/bracknell-forest","Bracknell Forest Council","00MA","Children Looked After","Fostering services","Independent Fostering (Non BFBC)","Contracted Services",01/09/2017 00:00:00,"6651974",3257.14,"BRIGHTER FUTURES FOSTER CARE LTD"
"Bracknell Forest Council","http://opendatacommunities.org/id/unitary-authority/bracknell-forest","Bracknell Forest Council","00MA","Children Looked After","Fostering services","Independent Fostering (Non BFBC)","Contracted Services",01/11/2017 00:00:00,"6651976",3257.14,"BRIGHTER FUTURES FOSTER CARE LTD"
"Bracknell Forest Council","http://opendatacommunities.org/id/unitary-authority/bracknell-forest","Bracknell Forest Council","00MA","Central Support Services - COF","Valuers","Property Services","Agency",30/11/2017 00:00:00,"6651979",1000,"WILKS HEAD & EVE"
"Bracknell Forest Council","http://opendatacommunities.org/id/unitary-authority/bracknell-forest","Bracknell Forest Council","00MA","Recreation, Sports and Leisure","Golf Courses","Leisure DSO - Downshire Golf Course","Vehicle Repairs",11/12/2017 00:00:00,"6651985",599.12,"LISTER WILDER LTD"
"Bracknell Forest Council","http://opendatacommunities.org/id/unitary-authority/bracknell-forest","Bracknell Forest Council","00MA","Holding Accounts in Budget Book COF","Corporate Services - Office Services","Central Photocopying","Photocopying",18/12/2017 00:00:00,"6651986",-1381.81,"RICOH UK LTD"
"Bracknell Forest Council","http://opendatacommunities.org/id/unitary-authority/bracknell-forest","Bracknell Forest Council","00MA","Recreation, Sports and Leisure","Indoor Sports & Recreation Facilities","Leisure DSO - Coral Reef","Cost of Goods Sold",15/12/2017 00:00:00,"6651987",617,"DANUK INNOVATIVE GIFTS LTD"
"Bracknell Forest Council","http://opendatacommunities.org/id/unitary-authority/bracknell-forest","Bracknell Forest Council","00MA","Business Support","Premises Development","Commercial Properties","Other Fees for Bought-in Services",30/11/2017 00:00:00,"6651988",1000,"HASLAMS CHARTERED SURVEYORS"
"Bracknell Forest Council","http://opendatacommunities.org/id/unitary-authority/bracknell-forest","Bracknell Forest Council","00MA","Holding Accounts in Budget Book COF","Corporate Services - Office Services","Central Photocopying","Photocopying",08/12/2017 00:00:00,"6651994",1888.67,"RICOH UK LTD"
"Bracknell Forest Council","http://opendatacommunities.org/id/unitary-authority/bracknell-forest","Bracknell Forest Council","00MA","Public Transport","Co-Ordination","Bus/Rail Interchange CLOSED please use F460A","Water & Sewerage",18/10/2017 00:00:00,"6651997",555.23,"CASTLE WATER LIMITED"
"Bracknell Forest Council","http://opendatacommunities.org/id/unitary-authority/bracknell-forest","Bracknell Forest Council","00MA","Traffic Management & Road Safety","Traffic Management","Intelligent Transport Systems","Contracted Services",14/12/2017 00:00:00,"6652002",1692.43,"SWARCO TRAFFIC LIMITED"
"Bracknell Forest Council","http://opendatacommunities.org/id/unitary-authority/bracknell-forest","Bracknell Forest Council","00MA","Recreation, Sports and Leisure","Indoor Sports & Recreation Facilities","Leisure DSO - Coral Reef","Water & Sewerage",28/12/2017 00:00:00,"6652004",6797.28,"SOUTH EAST WATER"
"Bracknell Forest Council","http://opendatacommunities.org/id/unitary-authority/bracknell-forest","Bracknell Forest Council","00MA","Recreation, Sports and Leisure","Indoor Sports & Recreation Facilities","Leisure DSO - Leisure Centre","Water & Sewerage",03/01/2018 00:00:00,"6652006",-625.96,"CASTLE WATER LIMITED"
"Bracknell Forest Council","http://opendatacommunities.org/id/unitary-authority/bracknell-forest","Bracknell Forest Council","00MA","Recreation, Sports and Leisure","Indoor Sports & Recreation Facilities","Leisure DSO - Leisure Centre","Water & Sewerage",03/01/2018 00:00:00,"6652009",632.29,"CASTLE WATER LIMITED"
"Bracknell Forest Council","http://opendatacommunities.org/id/unitary-authority/bracknell-forest","Bracknell Forest Council","00MA","Management and Support Services - CYPL","Strategy, Resources and Early Interventions","FSA Support Services","Other Fees for Bought-in Services",05/12/2017 00:00:00,"6652010",2000,"BE EMPOWERED"
"Bracknell Forest Council","http://opendatacommunities.org/id/unitary-authority/bracknell-forest","Bracknell Forest Council","00MA","Sure Start Children's Centres","Centrally managed expenditure - children's centres","EH Children's Centres","Other Fees for Bought-in Services",24/11/2017 00:00:00,"6652011",1120,"THE OAKS CRECHE AND PRE SCHOOL MMC LIMITED"
"Bracknell Forest Council","http://opendatacommunities.org/id/unitary-authority/bracknell-forest","Bracknell Forest Council","00MA","Sure Start Children's Centres","Centrally managed expenditure - children's centres","EH Children's Centres","Other Fees for Bought-in Services",22/11/2017 00:00:00,"6652012",1120,"THE OAKS CRECHE AND PRE SCHOOL MMC LIMITED"
"Bracknell Forest Council","http://opendatacommunities.org/id/unitary-authority/bracknell-forest","Bracknell Forest Council","00MA","Culture and Heritage","Heritage Museums & Galleries","The Look Out Catering","Cost of Goods Sold",24/11/2017 00:00:00,"6652013",586.69,"P & H DIRECT VAN SALES LTD"
"Bracknell Forest Council","http://opendatacommunities.org/id/unitary-authority/bracknell-forest","Bracknell Forest Council","00MA","Central Support Services - COF","Information Technology","ICT Telephony","Telephones - Rental & Call Charges",22/12/2017 00:00:00,"6652014",5327.36,"BT GLOBAL SERVICES"
"Bracknell Forest Council","http://opendatacommunities.org/id/unitary-authority/bracknell-forest","Bracknell Forest Council","00MA","Sure Start Children's Centres","Centrally managed expenditure - children's centres","EH Children's Centres","Other Fees for Bought-in Services",23/11/2017 00:00:00,"6652015",822,"THE OAKS CRECHE AND PRE SCHOOL MMC LIMITED"
"Bracknell Forest Council","http://opendatacommunities.org/id/unitary-authority/bracknell-forest","Bracknell Forest Council","00MA","Central Support Services - COF","Information Technology","ICT Telephony","Telephones - Rental & Call Charges",28/11/2017 00:00:00,"6652016",9298.41,"BT GLOBAL SERVICES"
"Bracknell Forest Council","http://opendatacommunities.org/id/unitary-authority/bracknell-forest","Bracknell Forest Council","00MA","Sure Start Children's Centres","Children's centres - direct","The Oaks Children's Centre","Other Fees for Bought-in Services",27/11/2017 00:00:00,"6652017",672,"THE OAKS CRECHE AND PRE SCHOOL MMC LIMITED"
"Bracknell Forest Council","http://opendatacommunities.org/id/unitary-authority/bracknell-forest","Bracknell Forest Council","00MA","Children Looked After","Fostering services","Independent Fostering (Non BFBC)","Other Local Authorities",28/11/2017 00:00:00,"6652019",620.04,"BOURNEMOUTH BOROUGH COUNCIL"
"Bracknell Forest Council","http://opendatacommunities.org/id/unitary-authority/bracknell-forest","Bracknell Forest Council","00MA","Children Looked After","Fostering services","Independent Fostering (Non BFBC)","Other Local Authorities",28/11/2017 00:00:00,"6652022",-620.04,"BOURNEMOUTH BOROUGH COUNCIL"
"Bracknell Forest Council","http://opendatacommunities.org/id/unitary-authority/bracknell-forest","Bracknell Forest Council","00MA","Children Looked After","Fostering services","Independent Fostering (Non BFBC)","Contracted Services",01/11/2017 00:00:00,"6652025",3762.21,"FUSION FOSTERING"
"Bracknell Forest Council","http://opendatacommunities.org/id/unitary-authority/bracknell-forest","Bracknell Forest Council","00MA","Children Looked After","Fostering services","Independent Fostering (Non BFBC)","Contracted Services",02/10/2017 00:00:00,"6652027",3887.62,"FUSION FOSTERING"
"Bracknell Forest Council","http://opendatacommunities.org/id/unitary-authority/bracknell-forest","Bracknell Forest Council","00MA","Children Looked After","Fostering services","Independent Fostering (Non BFBC)","Contracted Services",01/11/2017 00:00:00,"6652029",3762.21,"FUSION FOSTERING"
"Bracknell Forest Council","http://opendatacommunities.org/id/unitary-authority/bracknell-forest","Bracknell Forest Council","00MA","Children Looked After","Fostering services","Independent Fostering (Non BFBC)","Contracted Services",02/10/2017 00:00:00,"6652031",3887.62,"FUSION FOSTERING"
"Bracknell Forest Council","http://opendatacommunities.org/id/unitary-authority/bracknell-forest","Bracknell Forest Council","00MA","Homelessness","Bed/Breakfast Accommodation","Homeless Families","External Agency Services",13/11/2017 00:00:00,"6652038",595,"Redact Personal Info"
"Bracknell Forest Council","http://opendatacommunities.org/id/unitary-authority/bracknell-forest","Bracknell Forest Council","00MA","Homelessness","Bed/Breakfast Accommodation","Homeless Families","External Agency Services",06/11/2017 00:00:00,"6652044",595,"Redact Personal Info"
"Bracknell Forest Council","http://opendatacommunities.org/id/unitary-authority/bracknell-forest","Bracknell Forest Council","00MA","Homelessness","Bed/Breakfast Accommodation","Homeless Families","External Agency Services",20/11/2017 00:00:00,"6652047",595,"Redact Personal Info"
"Bracknell Forest Council","http://opendatacommunities.org/id/unitary-authority/bracknell-forest","Bracknell Forest Council","00MA","Children Looked After","Fostering services","Independent Fostering (Non BFBC)","Contracted Services",15/11/2017 00:00:00,"6652054",3441.3,"FOSTERING SOLUTIONS LTD"
"Bracknell Forest Council","http://opendatacommunities.org/id/unitary-authority/bracknell-forest","Bracknell Forest Council","00MA","Services for Young People","Universal services for young people","Great Hollands Youth Centre","Contract Cleaning",31/08/2017 00:00:00,"6652067",1250,"KGB CLEANING SOUTH WEST LIMITED"
"Bracknell Forest Council","http://opendatacommunities.org/id/unitary-authority/bracknell-forest","Bracknell Forest Council","00MA","Recreation, Sports and Leisure","Indoor Sports & Recreation Facilities","Leisure DSO - Coral Reef Maintenance","R&M - Service Contracts",31/10/2017 00:00:00,"6649655",3533,"ATKINS LTD"
"Bracknell Forest Council","http://opendatacommunities.org/id/unitary-authority/bracknell-forest","Bracknell Forest Council","00MA","ICT Capital Schemes","","","Other Direct Expenses",23/11/2017 00:00:00,"6649967",800,"CDW LTD"
"Bracknell Forest Council","http://opendatacommunities.org/id/unitary-authority/bracknell-forest","Bracknell Forest Council","00MA","Recreation, Sports and Leisure","Indoor Sports & Recreation Facilities","Leisure DSO - Coral Reef","Publicity & Marketing",30/11/2017 00:00:00,"6650086",1448,"COMPLETE SIGN SOLUTIONS LTD"
"Bracknell Forest Council","http://opendatacommunities.org/id/unitary-authority/bracknell-forest","Bracknell Forest Council","00MA","NHS Health Check Programme","NHS Health Check Programme","GP Health Checks","Contracted Services",04/10/2017 00:00:00,"6650278",1440,"THATCHAM MEDICAL PRACTICE"
"Bracknell Forest Council","http://opendatacommunities.org/id/unitary-authority/bracknell-forest","Bracknell Forest Council","00MA","Sexual Health Services","Contraception","GP LARC Payments","Contracted Services",04/10/2017 00:00:00,"6650278",5314,"THATCHAM MEDICAL PRACTICE"
"Bracknell Forest Council","http://opendatacommunities.org/id/unitary-authority/bracknell-forest","Bracknell Forest Council","00MA","Mandated 0-5 Childrens Services (Bracknell)","Mandated 0-5 Childrens Services (Bracknell)","Public Health Childrens 0-5 Services (Mandatory)","Contracted Services",14/11/2017 00:00:00,"6650314",15882.25,"BERKSHIRE HEALTHCARE NHS FOUNDATION TRUST"
"Bracknell Forest Council","http://opendatacommunities.org/id/unitary-authority/bracknell-forest","Bracknell Forest Council","00MA","Mandated 0-5 Childrens Services (Bracknell)","Mandated 0-5 Childrens Services (Bracknell)","Public Health Childrens 0-5 Services (Mandatory)","Contracted Services",14/11/2017 00:00:00,"6650315",103348.33,"BERKSHIRE HEALTHCARE NHS FOUNDATION TRUST"
"Bracknell Forest Council","http://opendatacommunities.org/id/unitary-authority/bracknell-forest","Bracknell Forest Council","00MA","Obesity","Adult obesity","Weight Management - Local (Bracknell)","Contracted Services",21/11/2017 00:00:00,"6650316",3706,"SLIMMING WORLD"
"Bracknell Forest Council","http://opendatacommunities.org/id/unitary-authority/bracknell-forest","Bracknell Forest Council","00MA","Commissioning & Service Delivery","Commissioning & Service Delivery","Grants & Donations","Contracted Services",30/11/2017 00:00:00,"6650443",6542.33,"THE ARK TRUST LTD"
"Bracknell Forest Council","http://opendatacommunities.org/id/unitary-authority/bracknell-forest","Bracknell Forest Council","00MA","Commissioning & Service Delivery","Commissioning & Service Delivery","Healthwatch","Contracted Services",30/11/2017 00:00:00,"6650443",5541,"THE ARK TRUST LTD"
"Bracknell Forest Council","http://opendatacommunities.org/id/unitary-authority/bracknell-forest","Bracknell Forest Council","00MA","Commissioning & Service Delivery","Commissioning & Service Delivery","Grants & Donations","Contracted Services",03/12/2017 00:00:00,"6650445",6542.33,"THE ARK TRUST LTD"
"Bracknell Forest Council","http://opendatacommunities.org/id/unitary-authority/bracknell-forest","Bracknell Forest Council","00MA","Commissioning & Service Delivery","Commissioning & Service Delivery","Healthwatch","Contracted Services",03/12/2017 00:00:00,"6650445",5541,"THE ARK TRUST LTD"
"Bracknell Forest Council","http://opendatacommunities.org/id/unitary-authority/bracknell-forest","Bracknell Forest Council","00MA","Support Services & Management Costs","Training","ASYE Children","Training Costs",08/11/2017 00:00:00,"6650461",4050,"BUCKS/BUCKINGHAMSHIRE NEW UNIVERSITY"
"Bracknell Forest Council","http://opendatacommunities.org/id/unitary-authority/bracknell-forest","Bracknell Forest Council","00MA","Homelessness","Bed/Breakfast Accommodation","Homeless Families","External Agency Services",23/10/2017 00:00:00,"6652068",595,"Redact Personal Info"
"Bracknell Forest Council","http://opendatacommunities.org/id/unitary-authority/bracknell-forest","Bracknell Forest Council","00MA","Holding Accounts not in Budget Book - COF","General Holding Accounts","KGB Cleaning","Contract Cleaning",31/10/2017 00:00:00,"6652072",3544.05,"KGB CLEANING SOUTH WEST LIMITED"
"Bracknell Forest Council","http://opendatacommunities.org/id/unitary-authority/bracknell-forest","Bracknell Forest Council","00MA","Housing Benefits Payments","Rent Allowances","Housing Benefit - Private Sector","Other Fees for Bought-in Services",07/11/2017 00:00:00,"6652073",5000,"REIGATE & BANSTEAD BOROUGH COUNCIL"
"Bracknell Forest Council","http://opendatacommunities.org/id/unitary-authority/bracknell-forest","Bracknell Forest Council","00MA","Children Looked After","Residential care","Children's Home Placements","Contracted Services",28/07/2017 00:00:00,"6652075",21257.01,"CAMBIAN CHILDCARE LTD"
"Bracknell Forest Council","http://opendatacommunities.org/id/unitary-authority/bracknell-forest","Bracknell Forest Council","00MA","Smoking and Tobacco","Stop smoking services and interventions","Stop Smoking Services & Interventions (Berks)","Contracted Services",13/11/2017 00:00:00,"6652076",116040,"SOLUTIONS 4 HEALTH LTD"
"Bracknell Forest Council","http://opendatacommunities.org/id/unitary-authority/bracknell-forest","Bracknell Forest Council","00MA","Children Looked After","Residential care","Children's Home Placements","Contracted Services",10/10/2017 00:00:00,"6652077",-19885.59,"CAMBIAN CHILDCARE LTD"
"Bracknell Forest Council","http://opendatacommunities.org/id/unitary-authority/bracknell-forest","Bracknell Forest Council","00MA","Children Looked After","Fostering services","Cornerstone Project","Contracted Services",25/09/2017 00:00:00,"6652080",16500,"THE CORNERSTONE TRAINING AND SUPPORT LIMITED"
"Bracknell Forest Council","http://opendatacommunities.org/id/unitary-authority/bracknell-forest","Bracknell Forest Council","00MA","Children Looked After","Other services for LAC","LAC - Semi Independent Living","Contracted Services",22/11/2017 00:00:00,"6652084",819.25,"LOOK AHEAD HOUSING AND CARE LTD"
"Bracknell Forest Council","http://opendatacommunities.org/id/unitary-authority/bracknell-forest","Bracknell Forest Council","00MA","Children Looked After","Other services for LAC","LAC - Semi Independent Living","Contracted Services",22/11/2017 00:00:00,"6652085",990.2,"LOOK AHEAD HOUSING AND CARE LTD"
"Bracknell Forest Council","http://opendatacommunities.org/id/unitary-authority/bracknell-forest","Bracknell Forest Council","00MA","Children Looked After","Other services for LAC","LAC - Semi Independent Living","Contracted Services",20/11/2017 00:00:00,"6652086",2001,"BRIGHTER STEPS LTD"
"Bracknell Forest Council","http://opendatacommunities.org/id/unitary-authority/bracknell-forest","Bracknell Forest Council","00MA","Children Looked After","Other services for LAC","LAC - Semi Independent Living","Contracted Services",20/11/2017 00:00:00,"6652087",750,"BRIGHTER STEPS LTD"
"Bracknell Forest Council","http://opendatacommunities.org/id/unitary-authority/bracknell-forest","Bracknell Forest Council","00MA","Children Looked After","Other services for LAC","LAC - Semi Independent Living","Contracted Services",27/11/2017 00:00:00,"6652088",2001,"BRIGHTER STEPS LTD"
"Bracknell Forest Council","http://opendatacommunities.org/id/unitary-authority/bracknell-forest","Bracknell Forest Council","00MA","Children Looked After","Other services for LAC","LAC - Semi Independent Living","Contracted Services",01/10/2017 00:00:00,"6652089",3577.4,"Y.I.C- YOUNG INDIVIDUALS COUNT"
"Bracknell Forest Council","http://opendatacommunities.org/id/unitary-authority/bracknell-forest","Bracknell Forest Council","00MA","Children Looked After","Residential care","Children's Home Placements","Contracted Services",27/11/2017 00:00:00,"6652090",15903,"CAMBIAN CHILDCARE LTD"
"Bracknell Forest Council","http://opendatacommunities.org/id/unitary-authority/bracknell-forest","Bracknell Forest Council","00MA","Central Support Services - COF","Personnel","LSCB - n=money","Training Costs",30/11/2017 00:00:00,"6650494",600,"PUBLIC SERVICES TRAINING PROFESSIONAL / RICHARD WOODLEY"
"Bracknell Forest Council","http://opendatacommunities.org/id/unitary-authority/bracknell-forest","Bracknell Forest Council","00MA","Adults (18-64)","Long Term Support - Community:Supported Living","MH Adults 18-64 Long Term Support - Community:Supported Living","Other Support to Clients",23/10/2017 00:00:00,"6650652",2529.6,"MOVING ON CARE MANAGEMENT LTD"
"Bracknell Forest Council","http://opendatacommunities.org/id/unitary-authority/bracknell-forest","Bracknell Forest Council","00MA","Adults (18-64)","Long Term Support - Community:Supported Living","MH Adults 18-64 Long Term Support - Community:Supported Living","Other Support to Clients",23/10/2017 00:00:00,"6650653",2529.6,"MOVING ON CARE MANAGEMENT LTD"
"Bracknell Forest Council","http://opendatacommunities.org/id/unitary-authority/bracknell-forest","Bracknell Forest Council","00MA","Adults (18-64)","Long Term Support - Community:Supported Living","MH Adults 18-64 Long Term Support - Community:Supported Living","Other Support to Clients",23/10/2017 00:00:00,"6650654",2344.84,"MOVING ON CARE MANAGEMENT LTD"
"Bracknell Forest Council","http://opendatacommunities.org/id/unitary-authority/bracknell-forest","Bracknell Forest Council","00MA","Central Support Services - COF","Personnel","Personnel Services - Occupational Health","Other Fees for Bought-in Services",31/10/2017 00:00:00,"6650696",1350,"HARMONY COUNSELLING SERVICE"
"Bracknell Forest Council","http://opendatacommunities.org/id/unitary-authority/bracknell-forest","Bracknell Forest Council","00MA","Parking Services","Off Street Parking","Off Street Parking","R&M - Reactive",01/12/2017 00:00:00,"6651071",1000.88,"INDIGO - INDIGO PARK SERVICES UK LIMITED"
"Bracknell Forest Council","http://opendatacommunities.org/id/unitary-authority/bracknell-forest","Bracknell Forest Council","00MA","Parking Services","Off Street Parking","Off Street Parking","R&M - Reactive",01/12/2017 00:00:00,"6651072",575,"INDIGO - INDIGO PARK SERVICES UK LIMITED"
"Bracknell Forest Council","http://opendatacommunities.org/id/unitary-authority/bracknell-forest","Bracknell Forest Council","00MA","Commissioning & Service Delivery","Commissioning & Service Delivery","Directorate","Postage",09/12/2017 00:00:00,"6651090",500,"ROYAL MAIL GROUP LTD"
"Bracknell Forest Council","http://opendatacommunities.org/id/unitary-authority/bracknell-forest","Bracknell Forest Council","00MA","Culture and Heritage","Heritage Museums & Galleries","The Look Out","R&M - Service Contracts",08/12/2017 00:00:00,"6651149",593.19,"UK SAFETY MANAGEMENT LTD"
"Bracknell Forest Council","http://opendatacommunities.org/id/unitary-authority/bracknell-forest","Bracknell Forest Council","00MA","NHS Health Check Programme","NHS Health Check Programme","NHS Health Check Programme (Bracknell)","Materials",07/12/2017 00:00:00,"6651175",562,"FITECH UK LTD"
"Bracknell Forest Council","http://opendatacommunities.org/id/unitary-authority/bracknell-forest","Bracknell Forest Council","00MA","NHS Health Check Programme","NHS Health Check Programme","NHS Health Check Programme (Bracknell)","Materials",07/12/2017 00:00:00,"6651176",516.5,"FITECH UK LTD"
"Bracknell Forest Council","http://opendatacommunities.org/id/unitary-authority/bracknell-forest","Bracknell Forest Council","00MA","Development Control","Applications - Development Control","Development Control","Consultants Fees",08/11/2017 00:00:00,"6651214",12240.94,"LUC - LAND USE CONSULTANCY"
"Bracknell Forest Council","http://opendatacommunities.org/id/unitary-authority/bracknell-forest","Bracknell Forest Council","00MA","Recreation, Sports and Leisure","Indoor Sports & Recreation Facilities","Leisure DSO - Coral Reef","Cleaning materials",27/11/2017 00:00:00,"6651244",704.6,"BOWAK LTD"
"Bracknell Forest Council","http://opendatacommunities.org/id/unitary-authority/bracknell-forest","Bracknell Forest Council","00MA","Central Support Services - COF","Personnel","LSCB - n=money","Training Costs",22/11/2017 00:00:00,"6652094",795,"TALKING LIFE"
"Bracknell Forest Council","http://opendatacommunities.org/id/unitary-authority/bracknell-forest","Bracknell Forest Council","00MA","Business Support","Premises Development","Easthampstead Park Centre - Bar","Cost of Goods Sold",07/12/2017 00:00:00,"6652100",1332.44,"MATTHEW CLARK WHOLESALE"
"Bracknell Forest Council","http://opendatacommunities.org/id/unitary-authority/bracknell-forest","Bracknell Forest Council","00MA","Management and Support Services - CYPL","Unallocated High Needs Related Expenditure","Mainstream - Element 3 top up non BFC pre 16","Other Local Authorities",12/12/2017 00:00:00,"6652107",19990,"BOWDEN HOUSE SCHOOL"
"Bracknell Forest Council","http://opendatacommunities.org/id/unitary-authority/bracknell-forest","Bracknell Forest Council","00MA","Post 16 Provision","High needs budget fpr post-16 provision","Mainstream - Element 3 top up non BFC post 16","Other Local Authorities",07/12/2017 00:00:00,"6652108",7682,"SURREY COUNTY COUNCIL"
"Bracknell Forest Council","http://opendatacommunities.org/id/unitary-authority/bracknell-forest","Bracknell Forest Council","00MA","Management and Support Services - CYPL","Unallocated High Needs Related Expenditure","Mainstream - Element 3 top up non BFC pre 16","Other Local Authorities",07/12/2017 00:00:00,"6652108",15557,"SURREY COUNTY COUNCIL"
"Bracknell Forest Council","http://opendatacommunities.org/id/unitary-authority/bracknell-forest","Bracknell Forest Council","00MA","Management and Support Services - CYPL","Unallocated High Needs Related Expenditure","Mainstream - Element 3 top up non BFC pre 16","RB of Windsor & Maidenhead",13/12/2017 00:00:00,"6652109",48426,"MANOR GREEN SCHOOL"
"Bracknell Forest Council","http://opendatacommunities.org/id/unitary-authority/bracknell-forest","Bracknell Forest Council","00MA","Post 16 Provision","High needs budget fpr post-16 provision","Mainstream - Element 3 top up non BFC post 16","RB of Windsor & Maidenhead",13/12/2017 00:00:00,"6652109",28885,"MANOR GREEN SCHOOL"
"Bracknell Forest Council","http://opendatacommunities.org/id/unitary-authority/bracknell-forest","Bracknell Forest Council","00MA","Management and Support Services - CYPL","Unallocated High Needs Related Expenditure","Mainstream - Element 3 top up non BFC pre 16","Other Local Authorities",14/12/2017 00:00:00,"6652110",11626.67,"FOREST BRIDGE SCHOOL"
"Bracknell Forest Council","http://opendatacommunities.org/id/unitary-authority/bracknell-forest","Bracknell Forest Council","00MA","Management and Support Services - CYPL","Unallocated High Needs Related Expenditure","Mainstream - Element 3 top up non BFC pre 16","Other Local Authorities",14/12/2017 00:00:00,"6652111",11626.67,"FOREST BRIDGE SCHOOL"
"Bracknell Forest Council","http://opendatacommunities.org/id/unitary-authority/bracknell-forest","Bracknell Forest Council","00MA","Management and Support Services - CYPL","Unallocated High Needs Related Expenditure","Mainstream - Element 3 top up non BFC pre 16","Other Local Authorities",14/12/2017 00:00:00,"6652112",8056.67,"FOREST BRIDGE SCHOOL"
"Bracknell Forest Council","http://opendatacommunities.org/id/unitary-authority/bracknell-forest","Bracknell Forest Council","00MA","Management and Support Services - CYPL","Unallocated High Needs Related Expenditure","Mainstream - Element 3 top up non BFC pre 16","Other Local Authorities",14/12/2017 00:00:00,"6652113",11626.67,"FOREST BRIDGE SCHOOL"
"Bracknell Forest Council","http://opendatacommunities.org/id/unitary-authority/bracknell-forest","Bracknell Forest Council","00MA","Children Looked After","Residential care","Children's Home Placements","Contracted Services",05/12/2017 00:00:00,"6652114",14000,"AMEGREEN CHILDRENS SERVICES"
"Bracknell Forest Council","http://opendatacommunities.org/id/unitary-authority/bracknell-forest","Bracknell Forest Council","00MA","Children Looked After","Residential care","Children's Home Placements","Contracted Services",01/12/2017 00:00:00,"6652117",15500,"FRIENDS THERAPEUTIC COMMUNITY TRUST"
"Bracknell Forest Council","http://opendatacommunities.org/id/unitary-authority/bracknell-forest","Bracknell Forest Council","00MA","Children Looked After","Fostering services","Independent Fostering (Non BFBC)","Contracted Services",01/11/2017 00:00:00,"6652118",4984.29,"CREDO CARE LIMITED"
"Bracknell Forest Council","http://opendatacommunities.org/id/unitary-authority/bracknell-forest","Bracknell Forest Council","00MA","Children Looked After","Fostering services","Independent Fostering (Non BFBC)","Contracted Services",01/12/2017 00:00:00,"6652119",5150.43,"CREDO CARE LIMITED"
"Bracknell Forest Council","http://opendatacommunities.org/id/unitary-authority/bracknell-forest","Bracknell Forest Council","00MA","Management and Support Services - CYPL","De-Delegated Expenditure","Home to School Transport","Coach Fares - Home/School Transport",31/10/2017 00:00:00,"6652123",1047,"COURTNEY COACHES LTD - FACTORED"
"Bracknell Forest Council","http://opendatacommunities.org/id/unitary-authority/bracknell-forest","Bracknell Forest Council","00MA","Management and Support Services - CYPL","De-Delegated Expenditure","Home to School Transport","Coach Fares - Home/School Transport",31/10/2017 00:00:00,"6652123",2438,"COURTNEY COACHES LTD - FACTORED"
"Bracknell Forest Council","http://opendatacommunities.org/id/unitary-authority/bracknell-forest","Bracknell Forest Council","00MA","Other Welfare Services","Other Welfare Services","Forestcare - Operational","Operating Lease Charge",01/01/2018 00:00:00,"6652126",2123.01,"ALPHABET (UK) LTD"
"Bracknell Forest Council","http://opendatacommunities.org/id/unitary-authority/bracknell-forest","Bracknell Forest Council","00MA","Other Welfare Services","Other Welfare Services","Forestcare - Operational","Operating Lease Charge",01/01/2018 00:00:00,"6652126",2123.01,"ALPHABET (UK) LTD"
"Bracknell Forest Council","http://opendatacommunities.org/id/unitary-authority/bracknell-forest","Bracknell Forest Council","00MA","Recreation, Sports and Leisure","Indoor Sports & Recreation Facilities","Leisure DSO - Leisure Centre Maintenance","R&M - Reactive",25/10/2017 00:00:00,"6652131",592.78,"CEF / CITY ELECTRICAL FACTORS LTD"
"Bracknell Forest Council","http://opendatacommunities.org/id/unitary-authority/bracknell-forest","Bracknell Forest Council","00MA","Central Support Services - COF","Construction and Property","Time Square Office","Security Systems",13/12/2017 00:00:00,"6652132",1331.67,"DSC SECURITY"
"Bracknell Forest Council","http://opendatacommunities.org/id/unitary-authority/bracknell-forest","Bracknell Forest Council","00MA","Open Spaces","Community Parks & Open Spaces","Tree Service","Contracted Services",16/12/2017 00:00:00,"6652136",540,"BERKSHIRE TREE CARE"
"Bracknell Forest Council","http://opendatacommunities.org/id/unitary-authority/bracknell-forest","Bracknell Forest Council","00MA","Improvements & Capitalised Repairs (Council Wide)","","","Construction - Contract Payments",20/12/2017 00:00:00,"6652137",1162.5,"LIFE ENVIRONMENTAL SERVICES LTD"
"Bracknell Forest Council","http://opendatacommunities.org/id/unitary-authority/bracknell-forest","Bracknell Forest Council","00MA","Recreation, Sports and Leisure","Indoor Sports & Recreation Facilities","Leisure DSO - Leisure Centre Maintenance","Swimming Pool Chemicals",18/12/2017 00:00:00,"6652138",1068.2,"FIRENZI LTD"
"Bracknell Forest Council","http://opendatacommunities.org/id/unitary-authority/bracknell-forest","Bracknell Forest Council","00MA","Car Park Improvement/Refurbishment","","","Construction - Other Direct Expenses",08/12/2017 00:00:00,"6652145",1950,"SCHEIDT & BACHMANN (UK) LTD"
"Bracknell Forest Council","http://opendatacommunities.org/id/unitary-authority/bracknell-forest","Bracknell Forest Council","00MA","Other Education and Community Budget","Adult and Community Learning","Community Learning","Other Fees for Bought-in Services",19/12/2017 00:00:00,"6652146",1315,"INVOLVE"
"Bracknell Forest Council","http://opendatacommunities.org/id/unitary-authority/bracknell-forest","Bracknell Forest Council","00MA","Recycling","Collection","Waste Collection Recycling","Publicity & Marketing",14/12/2017 00:00:00,"6652157",4000,"SUEZ RECYCLING AND RECOVERY UK LTD"
"Bracknell Forest Council","http://opendatacommunities.org/id/unitary-authority/bracknell-forest","Bracknell Forest Council","00MA","Central Support Services - COF","Information Technology","ICT Telephony","Mobile Telephones",23/12/2017 00:00:00,"6652176",529.99,"VODAFONE CORPORATE"
"Bracknell Forest Council","http://opendatacommunities.org/id/unitary-authority/bracknell-forest","Bracknell Forest Council","00MA","Mendeleev Fences and Gates","","","Construction - Other Direct Expenses",22/12/2017 00:00:00,"6652181",3965,"SUMO SERVICES LTD"
"Bracknell Forest Council","http://opendatacommunities.org/id/unitary-authority/bracknell-forest","Bracknell Forest Council","00MA","Server Hardware Replacement","","","Other Direct Expenses",22/12/2017 00:00:00,"6652185",950,"PHOENIX SOFTWARE LIMITED"
"Bracknell Forest Council","http://opendatacommunities.org/id/unitary-authority/bracknell-forest","Bracknell Forest Council","00MA","Support Services & Management Costs","Training","Social Care Training - Adults","Training Costs",18/12/2017 00:00:00,"6652187",645,"PRESCRIPTION TRAINING"
"Bracknell Forest Council","http://opendatacommunities.org/id/unitary-authority/bracknell-forest","Bracknell Forest Council","00MA","Central Support Services - COF","Information Technology","ICT Telephony","Mobile Telephones",23/12/2017 00:00:00,"6652188",1833.31,"VODAFONE CORPORATE"
"Bracknell Forest Council","http://opendatacommunities.org/id/unitary-authority/bracknell-forest","Bracknell Forest Council","00MA","Central Support Services - COF","Information Technology","ICT Telephony","Mobile Telephones",23/12/2017 00:00:00,"6652190",1297.13,"VODAFONE CORPORATE"
"Bracknell Forest Council","http://opendatacommunities.org/id/unitary-authority/bracknell-forest","Bracknell Forest Council","00MA","Other Welfare Services","Other Welfare Services","Forestcare - Operational","Other Fees for Bought-in Services",15/12/2017 00:00:00,"6652193",600,"TECSPLUS LTD"
"Bracknell Forest Council","http://opendatacommunities.org/id/unitary-authority/bracknell-forest","Bracknell Forest Council","00MA","Central Support Services - COF","Information Technology","Communications","Equipment - Rental",20/12/2017 00:00:00,"6652194",1129.81,"BRITISH TELECOM"
"Bracknell Forest Council","http://opendatacommunities.org/id/unitary-authority/bracknell-forest","Bracknell Forest Council","00MA","Recreation, Sports and Leisure","Indoor Sports & Recreation Facilities","Leisure DSO - Coral Reef","R&M - Service Contracts",04/12/2017 00:00:00,"6652203",725.81,"VEOLIA CHP UK LIMITED"
"Bracknell Forest Council","http://opendatacommunities.org/id/unitary-authority/bracknell-forest","Bracknell Forest Council","00MA","Recreation, Sports and Leisure","Indoor Sports & Recreation Facilities","Leisure DSO - Leisure Centre","Equipment - Purchase",15/12/2017 00:00:00,"6652204",1643.64,"MAUDESPORT"
"Bracknell Forest Council","http://opendatacommunities.org/id/unitary-authority/bracknell-forest","Bracknell Forest Council","00MA","Central Support Services - COF","Information Technology","Communications","Equipment - Rental",15/12/2017 00:00:00,"6652209",2708.98,"VODAFONE CORPORATE"
"Bracknell Forest Council","http://opendatacommunities.org/id/unitary-authority/bracknell-forest","Bracknell Forest Council","00MA","Safeguarding Children and Young People's Services","Social Work","Family Group Conferences","Consultants Fees",19/12/2017 00:00:00,"6652212",522,"Redact Personal Info"
"Bracknell Forest Council","http://opendatacommunities.org/id/unitary-authority/bracknell-forest","Bracknell Forest Council","00MA","Central Support Services - COF","Information Technology","ICT Telephony","Mobile Telephones",23/12/2017 00:00:00,"6652213",1694.37,"VODAFONE CORPORATE"
"Bracknell Forest Council","http://opendatacommunities.org/id/unitary-authority/bracknell-forest","Bracknell Forest Council","00MA","Recreation, Sports and Leisure","Indoor Sports & Recreation Facilities","Leisure DSO - Leisure Centre","Equipment - Purchase",21/12/2017 00:00:00,"6652214",1036,"PAC WRISTBANDS LIMITED"
"Bracknell Forest Council","http://opendatacommunities.org/id/unitary-authority/bracknell-forest","Bracknell Forest Council","00MA","Children Looked After","Other services for LAC","LAC- Over 11s Expenditure","Contracted Services",07/12/2017 00:00:00,"6652216",813,"SWAAY"
"Bracknell Forest Council","http://opendatacommunities.org/id/unitary-authority/bracknell-forest","Bracknell Forest Council","00MA","Business Support","Premises Development","Waterside Park - Building C","Electricity",05/01/2018 00:00:00,"6652223",1103.74,"SOUTHERN ELECTRIC PLC"
"Bracknell Forest Council","http://opendatacommunities.org/id/unitary-authority/bracknell-forest","Bracknell Forest Council","00MA","Recreation, Sports and Leisure","Indoor Sports & Recreation Facilities","Leisure DSO - Leisure Centre","Water & Sewerage",05/12/2017 00:00:00,"6652224",1282.91,"CASTLE WATER LIMITED"
"Bracknell Forest Council","http://opendatacommunities.org/id/unitary-authority/bracknell-forest","Bracknell Forest Council","00MA","Central Support Services - COF","Information Technology","Technical  Services","Contracted Services",01/01/2018 00:00:00,"6652226",3542.61,"VODAFONE CORPORATE"
"Bracknell Forest Council","http://opendatacommunities.org/id/unitary-authority/bracknell-forest","Bracknell Forest Council","00MA","Central Support Services - COF","Information Technology","ICT Telephony","Telephones - Rental & Call Charges",09/12/2017 00:00:00,"6652227",15072.26,"BRITISH TELECOM"
"Bracknell Forest Council","http://opendatacommunities.org/id/unitary-authority/bracknell-forest","Bracknell Forest Council","00MA","Management and Support Services - CYPL","Unallocated High Needs Related Expenditure","SEN Non LEA Provision Pre 16","Voluntary Sector Service Providers",18/12/2017 00:00:00,"6652234",27901.24,"TRELOAR TRUST"
"Bracknell Forest Council","http://opendatacommunities.org/id/unitary-authority/bracknell-forest","Bracknell Forest Council","00MA","Post 16 Provision","High needs budget fpr post-16 provision","SEN Non LEA Provision Post16","Voluntary Sector Service Providers",18/12/2017 00:00:00,"6652235",19955.36,"TRELOAR TRUST"
"Bracknell Forest Council","http://opendatacommunities.org/id/unitary-authority/bracknell-forest","Bracknell Forest Council","00MA","Post 16 Provision","High needs budget fpr post-16 provision","SEN Non LEA Provision Post16","Voluntary Sector Service Providers",13/12/2017 00:00:00,"6652236",23954.07,"TRELOAR TRUST"
"Bracknell Forest Council","http://opendatacommunities.org/id/unitary-authority/bracknell-forest","Bracknell Forest Council","00MA","Post 16 Provision","High needs budget fpr post-16 provision","SEN Non LEA Provision Post16","Voluntary Sector Service Providers",14/12/2017 00:00:00,"6652237",22403.62,"TRELOAR TRUST"
"Bracknell Forest Council","http://opendatacommunities.org/id/unitary-authority/bracknell-forest","Bracknell Forest Council","00MA","Post 16 Provision","High needs budget fpr post-16 provision","SEN Non LEA Provision Post16","Voluntary Sector Service Providers",01/12/2017 00:00:00,"6652238",23278.33,"FORTUNE CENTRE OF RIDING THERAPY"
"Bracknell Forest Council","http://opendatacommunities.org/id/unitary-authority/bracknell-forest","Bracknell Forest Council","00MA","Post 16 Provision","High needs budget fpr post-16 provision","SEN Non LEA Provision Post16","Voluntary Sector Service Providers",01/12/2017 00:00:00,"6652239",5230,"MORE HOUSE SCHOOL"
"Bracknell Forest Council","http://opendatacommunities.org/id/unitary-authority/bracknell-forest","Bracknell Forest Council","00MA","Assistive Equipment & Technology","Assistive Equipment & Technology","Assistive Equipment & Technology","Contracted Services",15/12/2017 00:00:00,"6652240",72575,"WEST BERKSHIRE COUNCIL"
"Bracknell Forest Council","http://opendatacommunities.org/id/unitary-authority/bracknell-forest","Bracknell Forest Council","00MA","Management and Support Services - CYPL","Unallocated High Needs Related Expenditure","SEN Non LEA Provision Pre 16","Voluntary Sector Service Providers",01/12/2017 00:00:00,"6652241",5977,"MORE HOUSE SCHOOL"
"Bracknell Forest Council","http://opendatacommunities.org/id/unitary-authority/bracknell-forest","Bracknell Forest Council","00MA","Social Care Activities","Social Care Activities","Mental Capacity Act & IMCA Service","Other Support to Clients",30/11/2017 00:00:00,"6652242",1284.45,"ONE53 LTD"
"Bracknell Forest Council","http://opendatacommunities.org/id/unitary-authority/bracknell-forest","Bracknell Forest Council","00MA","Other Welfare Services","Other Welfare Services","Forestcare - Operational","Telephones - Rental & Call Charges",13/12/2017 00:00:00,"6652244",539.45,"CELLULAR SOLUTIONS AND SERVICES LTD"
"Bracknell Forest Council","http://opendatacommunities.org/id/unitary-authority/bracknell-forest","Bracknell Forest Council","00MA","Housing Benefits Administration","Housing Benefits Administration","Housing Local Welfare Provision - Programme","Other Fees for Bought-in Services",12/12/2017 00:00:00,"6652246",865,"CHENEYS"
"Bracknell Forest Council","http://opendatacommunities.org/id/unitary-authority/bracknell-forest","Bracknell Forest Council","00MA","Support Services & Management Costs","Training","ASYE Children","Training Costs",09/12/2017 00:00:00,"6652247",2575,"Redact Personal Info"
"Bracknell Forest Council","http://opendatacommunities.org/id/unitary-authority/bracknell-forest","Bracknell Forest Council","00MA","Safeguarding Children and Young People's Services","Social Work","Family Placement","Sessional",18/12/2017 00:00:00,"6652250",2065.62,"HL FAMILY PLACEMENT SERVICES LTD"
"Bracknell Forest Council","http://opendatacommunities.org/id/unitary-authority/bracknell-forest","Bracknell Forest Council","00MA","Mandated 0-5 Childrens Services (Bracknell)","Mandated 0-5 Childrens Services (Bracknell)","Public Health Childrens 0-5 Services (Mandatory)","Contracted Services",13/12/2017 00:00:00,"6652252",15882.25,"BERKSHIRE HEALTHCARE NHS FOUNDATION TRUST"
"Bracknell Forest Council","http://opendatacommunities.org/id/unitary-authority/bracknell-forest","Bracknell Forest Council","00MA","Mandated 0-5 Childrens Services (Bracknell)","Mandated 0-5 Childrens Services (Bracknell)","Public Health Childrens 0-5 Services (Mandatory)","Contracted Services",13/12/2017 00:00:00,"6652253",103348.33,"BERKSHIRE HEALTHCARE NHS FOUNDATION TRUST"
"Bracknell Forest Council","http://opendatacommunities.org/id/unitary-authority/bracknell-forest","Bracknell Forest Council","00MA","Services for Young People","Targeted services for young people","NEET Reduction Funding","Consultants Fees",07/12/2017 00:00:00,"6652257",2540,"LEARNING TO WORK"
"Bracknell Forest Council","http://opendatacommunities.org/id/unitary-authority/bracknell-forest","Bracknell Forest Council","00MA","Management and Support Services - CYPL","Schools Block Centrally Managed","Educational Attainment for Looked After Children","Consultants Fees",13/12/2017 00:00:00,"6652258",1719.97,"TEACHING PERSONNEL LTD"
"Bracknell Forest Council","http://opendatacommunities.org/id/unitary-authority/bracknell-forest","Bracknell Forest Council","00MA","Homelessness","Bed/Breakfast Accommodation","Homeless Families","External Agency Services",04/12/2017 00:00:00,"6652264",595,"Redact Personal Info"
"Bracknell Forest Council","http://opendatacommunities.org/id/unitary-authority/bracknell-forest","Bracknell Forest Council","00MA","NHS Health Check Programme","NHS Health Check Programme","GP Health Checks","Contracted Services",15/12/2017 00:00:00,"6652268",960,"LONGBARN LANE SURGERY"
"Bracknell Forest Council","http://opendatacommunities.org/id/unitary-authority/bracknell-forest","Bracknell Forest Council","00MA","NHS Health Check Programme","NHS Health Check Programme","GP Health Checks","Contracted Services",15/12/2017 00:00:00,"6652269",900,"LONGBARN LANE SURGERY"
"Bracknell Forest Council","http://opendatacommunities.org/id/unitary-authority/bracknell-forest","Bracknell Forest Council","00MA","Sexual Health Services","STI testing and treatment","Sexual Health - STI Testing & Treatment (Berks)","Contracted Services",27/10/2017 00:00:00,"6652274",1787,"ASHFORD & ST PETERS HOSPITALS"
"Bracknell Forest Council","http://opendatacommunities.org/id/unitary-authority/bracknell-forest","Bracknell Forest Council","00MA","Sexual Health Services","STI testing and treatment","Sexual Health - STI Testing & Treatment (Berks)","Contracted Services",27/10/2017 00:00:00,"6652274",4261,"ASHFORD & ST PETERS HOSPITALS"
"Bracknell Forest Council","http://opendatacommunities.org/id/unitary-authority/bracknell-forest","Bracknell Forest Council","00MA","Management and Support Services - CYPL","Unallocated High Needs Related Expenditure","SEN Non LEA Provision Pre 16","Voluntary Sector Service Providers",01/12/2017 00:00:00,"6652278",5444,"MORE HOUSE SCHOOL"
"Bracknell Forest Council","http://opendatacommunities.org/id/unitary-authority/bracknell-forest","Bracknell Forest Council","00MA","Management and Support Services - CYPL","Unallocated High Needs Related Expenditure","SEN Non LEA Provision Pre 16","Voluntary Sector Service Providers",11/12/2017 00:00:00,"6652279",10000,"EVERYDAY ARTS LTD"
"Bracknell Forest Council","http://opendatacommunities.org/id/unitary-authority/bracknell-forest","Bracknell Forest Council","00MA","Management and Support Services - CYPL","Unallocated High Needs Related Expenditure","SEN Non LEA Provision Pre 16","Voluntary Sector Service Providers",11/12/2017 00:00:00,"6652280",10000,"EVERYDAY ARTS LTD"
"Bracknell Forest Council","http://opendatacommunities.org/id/unitary-authority/bracknell-forest","Bracknell Forest Council","00MA","Recreation, Sports and Leisure","Indoor Sports & Recreation Facilities","Coral Reef - Catering & Bar","Cost of Goods Sold",14/12/2017 00:00:00,"6652284",737.8,"THE LOVELY CHEESE COMPANY"
"Bracknell Forest Council","http://opendatacommunities.org/id/unitary-authority/bracknell-forest","Bracknell Forest Council","00MA","Recreation, Sports and Leisure","Indoor Sports & Recreation Facilities","Leisure DSO - Coral Reef Maintenance","External Grounds Maintenance Costs",02/12/2017 00:00:00,"6652287",734.5,"S & S GARDEN SERVICES"
"Bracknell Forest Council","http://opendatacommunities.org/id/unitary-authority/bracknell-forest","Bracknell Forest Council","00MA","Whitegrove Primary - MTC","","","Construction - Contract Payments",15/12/2017 00:00:00,"6652295",2510,"CONTROL MATTERS LTD"
"Bracknell Forest Council","http://opendatacommunities.org/id/unitary-authority/bracknell-forest","Bracknell Forest Council","00MA","Recreation, Sports and Leisure","Indoor Sports & Recreation Facilities","Leisure DSO - Coral Reef","Equipment - Purchase",03/08/2017 00:00:00,"6652297",510,"RAPID RACKING LIMITED"
"Bracknell Forest Council","http://opendatacommunities.org/id/unitary-authority/bracknell-forest","Bracknell Forest Council","00MA","Recreation, Sports and Leisure","Golf Courses","Leisure DSO - Downshire Golf Course","Materials",13/12/2017 00:00:00,"6652305",940.88,"BANKS AMENITY PRODUCTS LTD"
"Bracknell Forest Council","http://opendatacommunities.org/id/unitary-authority/bracknell-forest","Bracknell Forest Council","00MA","ICT Capital Schemes","","","Other Direct Expenses",26/12/2017 00:00:00,"6652313",38983.2,"DELL COMPUTER CORPORATION"
"Bracknell Forest Council","http://opendatacommunities.org/id/unitary-authority/bracknell-forest","Bracknell Forest Council","00MA","ICT Capital Schemes","","","Other Direct Expenses",22/12/2017 00:00:00,"6652315",12182.25,"DELL COMPUTER CORPORATION"
"Bracknell Forest Council","http://opendatacommunities.org/id/unitary-authority/bracknell-forest","Bracknell Forest Council","00MA","Social Care Activities","Social Care Activities","Mental Capacity Act & IMCA Service","Other Support to Clients",13/12/2017 00:00:00,"6652316",1800,"AEB SOCIAL CARE LTD"
"Bracknell Forest Council","http://opendatacommunities.org/id/unitary-authority/bracknell-forest","Bracknell Forest Council","00MA","ICT Capital Schemes","","","Other Direct Expenses",21/12/2017 00:00:00,"6652317",772,"DELL COMPUTER CORPORATION"
"Bracknell Forest Council","http://opendatacommunities.org/id/unitary-authority/bracknell-forest","Bracknell Forest Council","00MA","ICT Capital Schemes","","","Other Direct Expenses",23/12/2017 00:00:00,"6652318",1309.62,"DELL COMPUTER CORPORATION"
"Bracknell Forest Council","http://opendatacommunities.org/id/unitary-authority/bracknell-forest","Bracknell Forest Council","00MA","ICT Capital Schemes","","","Other Direct Expenses",22/12/2017 00:00:00,"6652321",6497.2,"DELL COMPUTER CORPORATION"
"Bracknell Forest Council","http://opendatacommunities.org/id/unitary-authority/bracknell-forest","Bracknell Forest Council","00MA","Central Support Services - COF","Information Technology","Communications","Equipment - R&M",29/12/2017 00:00:00,"6652332",23235.72,"NETCALL TELECOM LIMITED"
"Bracknell Forest Council","http://opendatacommunities.org/id/unitary-authority/bracknell-forest","Bracknell Forest Council","00MA","Central Support Services - COF","Customer Service Centre","Customer Services","Licences",29/12/2017 00:00:00,"6652332",3763.28,"NETCALL TELECOM LIMITED"
"Bracknell Forest Council","http://opendatacommunities.org/id/unitary-authority/bracknell-forest","Bracknell Forest Council","00MA","Recreation, Sports and Leisure","Indoor Sports & Recreation Facilities","Leisure DSO - Coral Reef","Publicity & Marketing",23/11/2017 00:00:00,"6652335",3160,"PAC WRISTBANDS LIMITED"
"Bracknell Forest Council","http://opendatacommunities.org/id/unitary-authority/bracknell-forest","Bracknell Forest Council","00MA","Recreation, Sports and Leisure","Indoor Sports & Recreation Facilities","Leisure DSO - Coral Reef","Equipment - Purchase",23/11/2017 00:00:00,"6652337",3610,"PAC WRISTBANDS LIMITED"
"Bracknell Forest Council","http://opendatacommunities.org/id/unitary-authority/bracknell-forest","Bracknell Forest Council","00MA","Family Support Services","Targeted Family Support","C&F Section 17 Under 11's Team","Other Support to Clients",11/01/2018 00:00:00,"6652345",4365,"PAYMENT WITHOUT INVOICES"
"Bracknell Forest Council","http://opendatacommunities.org/id/unitary-authority/bracknell-forest","Bracknell Forest Council","00MA","Internal Services","Internal Services","Waymead - Short Stay","Vehicle Repairs",07/12/2017 00:00:00,"6652346",1276.79,"FOREST MOT & SERVICE CENTRE"
"Bracknell Forest Council","http://opendatacommunities.org/id/unitary-authority/bracknell-forest","Bracknell Forest Council","00MA","Management and Support Services - CYPL","Schools Block Centrally Managed","LMS Contingency - New Schools","Contracted Services",11/01/2018 00:00:00,"6652361",20683,"KING'S GROUP ACADEMIES"
"Bracknell Forest Council","http://opendatacommunities.org/id/unitary-authority/bracknell-forest","Bracknell Forest Council","00MA","Safeguarding Children and Young People's Services","Commissioning and children's services strategy","Complaints Procedures","Consultants Fees",22/12/2017 00:00:00,"6652362",3663,"Redact Personal Info"
"Bracknell Forest Council","http://opendatacommunities.org/id/unitary-authority/bracknell-forest","Bracknell Forest Council","00MA","Safeguarding Children and Young People's Services","Commissioning and children's services strategy","Complaints Procedures","Consultants Fees",22/12/2017 00:00:00,"6652364",1702,"Redact Personal Info"
"Bracknell Forest Council","http://opendatacommunities.org/id/unitary-authority/bracknell-forest","Bracknell Forest Council","00MA","Building Control","Building Regulations","Building Regulations","Refunds",11/01/2018 00:00:00,"6652368",728.33,"PAYMENT WITHOUT INVOICES"
"Bracknell Forest Council","http://opendatacommunities.org/id/unitary-authority/bracknell-forest","Bracknell Forest Council","00MA","Post 16 Provision","High needs budget fpr post-16 provision","SEN Non LEA Provision Post16","Voluntary Sector Service Providers",15/12/2017 00:00:00,"6652370",964.9,"NORTH EAST SURREY COLLEGE OF TECHNOLOGY"
"Bracknell Forest Council","http://opendatacommunities.org/id/unitary-authority/bracknell-forest","Bracknell Forest Council","00MA","Development Control","Applications - Development Control","Development Control","Refunds",11/01/2018 00:00:00,"6652371",500,"PAYMENT WITHOUT INVOICES"
"Bracknell Forest Council","http://opendatacommunities.org/id/unitary-authority/bracknell-forest","Bracknell Forest Council","00MA","Management and Support Services - CYPL","Unallocated High Needs Related Expenditure","SEN Non LEA Provision Pre 16","Voluntary Sector Service Providers",22/11/2017 00:00:00,"6652376",13268,"BARNARDO SERVICES LTD"
"Bracknell Forest Council","http://opendatacommunities.org/id/unitary-authority/bracknell-forest","Bracknell Forest Council","00MA","Registration of Electors","Registration of Electors","Electoral Registration","Printing and Design",30/11/2017 00:00:00,"6652381",1566.7,"ELECTORAL REFORM SERVICES"
"Bracknell Forest Council","http://opendatacommunities.org/id/unitary-authority/bracknell-forest","Bracknell Forest Council","00MA","Registration of Electors","Registration of Electors","parish By Elections","Printing and Design",30/11/2017 00:00:00,"6652383",2928,"ELECTORAL REFORM SERVICES"
"Bracknell Forest Council","http://opendatacommunities.org/id/unitary-authority/bracknell-forest","Bracknell Forest Council","00MA","Sexual Health Services","Contraception","GP LARC Payments","Contracted Services",03/10/2017 00:00:00,"6652387",792,"CROWN WOOD MEDICAL CENTRE"
"Bracknell Forest Council","http://opendatacommunities.org/id/unitary-authority/bracknell-forest","Bracknell Forest Council","00MA","NHS Health Check Programme","NHS Health Check Programme","GP Health Checks","Contracted Services",03/10/2017 00:00:00,"6652387",540,"CROWN WOOD MEDICAL CENTRE"
"Bracknell Forest Council","http://opendatacommunities.org/id/unitary-authority/bracknell-forest","Bracknell Forest Council","00MA","Traffic Management & Road Safety","Traffic Management","Traffic Management","Contracted Services",08/12/2017 00:00:00,"6652389",3693.4,"AAI - ALEXANDER ADVERTISING(INT)LTD"
"Bracknell Forest Council","http://opendatacommunities.org/id/unitary-authority/bracknell-forest","Bracknell Forest Council","00MA","Services for Young People","Targeted services for young people","Elevate Match Funding","Consultants Fees",08/11/2017 00:00:00,"6652392",4000,"ADVIZA PARTNERSHIP"
"Bracknell Forest Council","http://opendatacommunities.org/id/unitary-authority/bracknell-forest","Bracknell Forest Council","00MA","Services for Young People","Targeted services for young people","Elevate Match Funding","Consultants Fees",19/12/2017 00:00:00,"6652394",4000,"ADVIZA PARTNERSHIP"
"Bracknell Forest Council","http://opendatacommunities.org/id/unitary-authority/bracknell-forest","Bracknell Forest Council","00MA","Services for Young People","Targeted services for young people","NEET Reduction Funding","Consultants Fees",18/12/2017 00:00:00,"6652395",4765,"XL EDUCATION SOLUTIONS LTD"
"Bracknell Forest Council","http://opendatacommunities.org/id/unitary-authority/bracknell-forest","Bracknell Forest Council","00MA","Other Education and Community Budget","Adult and Community Learning","Community Learning","Other Fees for Bought-in Services",20/12/2017 00:00:00,"6652397",1005,"BRACKNELL FOREST HOMES"
"Bracknell Forest Council","http://opendatacommunities.org/id/unitary-authority/bracknell-forest","Bracknell Forest Council","00MA","Central Support Services - COF","Policy Unit","Transformation Board","Consultants Fees",05/01/2018 00:00:00,"6652401",2250,"DOTTED EYES SOLUTIONS LIMITED"
"Bracknell Forest Council","http://opendatacommunities.org/id/unitary-authority/bracknell-forest","Bracknell Forest Council","00MA","College Town Junior-MTC","","","Construction - Other Direct Expenses",22/12/2017 00:00:00,"6652407",624.67,"M & J GROUP (CONSTRUCTION & ROOFING) LTD"
"Bracknell Forest Council","http://opendatacommunities.org/id/unitary-authority/bracknell-forest","Bracknell Forest Council","00MA","Improvements & Capitalised Repairs (Council Wide)","","","Construction - Contract Payments",05/01/2018 00:00:00,"6652411",7480,"MORRIS & BLUNT LTD"
"Bracknell Forest Council","http://opendatacommunities.org/id/unitary-authority/bracknell-forest","Bracknell Forest Council","00MA","Recreation, Sports and Leisure","Indoor Sports & Recreation Facilities","Leisure DSO - Leisure Centre Maintenance","R&M - Reactive",08/01/2018 00:00:00,"6652412",600,"HILTON CROFT LTD"
"Bracknell Forest Council","http://opendatacommunities.org/id/unitary-authority/bracknell-forest","Bracknell Forest Council","00MA","Management and Support Services - CYPL","Holding Codes - net nil","St Margaret Clitherow Academy","R&M - Reactive",11/12/2017 00:00:00,"6652417",3062.4,"SOUTHERN ELECTRIC CONTRACTING"
"Bracknell Forest Council","http://opendatacommunities.org/id/unitary-authority/bracknell-forest","Bracknell Forest Council","00MA","Culture and Heritage","Arts Development and Support","South Hill Park","R&M - Reactive",11/12/2017 00:00:00,"6652418",2728.47,"SOUTHERN ELECTRIC CONTRACTING"
"Bracknell Forest Council","http://opendatacommunities.org/id/unitary-authority/bracknell-forest","Bracknell Forest Council","00MA","Special Schools & Alternative Provision","Delegated Special and Alternative Provision Budgets","Kennel Lane","R&M - Reactive",29/12/2017 00:00:00,"6652424",1235.48,"B.T.U. (MAINTENANCE) LTD"
"Bracknell Forest Council","http://opendatacommunities.org/id/unitary-authority/bracknell-forest","Bracknell Forest Council","00MA","Special Schools & Alternative Provision","Delegated Special and Alternative Provision Budgets","Kennel Lane","R&M - Reactive",29/12/2017 00:00:00,"6652425",500.6,"B.T.U. (MAINTENANCE) LTD"
"Bracknell Forest Council","http://opendatacommunities.org/id/unitary-authority/bracknell-forest","Bracknell Forest Council","00MA","Services for Young People","Universal services for young people","Youth Centres Building Maintenance","R&M - Reactive",29/12/2017 00:00:00,"6652428",700.79,"B.T.U. (MAINTENANCE) LTD"
"Bracknell Forest Council","http://opendatacommunities.org/id/unitary-authority/bracknell-forest","Bracknell Forest Council","00MA","Management and Support Services - CYPL","Schools Block Centrally Managed","Educational Attainment for Looked After Children","Consultants Fees",18/12/2017 00:00:00,"6652441",4794,"NEW CONNECTIONS LIMITED"
"Bracknell Forest Council","http://opendatacommunities.org/id/unitary-authority/bracknell-forest","Bracknell Forest Council","00MA","Central Support Services - COF","Finance","Internal Audit","Contracted Services",13/12/2017 00:00:00,"6652444",8763.75,"CROYDON COUNCIL"
"Bracknell Forest Council","http://opendatacommunities.org/id/unitary-authority/bracknell-forest","Bracknell Forest Council","00MA","Central Support Services - COF","Finance","Internal Audit","Contracted Services",13/12/2017 00:00:00,"6652446",7687.5,"CROYDON COUNCIL"
"Bracknell Forest Council","http://opendatacommunities.org/id/unitary-authority/bracknell-forest","Bracknell Forest Council","00MA","Recreation, Sports and Leisure","Indoor Sports & Recreation Facilities","Leisure DSO - Leisure Centre","Other Fees for Bought-in Services",01/11/2017 00:00:00,"6652448",818.34,"VIP SECURITY SERVICES"
"Bracknell Forest Council","http://opendatacommunities.org/id/unitary-authority/bracknell-forest","Bracknell Forest Council","00MA","Homelessness","Accommodation within own Stock","Council Own Properties","R&M - Reactive",19/12/2017 00:00:00,"6652450",659.89,"B.T.U. (MAINTENANCE) LTD"
"Bracknell Forest Council","http://opendatacommunities.org/id/unitary-authority/bracknell-forest","Bracknell Forest Council","00MA","Cemeteries, Crematoria & Mortuary Services","Cemeteries & Crematorium","Easthampstead Park Cemetery & Crematorium","Contracted Services",30/12/2017 00:00:00,"6652458",1500,"NEIL CURTIS  & SONS FUNERAL CONTRACTORS LIMITED"
"Bracknell Forest Council","http://opendatacommunities.org/id/unitary-authority/bracknell-forest","Bracknell Forest Council","00MA","Cemeteries, Crematoria & Mortuary Services","Cemeteries & Crematorium","Easthampstead Park Cemetery & Crematorium","Cost of Goods Sold",18/12/2017 00:00:00,"6652459",515.55,"KAFEVEND GROUP LTD"
"Bracknell Forest Council","http://opendatacommunities.org/id/unitary-authority/bracknell-forest","Bracknell Forest Council","00MA","Other Education and Community Budget","Service strategy and other education functions","High Needs Strategic Planning Fund","Consultants Fees",20/12/2017 00:00:00,"6652460",4000,"V & G SOLUTIONS LTD"
"Bracknell Forest Council","http://opendatacommunities.org/id/unitary-authority/bracknell-forest","Bracknell Forest Council","00MA","Other Education and Community Budget","Service strategy and other education functions","High Needs Strategic Planning Fund","Consultants Fees",20/12/2017 00:00:00,"6652461",6500,"V & G SOLUTIONS LTD"
"Bracknell Forest Council","http://opendatacommunities.org/id/unitary-authority/bracknell-forest","Bracknell Forest Council","00MA","Children Looked After","Fostering services","Independent Fostering (Non BFBC)","Contracted Services",01/01/2018 00:00:00,"6652465",3487.96,"FCA / FOSTER CARE ASSOCIATES LTD"
"Bracknell Forest Council","http://opendatacommunities.org/id/unitary-authority/bracknell-forest","Bracknell Forest Council","00MA","Children Looked After","Fostering services","Independent Fostering (Non BFBC)","Contracted Services",01/01/2018 00:00:00,"6652467",3487.96,"FCA / FOSTER CARE ASSOCIATES LTD"
"Bracknell Forest Council","http://opendatacommunities.org/id/unitary-authority/bracknell-forest","Bracknell Forest Council","00MA","Recreation, Sports and Leisure","Golf Courses","Leisure DSO - Downshire Golf Shop","Cost of Goods Sold",05/12/2017 00:00:00,"6652469",636.67,"THE MASTERS GOLF COMPANY"
"Bracknell Forest Council","http://opendatacommunities.org/id/unitary-authority/bracknell-forest","Bracknell Forest Council","00MA","Children Looked After","Fostering services","Independent Fostering (Non BFBC)","Contracted Services",01/01/2018 00:00:00,"6652470",3524.08,"FCA / FOSTER CARE ASSOCIATES LTD"
"Bracknell Forest Council","http://opendatacommunities.org/id/unitary-authority/bracknell-forest","Bracknell Forest Council","00MA","Children Looked After","Fostering services","Independent Fostering (Non BFBC)","Contracted Services",01/01/2018 00:00:00,"6652472",2883.44,"FCA / FOSTER CARE ASSOCIATES LTD"
"Bracknell Forest Council","http://opendatacommunities.org/id/unitary-authority/bracknell-forest","Bracknell Forest Council","00MA","Recreation, Sports and Leisure","Indoor Sports & Recreation Facilities","Leisure DSO - Leisure Centre","R&M - Service Contracts",19/12/2017 00:00:00,"6652480",848.89,"VEOLIA CHP UK LIMITED"
"Bracknell Forest Council","http://opendatacommunities.org/id/unitary-authority/bracknell-forest","Bracknell Forest Council","00MA","Recreation, Sports and Leisure","Indoor Sports & Recreation Facilities","Leisure Centre - Catering General","Catering Staff - Overtime",20/12/2017 00:00:00,"6652485",787.29,"CONTRACT OPTIONS"
"Bracknell Forest Council","http://opendatacommunities.org/id/unitary-authority/bracknell-forest","Bracknell Forest Council","00MA","Children Looked After","Fostering services","Independent Fostering (Non BFBC)","Contracted Services",02/01/2018 00:00:00,"6652488",4048.16,"FUSION FOSTERING"
"Bracknell Forest Council","http://opendatacommunities.org/id/unitary-authority/bracknell-forest","Bracknell Forest Council","00MA","Management and Support Services - CYPL","Unallocated High Needs Related Expenditure","Occupational Therapy","Voluntary Sector Service Providers",13/12/2017 00:00:00,"6652489",3083.33,"BERKS HEALTHCARE NHS FOUNDATION TRUST"
"Bracknell Forest Council","http://opendatacommunities.org/id/unitary-authority/bracknell-forest","Bracknell Forest Council","00MA","Children Looked After","Fostering services","Cornerstone Project","Contracted Services",14/12/2017 00:00:00,"6652491",16500,"THE CORNERSTONE TRAINING AND SUPPORT LIMITED"
"Bracknell Forest Council","http://opendatacommunities.org/id/unitary-authority/bracknell-forest","Bracknell Forest Council","00MA","Children Looked After","Fostering services","Independent Fostering (Non BFBC)","Contracted Services",01/01/2018 00:00:00,"6652492",4118.57,"FUSION FOSTERING"
"Bracknell Forest Council","http://opendatacommunities.org/id/unitary-authority/bracknell-forest","Bracknell Forest Council","00MA","Children Looked After","Fostering services","Independent Fostering (Non BFBC)","Contracted Services",02/01/2018 00:00:00,"6652493",3887.62,"FUSION FOSTERING"
"Bracknell Forest Council","http://opendatacommunities.org/id/unitary-authority/bracknell-forest","Bracknell Forest Council","00MA","Children Looked After","Fostering services","Independent Fostering (Non BFBC)","Contracted Services",02/01/2018 00:00:00,"6652496",3887.62,"FUSION FOSTERING"
"Bracknell Forest Council","http://opendatacommunities.org/id/unitary-authority/bracknell-forest","Bracknell Forest Council","00MA","Children Looked After","Fostering services","Independent Fostering (Non BFBC)","Contracted Services",01/01/2018 00:00:00,"6652497",3694.58,"FUTURES FOR CHILDREN LTD"
"Bracknell Forest Council","http://opendatacommunities.org/id/unitary-authority/bracknell-forest","Bracknell Forest Council","00MA","Children Looked After","Fostering services","Independent Fostering (Non BFBC)","Contracted Services",21/12/2017 00:00:00,"6652498",3844.62,"MOMENTS  FOSTERING LTD"
"Bracknell Forest Council","http://opendatacommunities.org/id/unitary-authority/bracknell-forest","Bracknell Forest Council","00MA","Children Looked After","Fostering services","Independent Fostering (Non BFBC)","Contracted Services",21/12/2017 00:00:00,"6652499",3610.88,"MOMENTS  FOSTERING LTD"
"Bracknell Forest Council","http://opendatacommunities.org/id/unitary-authority/bracknell-forest","Bracknell Forest Council","00MA","Children Looked After","Fostering services","Independent Fostering (Non BFBC)","Contracted Services",21/12/2017 00:00:00,"6652501",3390.78,"MOMENTS  FOSTERING LTD"
"Bracknell Forest Council","http://opendatacommunities.org/id/unitary-authority/bracknell-forest","Bracknell Forest Council","00MA","Management and Support Services - CYPL","Schools Block Centrally Managed","Educational Attainment for Looked After Children","Consultants Fees",20/12/2017 00:00:00,"6652502",1833.81,"TEACHING PERSONNEL LTD"
"Bracknell Forest Council","http://opendatacommunities.org/id/unitary-authority/bracknell-forest","Bracknell Forest Council","00MA","Children Looked After","Fostering services","Independent Fostering (Non BFBC)","Contracted Services",31/12/2017 00:00:00,"6652503",2589.28,"SUNBEAM FOSTERING AGENCY LIMITED"
"Bracknell Forest Council","http://opendatacommunities.org/id/unitary-authority/bracknell-forest","Bracknell Forest Council","00MA","Children Looked After","Fostering services","Independent Fostering (Non BFBC)","Contracted Services",31/12/2017 00:00:00,"6652504",3255,"SUNBEAM FOSTERING AGENCY LIMITED"
"Bracknell Forest Council","http://opendatacommunities.org/id/unitary-authority/bracknell-forest","Bracknell Forest Council","00MA","Children Looked After","Other services for LAC","LAC - Semi Independent Living","Contracted Services",31/12/2017 00:00:00,"6652506",2167.14,"ATEGI LIMITED"
"Bracknell Forest Council","http://opendatacommunities.org/id/unitary-authority/bracknell-forest","Bracknell Forest Council","00MA","Central Support Services - COF","Finance","Finance Departmental Administration","Recruitment Expenses",28/11/2017 00:00:00,"6652508",1194,"AMBLEGLOW LTD"
"Bracknell Forest Council","http://opendatacommunities.org/id/unitary-authority/bracknell-forest","Bracknell Forest Council","00MA","Commissioning & Service Delivery","Commissioning & Service Delivery","Grants & Donations","Grants and Donations",26/10/2017 00:00:00,"6652509",500,"BFS Bracknell Film Society"
"Bracknell Forest Council","http://opendatacommunities.org/id/unitary-authority/bracknell-forest","Bracknell Forest Council","00MA","Recreation, Sports and Leisure","Indoor Sports & Recreation Facilities","Leisure DSO - Leisure Centre","Water & Sewerage",28/10/2017 00:00:00,"6652510",2860.37,"SOUTH EAST WATER"
"Bracknell Forest Council","http://opendatacommunities.org/id/unitary-authority/bracknell-forest","Bracknell Forest Council","00MA","Recreation, Sports and Leisure","Indoor Sports & Recreation Facilities","Leisure DSO - Leisure Centre","External Grounds Maintenance Costs",29/11/2017 00:00:00,"6652513",3775,"FAST TRACK SERVICES (SOUTHERN)  LTD"
"Bracknell Forest Council","http://opendatacommunities.org/id/unitary-authority/bracknell-forest","Bracknell Forest Council","00MA","Recreation, Sports and Leisure","Indoor Sports & Recreation Facilities","Leisure DSO - Coral Reef Maintenance","Materials",27/11/2017 00:00:00,"6652514",2180.6,"FAST TRACK SERVICES (SOUTHERN)  LTD"
"Bracknell Forest Council","http://opendatacommunities.org/id/unitary-authority/bracknell-forest","Bracknell Forest Council","00MA","Children Looked After","Education of LAC","Pupil Premium Educational Attainment for LAC","Contracted Services",15/12/2017 00:00:00,"6652515",1000,"ALDERMAN PAYNE PRIMARY SCHOOL"
"Bracknell Forest Council","http://opendatacommunities.org/id/unitary-authority/bracknell-forest","Bracknell Forest Council","00MA","Recreation, Sports and Leisure","Indoor Sports & Recreation Facilities","Leisure DSO - Leisure Centre","R&M - Reactive",21/11/2017 00:00:00,"6652516",3210,"FAST TRACK SERVICES (SOUTHERN)  LTD"
"Bracknell Forest Council","http://opendatacommunities.org/id/unitary-authority/bracknell-forest","Bracknell Forest Council","00MA","Open Spaces","Community Parks & Open Spaces","South Hill Park Maintenance","Materials",22/11/2017 00:00:00,"6652517",4923.04,"OAKTREE GARDEN CENTRE"
"Bracknell Forest Council","http://opendatacommunities.org/id/unitary-authority/bracknell-forest","Bracknell Forest Council","00MA","Safeguarding Children and Young People's Services","Social Work","FSP Training Costs","Training Costs",17/11/2017 00:00:00,"6652519",3540,"INTERFACE ENTERPRISES LTD"
"Bracknell Forest Council","http://opendatacommunities.org/id/unitary-authority/bracknell-forest","Bracknell Forest Council","00MA","Central Support Services - COF","Construction and Property","Construction & Maintenance","Agency",10/01/2018 00:00:00,"6652525",1290,"THE OYSTER PARTNERSHIP"
"Bracknell Forest Council","http://opendatacommunities.org/id/unitary-authority/bracknell-forest","Bracknell Forest Council","00MA","Service Management & Support Services","Service Management & Support Services","Departmental Office Services CLOSED","Reference Books & Publications",01/01/2018 00:00:00,"6652534",788,"BSI SHOP"
"Bracknell Forest Council","http://opendatacommunities.org/id/unitary-authority/bracknell-forest","Bracknell Forest Council","00MA","Sexual Health Services","STI testing and treatment","Sexual Health - STI Testing & Treatment (Berks)","Contracted Services",22/12/2017 00:00:00,"6652537",1577,"BARTS HEALTH NHS TRUST"
"Bracknell Forest Council","http://opendatacommunities.org/id/unitary-authority/bracknell-forest","Bracknell Forest Council","00MA","Sexual Health Services","STI testing and treatment","Sexual Health - STI Testing & Treatment (Berks)","Contracted Services",27/12/2017 00:00:00,"6652538",7591,"OXFORD UNIVERSITY HOSPITALS"
"Bracknell Forest Council","http://opendatacommunities.org/id/unitary-authority/bracknell-forest","Bracknell Forest Council","00MA","Management and Support Services - CYPL","Unallocated High Needs Related Expenditure","SEN Non LEA Provision Pre 16","Voluntary Sector Service Providers",02/01/2018 00:00:00,"6652541",17003,"THE DISABILITIES TRUST"
"Bracknell Forest Council","http://opendatacommunities.org/id/unitary-authority/bracknell-forest","Bracknell Forest Council","00MA","Management and Support Services - CYPL","Unallocated High Needs Related Expenditure","SEN Non LEA Provision Pre 16","Voluntary Sector Service Providers",02/01/2018 00:00:00,"6652542",17299,"THE DISABILITIES TRUST"
"Bracknell Forest Council","http://opendatacommunities.org/id/unitary-authority/bracknell-forest","Bracknell Forest Council","00MA","Management and Support Services - CYPL","Unallocated High Needs Related Expenditure","SEN Non LEA Provision Pre 16","Voluntary Sector Service Providers",02/01/2018 00:00:00,"6652543",14139,"THE DISABILITIES TRUST"
"Bracknell Forest Council","http://opendatacommunities.org/id/unitary-authority/bracknell-forest","Bracknell Forest Council","00MA","Management and Support Services - CYPL","Unallocated High Needs Related Expenditure","SEN Non LEA Provision Pre 16","Voluntary Sector Service Providers",02/01/2018 00:00:00,"6652544",17299,"THE DISABILITIES TRUST"
"Bracknell Forest Council","http://opendatacommunities.org/id/unitary-authority/bracknell-forest","Bracknell Forest Council","00MA","Management and Support Services - CYPL","Unallocated High Needs Related Expenditure","SEN Non LEA Provision Pre 16","Voluntary Sector Service Providers",02/01/2018 00:00:00,"6652545",17299,"ODYSSEY MARKIDES LLP"
"Bracknell Forest Council","http://opendatacommunities.org/id/unitary-authority/bracknell-forest","Bracknell Forest Council","00MA","Commissioning & Service Delivery","Commissioning & Service Delivery","BCF - Programme Support","Consultants Fees",01/01/2018 00:00:00,"6652549",1801.8,"BADGERS INC LTD"
"Bracknell Forest Council","http://opendatacommunities.org/id/unitary-authority/bracknell-forest","Bracknell Forest Council","00MA","Sexual Health Services","STI testing and treatment","Sexual Health - STI Testing & Treatment (Berks)","Contracted Services",21/12/2017 00:00:00,"6652550",1121.57,"CHELSEA & WESTMINSTER NHSFT"
"Bracknell Forest Council","http://opendatacommunities.org/id/unitary-authority/bracknell-forest","Bracknell Forest Council","00MA","Sexual Health Services","STI testing and treatment","Sexual Health - STI Testing & Treatment (Berks)","Contracted Services",21/12/2017 00:00:00,"6652551",1012.44,"CHELSEA & WESTMINSTER NHSFT"
"Bracknell Forest Council","http://opendatacommunities.org/id/unitary-authority/bracknell-forest","Bracknell Forest Council","00MA","Children Looked After","Residential care","Children's Home Placements","Contracted Services",01/01/2018 00:00:00,"6652552",15057.01,"MOONREACH"
"Bracknell Forest Council","http://opendatacommunities.org/id/unitary-authority/bracknell-forest","Bracknell Forest Council","00MA","Children Looked After","Residential care","Children's Home Placements","Contracted Services",01/01/2018 00:00:00,"6652554",942.86,"MOONREACH"
"Bracknell Forest Council","http://opendatacommunities.org/id/unitary-authority/bracknell-forest","Bracknell Forest Council","00MA","Children Looked After","Adoption Services","Additional Adoption Support","Client Training & Support",02/01/2018 00:00:00,"6652555",1160,"INSIGHT4CHILDREN LIMITED"
"Bracknell Forest Council","http://opendatacommunities.org/id/unitary-authority/bracknell-forest","Bracknell Forest Council","00MA","Social Care Activities","Social Care Activities","Locality Manager - Mental Health Services","Contracted Services",19/12/2017 00:00:00,"6652556",3925.08,"BERKSHIRE HEALTHCARE NHS FOUNDATION TRUST"
"Bracknell Forest Council","http://opendatacommunities.org/id/unitary-authority/bracknell-forest","Bracknell Forest Council","00MA","Children Looked After","Residential care","Children's Home Placements","Contracted Services",21/12/2017 00:00:00,"6652557",15903,"CAMBIAN CHILDCARE LTD"
"Bracknell Forest Council","http://opendatacommunities.org/id/unitary-authority/bracknell-forest","Bracknell Forest Council","00MA","Family Support Services","Targeted Family Support","Sec 28A - Day Centre Purchases","Contracted Services",20/12/2017 00:00:00,"6652560",7304.22,"CAMBIAN AUTISM SERVICES LTD"
"Bracknell Forest Council","http://opendatacommunities.org/id/unitary-authority/bracknell-forest","Bracknell Forest Council","00MA","Children Looked After","Residential care","C&F Learning Disability Placements","Contracted Services",20/12/2017 00:00:00,"6652560",12665.67,"CAMBIAN AUTISM SERVICES LTD"
"Bracknell Forest Council","http://opendatacommunities.org/id/unitary-authority/bracknell-forest","Bracknell Forest Council","00MA","Management and Support Services - CYPL","Unallocated High Needs Related Expenditure","SEN Non LEA Provision Pre 16","Voluntary Sector Service Providers",20/12/2017 00:00:00,"6652560",2164.42,"CAMBIAN AUTISM SERVICES LTD"
"Bracknell Forest Council","http://opendatacommunities.org/id/unitary-authority/bracknell-forest","Bracknell Forest Council","00MA","Children Looked After","Other services for LAC","LAC - Semi Independent Living","Contracted Services",21/12/2017 00:00:00,"6652561",5429.06,"FAIRWAYS CARE (UK) LTD"
"Bracknell Forest Council","http://opendatacommunities.org/id/unitary-authority/bracknell-forest","Bracknell Forest Council","00MA","Holding Accounts in Budget Book COF","Corporate Services - Office Services","Postal Services","Postage",28/12/2017 00:00:00,"6652562",1214.33,"WHISTL"
"Bracknell Forest Council","http://opendatacommunities.org/id/unitary-authority/bracknell-forest","Bracknell Forest Council","00MA","Other Education and Community Budget","Service strategy and other education functions","Learning & Achievement","Consultants Fees",30/12/2017 00:00:00,"6652563",600,"Redact Personal Info"
"Bracknell Forest Council","http://opendatacommunities.org/id/unitary-authority/bracknell-forest","Bracknell Forest Council","00MA","Sexual Health Services","STI testing and treatment","Sexual Health - STI Testing & Treatment (Berks)","Contracted Services",21/12/2017 00:00:00,"6652564",2885.18,"CHELSEA & WESTMINSTER NHSFT"
"Bracknell Forest Council","http://opendatacommunities.org/id/unitary-authority/bracknell-forest","Bracknell Forest Council","00MA","Sexual Health Services","STI testing and treatment","Sexual Health - STI Testing & Treatment (Berks)","Contracted Services",21/12/2017 00:00:00,"6652567",1121.57,"CHELSEA & WESTMINSTER NHSFT"
"Bracknell Forest Council","http://opendatacommunities.org/id/unitary-authority/bracknell-forest","Bracknell Forest Council","00MA","Substance Misuse","Drug misuse in adults","SM Operational Costs","Contracted Services",27/12/2017 00:00:00,"6652571",776.84,"BERKSHIRE HEALTHCARE NHS FOUNDATION TRUST"
"Bracknell Forest Council","http://opendatacommunities.org/id/unitary-authority/bracknell-forest","Bracknell Forest Council","00MA","Other Welfare Services","Other Welfare Services","Forestcare - Operational","Publicity & Marketing",29/12/2017 00:00:00,"6652572",850,"QWERTY LTD"
"Bracknell Forest Council","http://opendatacommunities.org/id/unitary-authority/bracknell-forest","Bracknell Forest Council","00MA","NHS Health Check Programme","NHS Health Check Programme","GP Health Checks","Contracted Services",02/01/2018 00:00:00,"6652579",3980,"CORDWALLIS ROAD SURGERY"
"Bracknell Forest Council","http://opendatacommunities.org/id/unitary-authority/bracknell-forest","Bracknell Forest Council","00MA","Sexual Health Services","Contraception","GP LARC Payments","Contracted Services",02/01/2018 00:00:00,"6652580",1232,"LANGLEY HEALTH CENTRE"
"Bracknell Forest Council","http://opendatacommunities.org/id/unitary-authority/bracknell-forest","Bracknell Forest Council","00MA","NHS Health Check Programme","NHS Health Check Programme","GP Health Checks","Contracted Services",02/01/2018 00:00:00,"6652580",1020,"LANGLEY HEALTH CENTRE"
"Bracknell Forest Council","http://opendatacommunities.org/id/unitary-authority/bracknell-forest","Bracknell Forest Council","00MA","Social Care Activities","Social Care Activities","MC Management & Administration","Contracted Services",19/12/2017 00:00:00,"6652581",2454.31,"BERKSHIRE HEALTHCARE NHS FOUNDATION TRUST"
"Bracknell Forest Council","http://opendatacommunities.org/id/unitary-authority/bracknell-forest","Bracknell Forest Council","00MA","Sexual Health Services","STI testing and treatment","Sexual Health - STI Testing & Treatment (Berks)","Contracted Services",21/12/2017 00:00:00,"6652583",926.57,"CHELSEA & WESTMINSTER NHSFT"
"Bracknell Forest Council","http://opendatacommunities.org/id/unitary-authority/bracknell-forest","Bracknell Forest Council","00MA","Central Support Services - COF","Fleet","Transport Services","Operating Lease Charge",17/12/2017 00:00:00,"6652584",5220.84,"LEX AUTOLEASE LTD"
"Bracknell Forest Council","http://opendatacommunities.org/id/unitary-authority/bracknell-forest","Bracknell Forest Council","00MA","Sexual Health Services","STI testing and treatment","Sexual Health - STI Testing & Treatment (Berks)","Contracted Services",21/12/2017 00:00:00,"6652590",1904.12,"CHELSEA & WESTMINSTER NHSFT"
"Bracknell Forest Council","http://opendatacommunities.org/id/unitary-authority/bracknell-forest","Bracknell Forest Council","00MA","Culture and Heritage","Heritage Museums & Galleries","The Look Out Catering","Cost of Goods Sold",02/01/2018 00:00:00,"6652591",904.64,"THE LOVELY CHEESE COMPANY"
"Bracknell Forest Council","http://opendatacommunities.org/id/unitary-authority/bracknell-forest","Bracknell Forest Council","00MA","Sexual Health Services","STI testing and treatment","Sexual Health - STI Testing & Treatment (Berks)","Contracted Services",21/12/2017 00:00:00,"6652600",1330.59,"CHELSEA & WESTMINSTER NHSFT"
"Bracknell Forest Council","http://opendatacommunities.org/id/unitary-authority/bracknell-forest","Bracknell Forest Council","00MA","Cemeteries, Crematoria & Mortuary Services","Cemeteries & Crematorium","Easthampstead Park Cemetery & Crematorium","Contract Cleaning",28/12/2017 00:00:00,"6652605",1325,"CLEAN UPS"
"Bracknell Forest Council","http://opendatacommunities.org/id/unitary-authority/bracknell-forest","Bracknell Forest Council","00MA","Sexual Health Services","STI testing and treatment","Sexual Health - STI Testing & Treatment (Berks)","Contracted Services",15/12/2017 00:00:00,"6652606",26260,"ROYAL BERKSHIRE HOSPITAL/ nhs foundation trust"
"Bracknell Forest Council","http://opendatacommunities.org/id/unitary-authority/bracknell-forest","Bracknell Forest Council","00MA","Culture and Heritage","Heritage Museums & Galleries","The Look Out","Equipment - R&M",20/12/2017 00:00:00,"6652608",580,"JOHN A WEBB LTD"
"Bracknell Forest Council","http://opendatacommunities.org/id/unitary-authority/bracknell-forest","Bracknell Forest Council","00MA","Sexual Health Services","STI testing and treatment","Sexual Health - STI Testing & Treatment (Berks)","Contracted Services",15/12/2017 00:00:00,"6652612",200999,"ROYAL BERKSHIRE HOSPITAL/ nhs foundation trust"
"Bracknell Forest Council","http://opendatacommunities.org/id/unitary-authority/bracknell-forest","Bracknell Forest Council","00MA","Management and Support Services - CYPL","Unallocated High Needs Related Expenditure","Mainstream - Element 3 top up non BFC pre 16","Other Local Authorities",19/12/2017 00:00:00,"6652615",12333.34,"NAS ACADEMIES TRUST"
"Bracknell Forest Council","http://opendatacommunities.org/id/unitary-authority/bracknell-forest","Bracknell Forest Council","00MA","Management and Support Services - CYPL","Unallocated High Needs Related Expenditure","Mainstream - Element 3 top up non BFC pre 16","Other Local Authorities",19/12/2017 00:00:00,"6652617",12666.67,"NAS ACADEMIES TRUST"
"Bracknell Forest Council","http://opendatacommunities.org/id/unitary-authority/bracknell-forest","Bracknell Forest Council","00MA","Children Looked After","Short breaks for LAC","Larchwood","Agency",13/12/2017 00:00:00,"6652618",644.76,"CARELINE"
"Bracknell Forest Council","http://opendatacommunities.org/id/unitary-authority/bracknell-forest","Bracknell Forest Council","00MA","Management and Support Services - CYPL","Unallocated High Needs Related Expenditure","Mainstream - Element 3 top up non BFC pre 16","Other Local Authorities",19/12/2017 00:00:00,"6652619",12666.67,"NAS ACADEMIES TRUST"
"Bracknell Forest Council","http://opendatacommunities.org/id/unitary-authority/bracknell-forest","Bracknell Forest Council","00MA","Management and Support Services - CYPL","Unallocated High Needs Related Expenditure","Mainstream - Element 3 top up non BFC pre 16","Other Local Authorities",19/12/2017 00:00:00,"6652621",12666.67,"NAS ACADEMIES TRUST"
"Bracknell Forest Council","http://opendatacommunities.org/id/unitary-authority/bracknell-forest","Bracknell Forest Council","00MA","Management and Support Services - CYPL","Unallocated High Needs Related Expenditure","Mainstream - Element 3 top up non BFC pre 16","RB of Windsor & Maidenhead",29/12/2017 00:00:00,"6652623",2746,"WESSEX PRIMARY SCHOOL"
"Bracknell Forest Council","http://opendatacommunities.org/id/unitary-authority/bracknell-forest","Bracknell Forest Council","00MA","Registration of Electors","Registration of Electors","Electoral Registration","Training Costs",18/12/2017 00:00:00,"6652626",1759.53,"THE ASSOCIATION OF ELECTORAL ADMINISTRAT"
"Bracknell Forest Council","http://opendatacommunities.org/id/unitary-authority/bracknell-forest","Bracknell Forest Council","00MA","NHS Health Check Programme","NHS Health Check Programme","GP Health Checks","Contracted Services",01/01/2018 00:00:00,"6652629",4100,"RAGSTONE ROAD SURGERY"
"Bracknell Forest Council","http://opendatacommunities.org/id/unitary-authority/bracknell-forest","Bracknell Forest Council","00MA","Sexual Health Services","Contraception","GP LARC Payments","Contracted Services",02/01/2018 00:00:00,"6652632",4298.5,"WESTERN ELMS SURGERY"
"Bracknell Forest Council","http://opendatacommunities.org/id/unitary-authority/bracknell-forest","Bracknell Forest Council","00MA","NHS Health Check Programme","NHS Health Check Programme","GP Health Checks","Contracted Services",02/01/2018 00:00:00,"6652632",980,"WESTERN ELMS SURGERY"
"Bracknell Forest Council","http://opendatacommunities.org/id/unitary-authority/bracknell-forest","Bracknell Forest Council","00MA","Central Support Services - COF","Construction and Property","Depot Facilities","Water & Sewerage",08/01/2018 00:00:00,"6652635",2321.74,"SOUTH EAST WATER"
"Bracknell Forest Council","http://opendatacommunities.org/id/unitary-authority/bracknell-forest","Bracknell Forest Council","00MA","Transport Planning, Policy & Strategy","Transport Policy, Planning & Strategy","Monitoring Street Works","Training Costs",09/01/2018 00:00:00,"6652638",2100,"YOTTA DCL"
"Bracknell Forest Council","http://opendatacommunities.org/id/unitary-authority/bracknell-forest","Bracknell Forest Council","00MA","London Rd Martins Heron Roundabout","","","Construction - Other Direct Expenses",31/12/2017 00:00:00,"6652639",1100,"WATERMAN ASPEN LTD"
"Bracknell Forest Council","http://opendatacommunities.org/id/unitary-authority/bracknell-forest","Bracknell Forest Council","00MA","Housing Benefits Administration","Housing Benefits Administration","Benefits Administration","Other Fees for Bought-in Services",05/01/2018 00:00:00,"6652640",3000,"NORTHGATE PUBLIC SERVICES (UK) LTD"
"Bracknell Forest Council","http://opendatacommunities.org/id/unitary-authority/bracknell-forest","Bracknell Forest Council","00MA","Open Spaces","Community Parks & Open Spaces","Tree Service","Contracted Services",27/12/2017 00:00:00,"6652642",750,"ALPINE TREE SURGEONS LTD"
"Bracknell Forest Council","http://opendatacommunities.org/id/unitary-authority/bracknell-forest","Bracknell Forest Council","00MA","Recreation, Sports and Leisure","Indoor Sports & Recreation Facilities","Leisure Centre - Catering General","Catering Staff - Overtime",13/12/2017 00:00:00,"6652650",650.94,"CONTRACT OPTIONS"
"Bracknell Forest Council","http://opendatacommunities.org/id/unitary-authority/bracknell-forest","Bracknell Forest Council","00MA","Family Support Services","Targeted Family Support","C&F Section 17 Under 11's Team","Other Support to Clients",13/12/2017 00:00:00,"6652652",600,"PINEHILL ROOMS BRACKNELL"
"Bracknell Forest Council","http://opendatacommunities.org/id/unitary-authority/bracknell-forest","Bracknell Forest Council","00MA","Social Care Activities","Social Care Activities","Adult Community Team","Contracted Services",19/12/2017 00:00:00,"6652653",1682.43,"BERKSHIRE HEALTHCARE NHS FOUNDATION TRUST"
"Bracknell Forest Council","http://opendatacommunities.org/id/unitary-authority/bracknell-forest","Bracknell Forest Council","00MA","EDRMS (Invest to Save)","","","Other Direct Expenses",05/01/2018 00:00:00,"6652655",990,"CONTINUUM CONNECTED CONSULTING LIMITED"
"Bracknell Forest Council","http://opendatacommunities.org/id/unitary-authority/bracknell-forest","Bracknell Forest Council","00MA","Sexual Health Services","Contraception","GP LARC Payments","Contracted Services",05/10/2017 00:00:00,"6652656",1999,"THE BUCKLEBURY PRACTICE"
"Bracknell Forest Council","http://opendatacommunities.org/id/unitary-authority/bracknell-forest","Bracknell Forest Council","00MA","NHS Health Check Programme","NHS Health Check Programme","GP Health Checks","Contracted Services",05/10/2017 00:00:00,"6652656",860,"THE BUCKLEBURY PRACTICE"
"Bracknell Forest Council","http://opendatacommunities.org/id/unitary-authority/bracknell-forest","Bracknell Forest Council","00MA","Central Support Services - COF","Personnel","Personnel Services","Consultants Fees",06/12/2017 00:00:00,"6652661",5750,"KORN FERRY HAY GROUP"
"Bracknell Forest Council","http://opendatacommunities.org/id/unitary-authority/bracknell-forest","Bracknell Forest Council","00MA","Priestwood GC","","","Construction - Contract Payments",05/01/2018 00:00:00,"6652668",2612,"MORRIS & BLUNT LTD"
"Bracknell Forest Council","http://opendatacommunities.org/id/unitary-authority/bracknell-forest","Bracknell Forest Council","00MA","Recreation, Sports and Leisure","Indoor Sports & Recreation Facilities","Leisure DSO - Coral Reef","Refuse Collection",31/12/2017 00:00:00,"6652669",530.7,"SUEZ RECYCLING AND RECOVERY UK LTD"
"Bracknell Forest Council","http://opendatacommunities.org/id/unitary-authority/bracknell-forest","Bracknell Forest Council","00MA","Primary Schools","Centrally managed Expenditure - Early Years","EH Quality and Development","Other Fees for Bought-in Services",02/01/2018 00:00:00,"6652671",11083.5,"HOME-START BRACKNELL FOREST"
"Bracknell Forest Council","http://opendatacommunities.org/id/unitary-authority/bracknell-forest","Bracknell Forest Council","00MA","Assistive Equipment & Technology","Assistive Equipment & Technology","Assistive Equipment & Technology","Other Support to Clients",01/01/2018 00:00:00,"6652673",2328.8,"PARITY FOR DISABILITY"
"Bracknell Forest Council","http://opendatacommunities.org/id/unitary-authority/bracknell-forest","Bracknell Forest Council","00MA","Transport Planning, Policy & Strategy","Transport Policy, Planning & Strategy","Street Works - Permit Scheme","Computer Software Maintenance",31/12/2017 00:00:00,"6652674",15517.5,"YOTTA DCL"
"Bracknell Forest Council","http://opendatacommunities.org/id/unitary-authority/bracknell-forest","Bracknell Forest Council","00MA","Public Transport","Support To Operators","Public Transport Subsidy","Contracted Services",31/12/2017 00:00:00,"6652675",54415.65,"COURTNEY COACHES LTD - FACTORED"
"Bracknell Forest Council","http://opendatacommunities.org/id/unitary-authority/bracknell-forest","Bracknell Forest Council","00MA","Public Transport","Concessionary Fares","Concessionary Fares","Contracted Services",01/01/2018 00:00:00,"6652676",46000,"COURTNEY COACHES LTD -NOT FACTORED"
"Bracknell Forest Council","http://opendatacommunities.org/id/unitary-authority/bracknell-forest","Bracknell Forest Council","00MA","Public Transport","Support To Operators","Public Transport Subsidy","Contracted Services",31/12/2017 00:00:00,"6652677",8333.33,"COURTNEY COACHES LTD - FACTORED"
"Bracknell Forest Council","http://opendatacommunities.org/id/unitary-authority/bracknell-forest","Bracknell Forest Council","00MA","Children Looked After","Other services for LAC","LAC - Semi Independent Living","Contracted Services",25/12/2017 00:00:00,"6652681",1520,"BRIGHTER STEPS LTD"
"Bracknell Forest Council","http://opendatacommunities.org/id/unitary-authority/bracknell-forest","Bracknell Forest Council","00MA","Social Care Activities","Social Care Activities","Mental Capacity Act & IMCA Service","Other Support to Clients",03/01/2018 00:00:00,"6652689",2325,"MATRIX SERVICE DEVELOPMENT AND TRAINING LTD"
"Bracknell Forest Council","http://opendatacommunities.org/id/unitary-authority/bracknell-forest","Bracknell Forest Council","00MA","Recreation, Sports and Leisure","Indoor Sports & Recreation Facilities","Leisure DSO - Leisure Centre","Other Fees for Bought-in Services",03/01/2018 00:00:00,"6652690",1320.61,"VIP SECURITY SERVICES"
"Bracknell Forest Council","http://opendatacommunities.org/id/unitary-authority/bracknell-forest","Bracknell Forest Council","00MA","Holly Spring Junior-MTC","","","Construction - Contract Payments",20/12/2017 00:00:00,"6652691",4675.4,"CHURCHES FIRE SECURITY LTD"
"Bracknell Forest Council","http://opendatacommunities.org/id/unitary-authority/bracknell-forest","Bracknell Forest Council","00MA","Central Support Services - COF","Policy Unit","External Communications","Licences",22/12/2017 00:00:00,"6652692",2254,"THE NEWSPAPER LICENSING AGENCY"
"Bracknell Forest Council","http://opendatacommunities.org/id/unitary-authority/bracknell-forest","Bracknell Forest Council","00MA","Older People (65+)","Long Term Support - Community:Other Long Term Care","PS Long Term Support - Community: Other Long Term Care Blue Badges","Contracted Services",02/01/2018 00:00:00,"6652693",569.6,"NORTHGATE PUBLIC SERVICES (UK) LTD"
"Bracknell Forest Council","http://opendatacommunities.org/id/unitary-authority/bracknell-forest","Bracknell Forest Council","00MA","Service Management & Support Services","Service Management & Support Services","Departmental IT CLOSED","Computer -Purchase",09/01/2018 00:00:00,"6652694",917,"COLYER REPROPOINT LTD"
"Bracknell Forest Council","http://opendatacommunities.org/id/unitary-authority/bracknell-forest","Bracknell Forest Council","00MA","Family Support Services","Universal Family Support","Family Information Service","Computer Software Maintenance",05/01/2018 00:00:00,"6652695",11576,"IDOX SOFTWARE LTD"
"Bracknell Forest Council","http://opendatacommunities.org/id/unitary-authority/bracknell-forest","Bracknell Forest Council","00MA","Leisure Sites Equipment","","","Other Equipment",09/01/2018 00:00:00,"6652698",1434,"NISSEN LEISURE LTD"
"Bracknell Forest Council","http://opendatacommunities.org/id/unitary-authority/bracknell-forest","Bracknell Forest Council","00MA","Minor Works Programme","","","Construction - Other Direct Expenses",09/01/2018 00:00:00,"6652699",5700,"NISSEN LEISURE LTD"
"Bracknell Forest Council","http://opendatacommunities.org/id/unitary-authority/bracknell-forest","Bracknell Forest Council","00MA","Recreation, Sports and Leisure","Indoor Sports & Recreation Facilities","Leisure DSO - Coral Reef","R&M - Service Contracts",22/12/2017 00:00:00,"6652700",1815,"DOLPHIN MOBILITY"
"Bracknell Forest Council","http://opendatacommunities.org/id/unitary-authority/bracknell-forest","Bracknell Forest Council","00MA","Recreation, Sports and Leisure","Indoor Sports & Recreation Facilities","Leisure DSO - Coral Reef","Cleaning materials",15/12/2017 00:00:00,"6652707",837.16,"BOWAK LTD"
"Bracknell Forest Council","http://opendatacommunities.org/id/unitary-authority/bracknell-forest","Bracknell Forest Council","00MA","Cemeteries, Crematoria & Mortuary Services","Cemeteries & Crematorium","Cemetery & Crematorium Landscaping","Equipment - Purchase",20/12/2017 00:00:00,"6652708",1650,"FAROL LIMITED"
"Bracknell Forest Council","http://opendatacommunities.org/id/unitary-authority/bracknell-forest","Bracknell Forest Council","00MA","Sexual Health Services","Contraception","GP LARC Payments","Contracted Services",04/01/2018 00:00:00,"6652710",3080,"FOREST HEALTH GROUP /FOREST END MEDICAL CENTRE"
"Bracknell Forest Council","http://opendatacommunities.org/id/unitary-authority/bracknell-forest","Bracknell Forest Council","00MA","NHS Health Check Programme","NHS Health Check Programme","GP Health Checks","Contracted Services",04/01/2018 00:00:00,"6652710",840,"FOREST HEALTH GROUP /FOREST END MEDICAL CENTRE"
"Bracknell Forest Council","http://opendatacommunities.org/id/unitary-authority/bracknell-forest","Bracknell Forest Council","00MA","Sexual Health Services","Contraception","GP LARC Payments","Contracted Services",05/01/2018 00:00:00,"6652711",1584,"SHEET STREET SURGERY"
"Bracknell Forest Council","http://opendatacommunities.org/id/unitary-authority/bracknell-forest","Bracknell Forest Council","00MA","Waste Disposal","Disposal of Waste","London Road Tip","Contracted Services",29/12/2017 00:00:00,"6652715",925.6,"ENITIAL"
"Bracknell Forest Council","http://opendatacommunities.org/id/unitary-authority/bracknell-forest","Bracknell Forest Council","00MA","Sexual Health Services","Contraception","GP LARC Payments","Contracted Services",05/01/2018 00:00:00,"6652718",1056,"THE SYMONS MEDICAL CENTRE"
"Bracknell Forest Council","http://opendatacommunities.org/id/unitary-authority/bracknell-forest","Bracknell Forest Council","00MA","Sexual Health Services","Contraception","GP LARC Payments","Contracted Services",04/01/2018 00:00:00,"6652720",4048,"FARNHAM ROAD PRACTICE"
"Bracknell Forest Council","http://opendatacommunities.org/id/unitary-authority/bracknell-forest","Bracknell Forest Council","00MA","NHS Health Check Programme","NHS Health Check Programme","GP Health Checks","Contracted Services",04/01/2018 00:00:00,"6652720",1860,"FARNHAM ROAD PRACTICE"
"Bracknell Forest Council","http://opendatacommunities.org/id/unitary-authority/bracknell-forest","Bracknell Forest Council","00MA","Sexual Health Services","Contraception","GP LARC Payments","Contracted Services",31/12/2017 00:00:00,"6652721",2435.5,"MELROSE SURGERY"
"Bracknell Forest Council","http://opendatacommunities.org/id/unitary-authority/bracknell-forest","Bracknell Forest Council","00MA","NHS Health Check Programme","NHS Health Check Programme","GP Health Checks","Contracted Services",31/12/2017 00:00:00,"6652721",560,"MELROSE SURGERY"
"Bracknell Forest Council","http://opendatacommunities.org/id/unitary-authority/bracknell-forest","Bracknell Forest Council","00MA","Public Transport","Support To Operators","Public Transport Subsidy","Contracted Services",31/12/2017 00:00:00,"6652724",7083.33,"KEEP MOBILE"
"Bracknell Forest Council","http://opendatacommunities.org/id/unitary-authority/bracknell-forest","Bracknell Forest Council","00MA","Children Looked After","Other services for LAC","LAC - Under 11s Expenditure","Other Support to Clients",01/01/2018 00:00:00,"6652726",3365.71,"BRIGHTER FUTURES FOSTER CARE LTD"
"Bracknell Forest Council","http://opendatacommunities.org/id/unitary-authority/bracknell-forest","Bracknell Forest Council","00MA","Central Support Services - COF","Construction and Property","Time Square Office","Refuse Collection",31/12/2017 00:00:00,"6652727",769.63,"SUEZ RECYCLING AND RECOVERY UK LTD"
"Bracknell Forest Council","http://opendatacommunities.org/id/unitary-authority/bracknell-forest","Bracknell Forest Council","00MA","Substance Misuse","Drug misuse in adults","SM DAAT Administration Costs","Agency",24/12/2017 00:00:00,"6652728",786.25,"SERVICE CARE SOLUTIONS LIMITED"
"Bracknell Forest Council","http://opendatacommunities.org/id/unitary-authority/bracknell-forest","Bracknell Forest Council","00MA","Social Care Activities","Social Care Activities","Mental Capacity Act & IMCA Service","Other Support to Clients",28/12/2017 00:00:00,"6652733",604.2,"AA NOAH CONSULTING LIMITED"
"Bracknell Forest Council","http://opendatacommunities.org/id/unitary-authority/bracknell-forest","Bracknell Forest Council","00MA","Management and Support Services - CYPL","Schools Block Centrally Managed","Educational Attainment for Looked After Children","Learning Resources - Purchase",16/01/2018 00:00:00,"6652735",600,"PAYMENT WITHOUT INVOICES"
"Bracknell Forest Council","http://opendatacommunities.org/id/unitary-authority/bracknell-forest","Bracknell Forest Council","00MA","Management and Support Services - CYPL","Unallocated High Needs Related Expenditure","Mainstream - Element 3 top up BFC Academy pre 16","Contracted Services",16/01/2018 00:00:00,"6652738",1747.51,"RANELAGH SCHOOL"
"Bracknell Forest Council","http://opendatacommunities.org/id/unitary-authority/bracknell-forest","Bracknell Forest Council","00MA","Management and Support Services - CYPL","Unallocated High Needs Related Expenditure","Mainstream - Element 3 top up BFC Academy pre 16","Contracted Services",16/01/2018 00:00:00,"6652738",5500,"RANELAGH SCHOOL"
"Bracknell Forest Council","http://opendatacommunities.org/id/unitary-authority/bracknell-forest","Bracknell Forest Council","00MA","Management and Support Services - CYPL","Unallocated High Needs Related Expenditure","Delegated ISB - SEN Contingency","Contracted Services",16/01/2018 00:00:00,"6652738",1833.33,"RANELAGH SCHOOL"
"Bracknell Forest Council","http://opendatacommunities.org/id/unitary-authority/bracknell-forest","Bracknell Forest Council","00MA","Management and Support Services - CYPL","Holding Codes - net nil","Ranelagh Academy","Government Grants",16/01/2018 00:00:00,"6652738",2440,"RANELAGH SCHOOL"
"Bracknell Forest Council","http://opendatacommunities.org/id/unitary-authority/bracknell-forest","Bracknell Forest Council","00MA","Substance Misuse","Drug misuse in adults","SM New Hope Running Costs","Other Fees for Bought-in Services",01/01/2018 00:00:00,"6652741",624.75,"IN PRACTICE SYSTEMS LIMITED"
"Bracknell Forest Council","http://opendatacommunities.org/id/unitary-authority/bracknell-forest","Bracknell Forest Council","00MA","Recreation, Sports and Leisure","Golf Courses","Golf Course Management & Administration","R&M - Service Contracts",31/12/2017 00:00:00,"6652747",575,"BENVILLE AND MARSH LTD"
"Bracknell Forest Council","http://opendatacommunities.org/id/unitary-authority/bracknell-forest","Bracknell Forest Council","00MA","Recreation, Sports and Leisure","Golf Courses","Leisure DSO - Downshire Catering","Equipment - Rental",08/01/2018 00:00:00,"6652749",1250,"Redact Personal Info"
"Bracknell Forest Council","http://opendatacommunities.org/id/unitary-authority/bracknell-forest","Bracknell Forest Council","00MA","Business Support","Premises Development","Commercial Properties","R&M - Planned",05/01/2018 00:00:00,"6652754",7745,"BERKSHIRE MECHANICAL SERVICES"
"Bracknell Forest Council","http://opendatacommunities.org/id/unitary-authority/bracknell-forest","Bracknell Forest Council","00MA","Business Support","Premises Development","Commercial Properties","R&M - Planned",05/01/2018 00:00:00,"6652754",1000,"BERKSHIRE MECHANICAL SERVICES"
"Bracknell Forest Council","http://opendatacommunities.org/id/unitary-authority/bracknell-forest","Bracknell Forest Council","00MA","Safeguarding Children and Young People's Services","Social Work","Family Placement","Sessional",19/12/2017 00:00:00,"6652755",556.85,"HL FAMILY PLACEMENT SERVICES LTD"
"Bracknell Forest Council","http://opendatacommunities.org/id/unitary-authority/bracknell-forest","Bracknell Forest Council","00MA","Wooden Hill Primary","","","Construction - Contract Payments",23/11/2017 00:00:00,"6652756",12323.57,"KIER FACILITIES SERVICES LIMITED"
"Bracknell Forest Council","http://opendatacommunities.org/id/unitary-authority/bracknell-forest","Bracknell Forest Council","00MA","Wildmoor Heath - MTC","","","Construction - Other Direct Expenses",22/11/2017 00:00:00,"6652758",2319.2,"KIER FACILITIES SERVICES LIMITED"
"Bracknell Forest Council","http://opendatacommunities.org/id/unitary-authority/bracknell-forest","Bracknell Forest Council","00MA","Holly Spring Junior-MTC","","","Construction - Other Direct Expenses",22/11/2017 00:00:00,"6652760",17499,"KIER FACILITIES SERVICES LIMITED"
"Bracknell Forest Council","http://opendatacommunities.org/id/unitary-authority/bracknell-forest","Bracknell Forest Council","00MA","Primary Schools","Centrally managed Expenditure - Early Years","Free Milk","Free Milk",05/01/2018 00:00:00,"6652761",4416.5,"MULLER MILK & INGREDIENT"
"Bracknell Forest Council","http://opendatacommunities.org/id/unitary-authority/bracknell-forest","Bracknell Forest Council","00MA","Sandhurst Redevelopment","","","Construction - Contract Payments",22/11/2017 00:00:00,"6652762",34141.14,"KIER FACILITIES SERVICES LIMITED"
"Bracknell Forest Council","http://opendatacommunities.org/id/unitary-authority/bracknell-forest","Bracknell Forest Council","00MA","Children Looked After","Fostering services","Independent Fostering (Non BFBC)","Contracted Services",01/01/2018 00:00:00,"6652765",4595.75,"BY THE BRIDGE"
"Bracknell Forest Council","http://opendatacommunities.org/id/unitary-authority/bracknell-forest","Bracknell Forest Council","00MA","Substance Misuse","Drug misuse in adults","SM Payments by Results - SMART","Contracted Services",19/12/2017 00:00:00,"6652766",3360,"FARNHAM ROAD PRACTICE"
"Bracknell Forest Council","http://opendatacommunities.org/id/unitary-authority/bracknell-forest","Bracknell Forest Council","00MA","Children Looked After","Fostering services","Independent Fostering (Non BFBC)","Contracted Services",01/01/2018 00:00:00,"6652767",5615.65,"ISP CHILDCARE/ central office"
"Bracknell Forest Council","http://opendatacommunities.org/id/unitary-authority/bracknell-forest","Bracknell Forest Council","00MA","Children Looked After","Fostering services","Independent Fostering (Non BFBC)","Contracted Services",01/01/2018 00:00:00,"6652769",5615.65,"ISP CHILDCARE/ central office"
"Bracknell Forest Council","http://opendatacommunities.org/id/unitary-authority/bracknell-forest","Bracknell Forest Council","00MA","Community Safety (Crime Reduction)","Community Safety","DA Funding","Contracted Services",05/12/2017 00:00:00,"6651289",15736.48,"THAMES VALLEY POLICE AUTHORITY"
"Bracknell Forest Council","http://opendatacommunities.org/id/unitary-authority/bracknell-forest","Bracknell Forest Council","00MA","Culture and Heritage","Heritage Museums & Galleries","The Look Out Catering","Cost of Goods Sold",25/08/2017 00:00:00,"6651324",610.4,"CONSORT FROZEN FOODS LTD"
"Bracknell Forest Council","http://opendatacommunities.org/id/unitary-authority/bracknell-forest","Bracknell Forest Council","00MA","Culture and Heritage","Heritage Museums & Galleries","The Look Out Catering","Cost of Goods Sold",18/08/2017 00:00:00,"6651325",673.15,"CONSORT FROZEN FOODS LTD"
"Bracknell Forest Council","http://opendatacommunities.org/id/unitary-authority/bracknell-forest","Bracknell Forest Council","00MA","Parking Services","On Street Parking","Residents Parking Scheme","Contracted Services",30/11/2017 00:00:00,"6651540",5009.68,"INDIGO - INDIGO PARK SERVICES UK LIMITED"
"Bracknell Forest Council","http://opendatacommunities.org/id/unitary-authority/bracknell-forest","Bracknell Forest Council","00MA","Management and Support Services - CYPL","Strategy, Resources and Early Interventions","Schools Contract Catering","Sale of Goods",18/01/2018 00:00:00,"6654475",-86008.6,"ISS MEDICLEAN LIMITED"
"Bracknell Forest Council","http://opendatacommunities.org/id/unitary-authority/bracknell-forest","Bracknell Forest Council","00MA","Management and Support Services - CYPL","Strategy, Resources and Early Interventions","Schools Contract Catering","Sale of Goods",18/01/2018 00:00:00,"6654475",-2377.83,"ISS MEDICLEAN LIMITED"
"Bracknell Forest Council","http://opendatacommunities.org/id/unitary-authority/bracknell-forest","Bracknell Forest Council","00MA","Management and Support Services - CYPL","Strategy, Resources and Early Interventions","Schools Contract Catering","Subsidised Staff Services",18/01/2018 00:00:00,"6654475",2089.13,"ISS MEDICLEAN LIMITED"
"Bracknell Forest Council","http://opendatacommunities.org/id/unitary-authority/bracknell-forest","Bracknell Forest Council","00MA","Open Spaces","Countryside Recreation & Management","Countryside Sites - Maintenance","R&M - Planned",30/01/2018 00:00:00,"6654478",755,"Redact Personal Info"
"Bracknell Forest Council","http://opendatacommunities.org/id/unitary-authority/bracknell-forest","Bracknell Forest Council","00MA","Open Spaces","Community Parks & Open Spaces","Lily Hill Park Maintenance","R&M - Planned",03/02/2018 00:00:00,"6654479",650,"Redact Personal Info"
"Bracknell Forest Council","http://opendatacommunities.org/id/unitary-authority/bracknell-forest","Bracknell Forest Council","00MA","Transport Planning, Policy & Strategy","Transport Policy, Planning & Strategy","NRSWA Penalties","Contracted Services",30/01/2018 00:00:00,"6654485",2900,"CHD CONSULTING"
"Bracknell Forest Council","http://opendatacommunities.org/id/unitary-authority/bracknell-forest","Bracknell Forest Council","00MA","Support Services & Management Costs","Training","Social Care Training - Adults","Training Costs",18/12/2017 00:00:00,"6654486",945,"PRESCRIPTION TRAINING"
"Bracknell Forest Council","http://opendatacommunities.org/id/unitary-authority/bracknell-forest","Bracknell Forest Council","00MA","Recreation, Sports and Leisure","Indoor Sports & Recreation Facilities","Leisure Sites General","Consultants Fees",21/11/2017 00:00:00,"6654495",1500,"RIGHT DIRECTIONS"
"Bracknell Forest Council","http://opendatacommunities.org/id/unitary-authority/bracknell-forest","Bracknell Forest Council","00MA","Family Support Services","Targeted Family Support","Assistance Cash in Kind/Care Needs","Contracted Services",15/11/2017 00:00:00,"6654498",517.21,"COUNTY CARE BERKSHIRE"
"Bracknell Forest Council","http://opendatacommunities.org/id/unitary-authority/bracknell-forest","Bracknell Forest Council","00MA","Family Support Services","Targeted Family Support","Assistance Cash in Kind/Care Needs","Contracted Services",15/11/2017 00:00:00,"6654499",541.19,"COUNTY CARE BERKSHIRE"
"Bracknell Forest Council","http://opendatacommunities.org/id/unitary-authority/bracknell-forest","Bracknell Forest Council","00MA","Management and Support Services - CYPL","Schools Block Centrally Managed","Educational Attainment for Looked After Children","Consultants Fees",02/01/2018 00:00:00,"6652771",556,"XL EDUCATION SOLUTIONS LTD"
"Bracknell Forest Council","http://opendatacommunities.org/id/unitary-authority/bracknell-forest","Bracknell Forest Council","00MA","Children Looked After","Leaving care support services","QP - Care Leavers","Contracted Services",03/01/2018 00:00:00,"6652772",5840,"OUTCOMES FOCUSED SUPPORT SERVICES LTD"
"Bracknell Forest Council","http://opendatacommunities.org/id/unitary-authority/bracknell-forest","Bracknell Forest Council","00MA","Management and Support Services - CYPL","Schools Block Centrally Managed","Educational Attainment for Looked After Children","Consultants Fees",03/01/2018 00:00:00,"6652774",1330.28,"TEACHING PERSONNEL LTD"
"Bracknell Forest Council","http://opendatacommunities.org/id/unitary-authority/bracknell-forest","Bracknell Forest Council","00MA","Cemeteries, Crematoria & Mortuary Services","Cemeteries & Crematorium","Easthampstead Park Cemetery & Crematorium","Subscriptions",01/01/2018 00:00:00,"6652775",860.8,"THE FEDERATION OF BURIAL AND CREMATION AUTHORITIES"
"Bracknell Forest Council","http://opendatacommunities.org/id/unitary-authority/bracknell-forest","Bracknell Forest Council","00MA","Sexual Health Services","Contraception","GP LARC Payments","Contracted Services",05/01/2018 00:00:00,"6652776",1232,"EVERGREEN PRACTICE"
"Bracknell Forest Council","http://opendatacommunities.org/id/unitary-authority/bracknell-forest","Bracknell Forest Council","00MA","NHS Health Check Programme","NHS Health Check Programme","GP Health Checks","Contracted Services",05/01/2018 00:00:00,"6652776",560,"EVERGREEN PRACTICE"
"Bracknell Forest Council","http://opendatacommunities.org/id/unitary-authority/bracknell-forest","Bracknell Forest Council","00MA","Children Looked After","Fostering services","Independent Fostering (Non BFBC)","Contracted Services",01/01/2018 00:00:00,"6652777",5150.43,"CREDO CARE LIMITED"
"Bracknell Forest Council","http://opendatacommunities.org/id/unitary-authority/bracknell-forest","Bracknell Forest Council","00MA","Sexual Health Services","Contraception","GP LARC Payments","Contracted Services",05/01/2018 00:00:00,"6652778",3080,"THE WATERFIELD PRACTICE"
"Bracknell Forest Council","http://opendatacommunities.org/id/unitary-authority/bracknell-forest","Bracknell Forest Council","00MA","NHS Health Check Programme","NHS Health Check Programme","GP Health Checks","Contracted Services",03/01/2018 00:00:00,"6652779",1060,"REDWOOD HOUSE SURGERY"
"Bracknell Forest Council","http://opendatacommunities.org/id/unitary-authority/bracknell-forest","Bracknell Forest Council","00MA","Children Looked After","Residential care","Children's Home Placements","Contracted Services",01/01/2018 00:00:00,"6652780",15500,"FRIENDS THERAPEUTIC COMMUNITY TRUST"
"Bracknell Forest Council","http://opendatacommunities.org/id/unitary-authority/bracknell-forest","Bracknell Forest Council","00MA","Sexual Health Services","Contraception","GP LARC Payments","Contracted Services",05/01/2018 00:00:00,"6652784",2706.5,"EASTFIELD HOUSE SURGERY"
"Bracknell Forest Council","http://opendatacommunities.org/id/unitary-authority/bracknell-forest","Bracknell Forest Council","00MA","Corporate Management COF","Corporate Management COF","Cserv. - Tax Making & Statutory Account","Statutory Auditors Fees",29/12/2017 00:00:00,"6652786",4000,"CROYDON COUNCIL"
"Bracknell Forest Council","http://opendatacommunities.org/id/unitary-authority/bracknell-forest","Bracknell Forest Council","00MA","Sexual Health Services","Contraception","GP LARC Payments","Contracted Services",31/12/2017 00:00:00,"6652787",792,"KINGS CORNER SURGERY"
"Bracknell Forest Council","http://opendatacommunities.org/id/unitary-authority/bracknell-forest","Bracknell Forest Council","00MA","Other Education and Community Budget","Service strategy and other education functions","Education Capital & Property","Consultants Fees",03/01/2018 00:00:00,"6652789",2530,"OFFSITE & OUTDOOR ADV.SERVICE"
"Bracknell Forest Council","http://opendatacommunities.org/id/unitary-authority/bracknell-forest","Bracknell Forest Council","00MA","Sexual Health Services","Contraception","GP LARC Payments","Contracted Services",02/01/2018 00:00:00,"6652799",3262.5,"FALKLAND SURGERY"
"Bracknell Forest Council","http://opendatacommunities.org/id/unitary-authority/bracknell-forest","Bracknell Forest Council","00MA","Special Schools","Delegated Secondary Schools Budgets","Easthampstead Park Community - Secondary","R&M - Reactive",31/12/2017 00:00:00,"6652800",818.16,"PICKERINGS LIFTS"
"Bracknell Forest Council","http://opendatacommunities.org/id/unitary-authority/bracknell-forest","Bracknell Forest Council","00MA","NHS Health Check Programme","NHS Health Check Programme","GP Health Checks","Contracted Services",03/01/2018 00:00:00,"6652802",760,"THE ORCHARD SURGERY"
"Bracknell Forest Council","http://opendatacommunities.org/id/unitary-authority/bracknell-forest","Bracknell Forest Council","00MA","Children Looked After","Other services for LAC","LAC - Semi Independent Living","Contracted Services",11/12/2017 00:00:00,"6652803",750,"BRIGHTER STEPS LTD"
"Bracknell Forest Council","http://opendatacommunities.org/id/unitary-authority/bracknell-forest","Bracknell Forest Council","00MA","Sexual Health Services","Contraception","GP LARC Payments","Contracted Services",04/01/2018 00:00:00,"6652806",1891.5,"THE FINCHAMPSTEAD SURGERY"
"Bracknell Forest Council","http://opendatacommunities.org/id/unitary-authority/bracknell-forest","Bracknell Forest Council","00MA","Recreation, Sports and Leisure","Indoor Sports & Recreation Facilities","Leisure Centre - Catering General","Cost of Goods Sold",02/01/2018 00:00:00,"6652807",888.09,"THE LOVELY CHEESE COMPANY"
"Bracknell Forest Council","http://opendatacommunities.org/id/unitary-authority/bracknell-forest","Bracknell Forest Council","00MA","Sexual Health Services","Contraception","GP LARC Payments","Contracted Services",05/01/2018 00:00:00,"6652811",3432,"RUNNYMEDE MEDICAL PRACTICE"
"Bracknell Forest Council","http://opendatacommunities.org/id/unitary-authority/bracknell-forest","Bracknell Forest Council","00MA","NHS Health Check Programme","NHS Health Check Programme","GP Health Checks","Contracted Services",05/01/2018 00:00:00,"6652811",5960,"RUNNYMEDE MEDICAL PRACTICE"
"Bracknell Forest Council","http://opendatacommunities.org/id/unitary-authority/bracknell-forest","Bracknell Forest Council","00MA","Substance Misuse","Drug misuse in adults","SM User & Carer Support","Occasional Hire of Premises",03/01/2018 00:00:00,"6652812",520,"THE ARK TRUST LTD"
"Bracknell Forest Council","http://opendatacommunities.org/id/unitary-authority/bracknell-forest","Bracknell Forest Council","00MA","Holding Accounts in Budget Book COF","Corporate Services - Office Services","Postal Services","Postage",19/12/2017 00:00:00,"6652815",1749.83,"WHISTL"
"Bracknell Forest Council","http://opendatacommunities.org/id/unitary-authority/bracknell-forest","Bracknell Forest Council","00MA","Sexual Health Services","Contraception","GP LARC Payments","Contracted Services",03/01/2018 00:00:00,"6652818",4136,"SANDHURST GROUP PRACTICE"
"Bracknell Forest Council","http://opendatacommunities.org/id/unitary-authority/bracknell-forest","Bracknell Forest Council","00MA","NHS Health Check Programme","NHS Health Check Programme","GP Health Checks","Contracted Services",03/01/2018 00:00:00,"6652818",1440,"SANDHURST GROUP PRACTICE"
"Bracknell Forest Council","http://opendatacommunities.org/id/unitary-authority/bracknell-forest","Bracknell Forest Council","00MA","Children Looked After","Fostering services","Independent Fostering (Non BFBC)","Contracted Services",01/11/2017 00:00:00,"6652820",4221.43,"FUSION FOSTERING"
"Bracknell Forest Council","http://opendatacommunities.org/id/unitary-authority/bracknell-forest","Bracknell Forest Council","00MA","Sexual Health Services","Contraception","GP LARC Payments","Contracted Services",04/01/2018 00:00:00,"6652821",3648,"PARKSIDE FAMILY PRACTICE"
"Bracknell Forest Council","http://opendatacommunities.org/id/unitary-authority/bracknell-forest","Bracknell Forest Council","00MA","Children Looked After","Fostering services","Independent Fostering (Non BFBC)","Contracted Services",01/12/2017 00:00:00,"6652823",4362.14,"FUSION FOSTERING"
"Bracknell Forest Council","http://opendatacommunities.org/id/unitary-authority/bracknell-forest","Bracknell Forest Council","00MA","Sexual Health Services","Contraception","GP LARC Payments","Contracted Services",02/01/2018 00:00:00,"6652824",1897.5,"WOOSEHILL MEDICAL CENTRE"
"Bracknell Forest Council","http://opendatacommunities.org/id/unitary-authority/bracknell-forest","Bracknell Forest Council","00MA","Children Looked After","Fostering services","Independent Fostering (Non BFBC)","Contracted Services",02/10/2017 00:00:00,"6652825",4362.14,"FUSION FOSTERING"
"Bracknell Forest Council","http://opendatacommunities.org/id/unitary-authority/bracknell-forest","Bracknell Forest Council","00MA","Sexual Health Services","Contraception","GP LARC Payments","Contracted Services",03/01/2018 00:00:00,"6652827",616,"RADNOR HOUSE & ASCOT MEDICAL"
"Bracknell Forest Council","http://opendatacommunities.org/id/unitary-authority/bracknell-forest","Bracknell Forest Council","00MA","NHS Health Check Programme","NHS Health Check Programme","GP Health Checks","Contracted Services",03/01/2018 00:00:00,"6652827",1260,"RADNOR HOUSE & ASCOT MEDICAL"
"Bracknell Forest Council","http://opendatacommunities.org/id/unitary-authority/bracknell-forest","Bracknell Forest Council","00MA","Children Looked After","Fostering services","Independent Fostering (Non BFBC)","Contracted Services",01/09/2017 00:00:00,"6652828",4221.43,"FUSION FOSTERING"
"Bracknell Forest Council","http://opendatacommunities.org/id/unitary-authority/bracknell-forest","Bracknell Forest Council","00MA","Sexual Health Services","Contraception","GP LARC Payments","Contracted Services",03/01/2018 00:00:00,"6652832",4136,"THE RINGMEAD MEDICAL PRACTICE"
"Bracknell Forest Council","http://opendatacommunities.org/id/unitary-authority/bracknell-forest","Bracknell Forest Council","00MA","NHS Health Check Programme","NHS Health Check Programme","GP Health Checks","Contracted Services",03/01/2018 00:00:00,"6652832",2100,"THE RINGMEAD MEDICAL PRACTICE"
"Bracknell Forest Council","http://opendatacommunities.org/id/unitary-authority/bracknell-forest","Bracknell Forest Council","00MA","Family Support Services","Targeted Family Support","C&F Section 17 Under 11's Team","Other Support to Clients",03/01/2018 00:00:00,"6652835",650,"PINEHILL ROOMS BRACKNELL"
"Bracknell Forest Council","http://opendatacommunities.org/id/unitary-authority/bracknell-forest","Bracknell Forest Council","00MA","Open Spaces","Community Parks & Open Spaces","Amenity Maintenance/Landscape","External Grounds Maintenance Costs",31/12/2017 00:00:00,"6652837",81298.61,"CONTINENTAL LANDSCAPES LTD"
"Bracknell Forest Council","http://opendatacommunities.org/id/unitary-authority/bracknell-forest","Bracknell Forest Council","00MA","Social Care Activities","Social Care Activities","Adults Safeguarding Board","Consultants Fees",04/01/2018 00:00:00,"6652838",1750,"Redact Personal Info"
"Bracknell Forest Council","http://opendatacommunities.org/id/unitary-authority/bracknell-forest","Bracknell Forest Council","00MA","Management and Support Services - CYPL","Schools Block Centrally Managed","Educational Attainment for Looked After Children","Consultants Fees",02/01/2018 00:00:00,"6652849",2460,"XL EDUCATION SOLUTIONS LTD"
"Bracknell Forest Council","http://opendatacommunities.org/id/unitary-authority/bracknell-forest","Bracknell Forest Council","00MA","Children Looked After","Fostering services","Independent Fostering (Non BFBC)","Contracted Services",06/12/2017 00:00:00,"6652850",-1235.69,"FUSION FOSTERING"
"Bracknell Forest Council","http://opendatacommunities.org/id/unitary-authority/bracknell-forest","Bracknell Forest Council","00MA","Children Looked After","Residential care","C&F Learning Disability Placements","Voluntary Sector Service Providers",18/12/2017 00:00:00,"6652853",1900,"TRELOAR TRUST"
"Bracknell Forest Council","http://opendatacommunities.org/id/unitary-authority/bracknell-forest","Bracknell Forest Council","00MA","Children Looked After","Other services for LAC","LAC - Semi Independent Living","Contracted Services",18/12/2017 00:00:00,"6652854",750,"BRIGHTER STEPS LTD"
"Bracknell Forest Council","http://opendatacommunities.org/id/unitary-authority/bracknell-forest","Bracknell Forest Council","00MA","Children Looked After","Adoption Services","Additional Adoption Support","Client Training & Support",22/12/2017 00:00:00,"6652858",1560,"THE CHERRYCROFT PRACTICE"
"Bracknell Forest Council","http://opendatacommunities.org/id/unitary-authority/bracknell-forest","Bracknell Forest Council","00MA","Children Looked After","Adoption Services","Additional Adoption Support","Client Training & Support",22/12/2017 00:00:00,"6652859",780,"THE CHERRYCROFT PRACTICE"
"Bracknell Forest Council","http://opendatacommunities.org/id/unitary-authority/bracknell-forest","Bracknell Forest Council","00MA","Children Looked After","Adoption Services","Additional Adoption Support","Client Training & Support",22/12/2017 00:00:00,"6652860",1020,"THE CHERRYCROFT PRACTICE"
"Bracknell Forest Council","http://opendatacommunities.org/id/unitary-authority/bracknell-forest","Bracknell Forest Council","00MA","Recreation, Sports and Leisure","Indoor Sports & Recreation Facilities","Leisure Centre - Catering General","Cost of Goods Sold",19/12/2017 00:00:00,"6652862",727.63,"THE LOVELY CHEESE COMPANY"
"Bracknell Forest Council","http://opendatacommunities.org/id/unitary-authority/bracknell-forest","Bracknell Forest Council","00MA","Management and Support Services - CYPL","Unallocated High Needs Related Expenditure","Supporting SEN Pre 16","Voluntary Sector Service Providers",20/12/2017 00:00:00,"6652864",1600,"I CAN CHARITY"
"Bracknell Forest Council","http://opendatacommunities.org/id/unitary-authority/bracknell-forest","Bracknell Forest Council","00MA","Safeguarding Children and Young People's Services","Social Work","Family Placement","Sessional",20/12/2017 00:00:00,"6652865",707.25,"SERVICES FOR CHILDREN"
"Bracknell Forest Council","http://opendatacommunities.org/id/unitary-authority/bracknell-forest","Bracknell Forest Council","00MA","Culture and Heritage","Heritage Museums & Galleries","The Look Out","R&M - Service Contracts",13/12/2017 00:00:00,"6652866",921.21,"CHUBB FIRE LTD"
"Bracknell Forest Council","http://opendatacommunities.org/id/unitary-authority/bracknell-forest","Bracknell Forest Council","00MA","Special Schools & Alternative Provision","Youth Services","Education for CAHMS Hospital Placements","Externally Purchased Professional Services-curriculum",31/12/2017 00:00:00,"6652868",750,"THE HUNTERCOMBE HOSPITAL MAIDENHEAD /  HUNTERCOMBE GROUP"
"Bracknell Forest Council","http://opendatacommunities.org/id/unitary-authority/bracknell-forest","Bracknell Forest Council","00MA","Economic Development","Economic Development","Town Centre Redevelopment Legal Costs","Legal Fees",27/09/2017 00:00:00,"6652873",695.2,"BERWIN LEIGHTON PAISNER"
"Bracknell Forest Council","http://opendatacommunities.org/id/unitary-authority/bracknell-forest","Bracknell Forest Council","00MA","Economic Development","Economic Development","Town Centre Redevelopment Legal Costs","Legal Fees",27/09/2017 00:00:00,"6652873",-695.2,"BERWIN LEIGHTON PAISNER"
"Bracknell Forest Council","http://opendatacommunities.org/id/unitary-authority/bracknell-forest","Bracknell Forest Council","00MA","Children Looked After","Other services for LAC","LAC - Semi Independent Living","Contracted Services",18/12/2017 00:00:00,"6652874",750,"BRIGHTER STEPS LTD"
"Bracknell Forest Council","http://opendatacommunities.org/id/unitary-authority/bracknell-forest","Bracknell Forest Council","00MA","Children Looked After","Other services for LAC","LAC - Semi Independent Living","Contracted Services",18/12/2017 00:00:00,"6652875",1937,"BRIGHTER STEPS LTD"
"Bracknell Forest Council","http://opendatacommunities.org/id/unitary-authority/bracknell-forest","Bracknell Forest Council","00MA","Holding Accounts in Budget Book COF","Corporate Services - Office Services","Postal Services","Postage",09/01/2018 00:00:00,"6652877",1111.78,"WHISTL"
"Bracknell Forest Council","http://opendatacommunities.org/id/unitary-authority/bracknell-forest","Bracknell Forest Council","00MA","Recreation, Sports and Leisure","Indoor Sports & Recreation Facilities","Leisure DSO - Leisure Centre","Cleaning materials",03/01/2018 00:00:00,"6652881",511.15,"SOURCE SUPPLIES LTD"
"Bracknell Forest Council","http://opendatacommunities.org/id/unitary-authority/bracknell-forest","Bracknell Forest Council","00MA","Parking Services","Off Street Parking","Off Street Parking","Contracted Services",31/12/2017 00:00:00,"6652883",2370,"INDIGO - INDIGO PARK SERVICES UK LIMITED"
"Bracknell Forest Council","http://opendatacommunities.org/id/unitary-authority/bracknell-forest","Bracknell Forest Council","00MA","Management and Support Services - CYPL","Schools Block Centrally Managed","Educational Attainment for Looked After Children","Learning Resources - Purchase",16/01/2018 00:00:00,"6652900",600,"PAYMENT WITHOUT INVOICES"
"Bracknell Forest Council","http://opendatacommunities.org/id/unitary-authority/bracknell-forest","Bracknell Forest Council","00MA","Safeguarding Children and Young People's Services","Social Work","Family Group Conferences","Consultants Fees",15/05/2017 00:00:00,"6652903",522.6,"Redact Personal Info"
"Bracknell Forest Council","http://opendatacommunities.org/id/unitary-authority/bracknell-forest","Bracknell Forest Council","00MA","Sure Start Children's Centres","Centrally managed expenditure - children's centres","EH Children's Centres","Other Fees for Bought-in Services",20/11/2017 00:00:00,"6652908",690,"EUROPEAN MEDICAL SERVICES LTD"
"Bracknell Forest Council","http://opendatacommunities.org/id/unitary-authority/bracknell-forest","Bracknell Forest Council","00MA","Central Support Services - COF","Information Technology","Departmental ICT","Training Costs",23/11/2017 00:00:00,"6652909",2008,"SAP UK LIMITED"
"Bracknell Forest Council","http://opendatacommunities.org/id/unitary-authority/bracknell-forest","Bracknell Forest Council","00MA","Central Support Services - COF","Policy Unit","External Communications","Consultants Fees",01/01/2018 00:00:00,"6652911",1500,"MusterPoint Solutions Limited"
"Bracknell Forest Council","http://opendatacommunities.org/id/unitary-authority/bracknell-forest","Bracknell Forest Council","00MA","Improvements & Capitalised Repairs (Council Wide)","","","Construction - Other Direct Expenses",11/01/2018 00:00:00,"6652913",1041.43,"BELLS ENGINEERING PRODUCTS LTD"
"Bracknell Forest Council","http://opendatacommunities.org/id/unitary-authority/bracknell-forest","Bracknell Forest Council","00MA","Improvements & Capitalised Repairs (Council Wide)","","","Construction - Other Direct Expenses",11/01/2018 00:00:00,"6652914",1246.6,"H20 SERVICING LTD"
"Bracknell Forest Council","http://opendatacommunities.org/id/unitary-authority/bracknell-forest","Bracknell Forest Council","00MA","South Hill Park Ceremony Suite","","","Construction - Contract Payments",05/01/2018 00:00:00,"6652915",2346.5,"OFFICE UPDATE LTD"
"Bracknell Forest Council","http://opendatacommunities.org/id/unitary-authority/bracknell-forest","Bracknell Forest Council","00MA","Improvements & Capitalised Repairs (Council Wide)","","","Construction - Other Direct Expenses",11/01/2018 00:00:00,"6652917",4696,"H20 SERVICING LTD"
"Bracknell Forest Council","http://opendatacommunities.org/id/unitary-authority/bracknell-forest","Bracknell Forest Council","00MA","Recreation, Sports and Leisure","Golf Courses","Leisure DSO - Downshire Golf Course","R&M - Reactive",10/01/2018 00:00:00,"6652920",974,"COMPLETE SIGN SOLUTIONS LTD"
"Bracknell Forest Council","http://opendatacommunities.org/id/unitary-authority/bracknell-forest","Bracknell Forest Council","00MA","Recreation, Sports and Leisure","Sports Development & Community Recreations","Sports Development","Equipment - Purchase",10/01/2018 00:00:00,"6652924",545,"BISHOP SPORTS & LEISURE LTD"
"Bracknell Forest Council","http://opendatacommunities.org/id/unitary-authority/bracknell-forest","Bracknell Forest Council","00MA","Planning Policy","Structure & Local Planning","Local Development framework","Consultants Fees",22/11/2017 00:00:00,"6652926",5932.5,"JOHN WENMAN ECOLOGICAL CONSULTANCY"
"Bracknell Forest Council","http://opendatacommunities.org/id/unitary-authority/bracknell-forest","Bracknell Forest Council","00MA","Sure Start Children's Centres","Centrally managed expenditure - children's centres","EH Children's Centres","Minor Improvement Schemes",09/01/2018 00:00:00,"6652934",2200,"HEMEL FENCING"
"Bracknell Forest Council","http://opendatacommunities.org/id/unitary-authority/bracknell-forest","Bracknell Forest Council","00MA","Recreation, Sports and Leisure","Indoor Sports & Recreation Facilities","Leisure DSO - Coral Reef","Swimming Pool Chemicals",01/12/2017 00:00:00,"6652935",966.45,"UNIVAR B V"
"Bracknell Forest Council","http://opendatacommunities.org/id/unitary-authority/bracknell-forest","Bracknell Forest Council","00MA","ICT Capital Schemes","","","Other Direct Expenses",06/01/2018 00:00:00,"6652939",772,"DELL COMPUTER CORPORATION"
"Bracknell Forest Council","http://opendatacommunities.org/id/unitary-authority/bracknell-forest","Bracknell Forest Council","00MA","ICT Capital Schemes","","","Other Direct Expenses",05/01/2018 00:00:00,"6652944",1544,"DELL COMPUTER CORPORATION"
"Bracknell Forest Council","http://opendatacommunities.org/id/unitary-authority/bracknell-forest","Bracknell Forest Council","00MA","Development Control","Applications - Development Control","Development Control","Consultants Fees",22/11/2017 00:00:00,"6652948",5351.18,"JACOBS"
"Bracknell Forest Council","http://opendatacommunities.org/id/unitary-authority/bracknell-forest","Bracknell Forest Council","00MA","Service Management & Support Services","Service Management & Support Services","Departmental IT CLOSED","Computer Software Maintenance",11/01/2018 00:00:00,"6652951",860,"MISO / DOTTED EYES LTD"
"Bracknell Forest Council","http://opendatacommunities.org/id/unitary-authority/bracknell-forest","Bracknell Forest Council","00MA","Business Support","Premises Development","Commercial Properties","Other Fees for Bought-in Services",31/12/2017 00:00:00,"6652952",1220,"CLEARWAY ENVIRONMENTAL SERVICES"
"Bracknell Forest Council","http://opendatacommunities.org/id/unitary-authority/bracknell-forest","Bracknell Forest Council","00MA","Open Spaces","Countryside Recreation & Management","Countryside Sites - Maintenance","R&M - Planned",12/01/2018 00:00:00,"6652953",850,"Redact Personal Info"
"Bracknell Forest Council","http://opendatacommunities.org/id/unitary-authority/bracknell-forest","Bracknell Forest Council","00MA","Sexual Health Services","Contraception","Sexual Health - Contraception (Bracknell)","Contracted Services",22/12/2017 00:00:00,"6652954",5000,"BERKS HEALTHCARE NHS FOUNDATION TRUST"
"Bracknell Forest Council","http://opendatacommunities.org/id/unitary-authority/bracknell-forest","Bracknell Forest Council","00MA","Central Support Services - COF","Information Technology","Information Technology - Management","Training Costs",11/01/2018 00:00:00,"6652960",10359,"GLOBAL KNOWLEDGE NETWORK TRAINING LIMITED"
"Bracknell Forest Council","http://opendatacommunities.org/id/unitary-authority/bracknell-forest","Bracknell Forest Council","00MA","Miscellaneous Public Health Services","Miscellaneous Public Health Services","Other Public Health Services (Bracknell)","Contracted Services",21/12/2017 00:00:00,"6652962",2500,"XENZONE LTD"
"Bracknell Forest Council","http://opendatacommunities.org/id/unitary-authority/bracknell-forest","Bracknell Forest Council","00MA","Structural Maintenance","Structural Maintenance (Principal Roads)","Recons/Overlay/Resurfacing","Clothing & Uniform - Staff",04/01/2018 00:00:00,"6652971",548.14,"ARCO  LIMITED"
"Bracknell Forest Council","http://opendatacommunities.org/id/unitary-authority/bracknell-forest","Bracknell Forest Council","00MA","Parking Services","Off Street Parking","Off Street Parking","R&M - Reactive",08/01/2018 00:00:00,"6652973",515,"SIGNWAY SUPPLIES (DATCHET) LTD"
"Bracknell Forest Council","http://opendatacommunities.org/id/unitary-authority/bracknell-forest","Bracknell Forest Council","00MA","Management and Support Services - CYPL","Unallocated High Needs Related Expenditure","Mainstream - Element 3 top up non BFC pre 16","Wokingham DC",08/01/2018 00:00:00,"6652974",3602.84,"ST CRISPIN'S SCHOOL"
"Bracknell Forest Council","http://opendatacommunities.org/id/unitary-authority/bracknell-forest","Bracknell Forest Council","00MA","Sure Start Children's Centres","Children's centres - direct","The Rowans Children's Centre","Contract Cleaning",31/12/2017 00:00:00,"6652976",541.47,"KGB CLEANING SOUTH WEST LIMITED"
"Bracknell Forest Council","http://opendatacommunities.org/id/unitary-authority/bracknell-forest","Bracknell Forest Council","00MA","Sure Start Children's Centres","Children's centres - direct","The Willows Children's Centre","Refuse Collection",05/12/2017 00:00:00,"6652979",719.71,"PHS GROUP PLC"
"Bracknell Forest Council","http://opendatacommunities.org/id/unitary-authority/bracknell-forest","Bracknell Forest Council","00MA","Substance Misuse","Drug misuse in adults","SM Residential Placements","Contracted Services",31/12/2017 00:00:00,"6652984",2210,"BROADREACH HOUSE"
"Bracknell Forest Council","http://opendatacommunities.org/id/unitary-authority/bracknell-forest","Bracknell Forest Council","00MA","Social Care Activities","Social Care Activities","Mental Health Support - Other Care & Support","Other Support to Clients",09/01/2018 00:00:00,"6652985",800,"BLITZABLE SOUTHERN LIMITED"
"Bracknell Forest Council","http://opendatacommunities.org/id/unitary-authority/bracknell-forest","Bracknell Forest Council","00MA","Urban Traffic Management & Control","","","Construction - Other Direct Expenses",28/11/2017 00:00:00,"6652986",3641.81,"TYCO FIRE & INTEGRATED SOLUTIONS (UK) LTD"
"Bracknell Forest Council","http://opendatacommunities.org/id/unitary-authority/bracknell-forest","Bracknell Forest Council","00MA","Update Traffic Signal Infrastructure","","","Construction - Other Direct Expenses",28/11/2017 00:00:00,"6652988",3578.23,"TYCO FIRE & INTEGRATED SOLUTIONS (UK) LTD"
"Bracknell Forest Council","http://opendatacommunities.org/id/unitary-authority/bracknell-forest","Bracknell Forest Council","00MA","Waste Disposal","Disposal of Waste","London Road Tip","Contracted Services",29/12/2017 00:00:00,"6652989",696.35,"ENITIAL"
"Bracknell Forest Council","http://opendatacommunities.org/id/unitary-authority/bracknell-forest","Bracknell Forest Council","00MA","Waste Disposal","Disposal of Waste","London Road Tip","Other Fees for Bought-in Services",29/12/2017 00:00:00,"6652989",13903.8,"ENITIAL"
"Bracknell Forest Council","http://opendatacommunities.org/id/unitary-authority/bracknell-forest","Bracknell Forest Council","00MA","Urban Traffic Management & Control","","","Construction - Other Direct Expenses",28/11/2017 00:00:00,"6652990",3713.23,"TYCO FIRE & INTEGRATED SOLUTIONS (UK) LTD"
"Bracknell Forest Council","http://opendatacommunities.org/id/unitary-authority/bracknell-forest","Bracknell Forest Council","00MA","Urban Traffic Management & Control","","","Construction - Other Direct Expenses",28/11/2017 00:00:00,"6652991",3980.68,"TYCO FIRE & INTEGRATED SOLUTIONS (UK) LTD"
"Bracknell Forest Council","http://opendatacommunities.org/id/unitary-authority/bracknell-forest","Bracknell Forest Council","00MA","Business Support","Premises Development","Easthampstead Park Conference Centre","Laundry",30/12/2017 00:00:00,"6652998",699.55,"CLEAN LINEN SERVICES LTD"
"Bracknell Forest Council","http://opendatacommunities.org/id/unitary-authority/bracknell-forest","Bracknell Forest Council","00MA","Business Support","Premises Development","Easthampstead Park Conference Centre","Laundry",30/12/2017 00:00:00,"6653000",765.08,"CLEAN LINEN SERVICES LTD"
"Bracknell Forest Council","http://opendatacommunities.org/id/unitary-authority/bracknell-forest","Bracknell Forest Council","00MA","Children Looked After","Residential care","Children's Home Placements","Contracted Services",10/11/2017 00:00:00,"6653008",16680,"AMBERLEIGH CARE"
"Bracknell Forest Council","http://opendatacommunities.org/id/unitary-authority/bracknell-forest","Bracknell Forest Council","00MA","Children Looked After","Leaving care support services","QP - Care Leavers","Contracted Services",21/11/2017 00:00:00,"6653009",2422.52,"IASPIRE CARE SERVICES LIMITED"
"Bracknell Forest Council","http://opendatacommunities.org/id/unitary-authority/bracknell-forest","Bracknell Forest Council","00MA","Central Support Services - COF","Construction and Property","Construction & Maintenance","Agency",20/12/2017 00:00:00,"6653010",1290,"THE OYSTER PARTNERSHIP"
"Bracknell Forest Council","http://opendatacommunities.org/id/unitary-authority/bracknell-forest","Bracknell Forest Council","00MA","Children Looked After","Short breaks for LAC","Larchwood Running Costs","Water & Sewerage",04/01/2018 00:00:00,"6653011",2070.53,"SOUTH EAST WATER"
"Bracknell Forest Council","http://opendatacommunities.org/id/unitary-authority/bracknell-forest","Bracknell Forest Council","00MA","Recreation, Sports and Leisure","Indoor Sports & Recreation Facilities","Leisure DSO - Coral Reef","R&M - Service Contracts",31/10/2017 00:00:00,"6653020",675,"BWT UK LTD"
"Bracknell Forest Council","http://opendatacommunities.org/id/unitary-authority/bracknell-forest","Bracknell Forest Council","00MA","Cemeteries, Crematoria & Mortuary Services","Cemeteries & Crematorium","Easthampstead Park Cemetery & Crematorium","Cost of Goods Sold",31/12/2017 00:00:00,"6653030",905,"VIVEDIA LTD / OBITUS"
"Bracknell Forest Council","http://opendatacommunities.org/id/unitary-authority/bracknell-forest","Bracknell Forest Council","00MA","Street Cleansing","Street Cleansing","Street Cleaning","Contracted Services",31/12/2017 00:00:00,"6653032",73894.75,"CONTINENTAL LANDSCAPES LTD"
"Bracknell Forest Council","http://opendatacommunities.org/id/unitary-authority/bracknell-forest","Bracknell Forest Council","00MA","Central Support Services - COF","Personnel","Personnel Services - Occupational Health","Other Fees for Bought-in Services",25/12/2017 00:00:00,"6653035",5283.94,"HEALES MEDICAL LTD"
